Workbook

Sheet TOC
A1: LEAVE COL BLANK | B1: WORKSHEET NAMES | C1: WORKSHEET LINKS
B2: =IFERROR(INDEX(MID(TABm,FIND("]",TABm)+1,255),ROW(A1),1),"") -> TOC | C2: =HYPERLINK("#"&TOC!B2&"!A1",TOC!B2) -> TOC
B3: =IFERROR(INDEX(MID(TABm,FIND("]",TABm)+1,255),ROW(A2),1),"") -> Assumptions | C3: =HYPERLINK("#"&TOC!B3&"!A1",TOC!B3) -> Assumptions
B4: =IFERROR(INDEX(MID(TABm,FIND("]",TABm)+1,255),ROW(A3),1),"") -> UnitCosts | C4: =HYPERLINK("#"&TOC!B4&"!A1",TOC!B4) -> UnitCosts
B5: =IFERROR(INDEX(MID(TABm,FIND("]",TABm)+1,255),ROW(A4),1),"") -> BRDesign | C5: =HYPERLINK("#"&TOC!B5&"!A1",TOC!B5) -> BRDesign
B6: =IFERROR(INDEX(MID(TABm,FIND("]",TABm)+1,255),ROW(A5),1),"") -> EGSDesign | C6: =HYPERLINK("#"&TOC!B6&"!A1",TOC!B6) -> EGSDesign
B7: =IFERROR(INDEX(MID(TABm,FIND("]",TABm)+1,255),ROW(A6),1),"") -> VFSDesign | C7: =HYPERLINK("#"&TOC!B7&"!A1",TOC!B7) -> VFSDesign
B8: =IFERROR(INDEX(MID(TABm,FIND("]",TABm)+1,255),ROW(A7),1),"") -> GRDesign | C8: =HYPERLINK("#"&TOC!B8&"!A1",TOC!B8) -> GRDesign
B9: =IFERROR(INDEX(MID(TABm,FIND("]",TABm)+1,255),ROW(A8),1),"") -> ICDesign | C9: =HYPERLINK("#"&TOC!B9&"!A1",TOC!B9) -> ICDesign
B10: =IFERROR(INDEX(MID(TABm,FIND("]",TABm)+1,255),ROW(A9),1),"") -> ITDesign | C10: =HYPERLINK("#"&TOC!B10&"!A1",TOC!B10) -> ITDesign
B11: =IFERROR(INDEX(MID(TABm,FIND("]",TABm)+1,255),ROW(A10),1),"") -> PICPDesign | C11: =HYPERLINK("#"&TOC!B11&"!A1",TOC!B11) -> PICPDesign
B12: =IFERROR(INDEX(MID(TABm,FIND("]",TABm)+1,255),ROW(A11),1),"") -> RWHDesign | C12: =HYPERLINK("#"&TOC!B12&"!A1",TOC!B12) -> RWHDesign
B13: =IFERROR(INDEX(MID(TABm,FIND("]",TABm)+1,255),ROW(A12),1),"") -> WPONDDesign | C13: =HYPERLINK("#"&TOC!B13&"!A1",TOC!B13) -> WPONDDesign
B14: =IFERROR(INDEX(MID(TABm,FIND("]",TABm)+1,255),ROW(A13),1),"") -> DPONDDesign | C14: =HYPERLINK("#"&TOC!B14&"!A1",TOC!B14) -> DPONDDesign
B15: =IFERROR(INDEX(MID(TABm,FIND("]",TABm)+1,255),ROW(A14),1),"") -> CapitalCosts | C15: =HYPERLINK("#"&TOC!B15&"!A1",TOC!B15) -> CapitalCosts
B16: =IFERROR(INDEX(MID(TABm,FIND("]",TABm)+1,255),ROW(A15),1),"") -> OM_Costs | C16: =HYPERLINK("#"&TOC!B16&"!A1",TOC!B16) -> OM_Costs
B17: =IFERROR(INDEX(MID(TABm,FIND("]",TABm)+1,255),ROW(A16),1),"") -> RehabCosts | C17: =HYPERLINK("#"&TOC!B17&"!A1",TOC!B17) -> RehabCosts
B18: =IFERROR(INDEX(MID(TABm,FIND("]",TABm)+1,255),ROW(A17),1),"") -> LifeCycleCosts | C18: =HYPERLINK("#"&TOC!B18&"!A1",TOC!B18) -> LifeCycleCosts
B19: =IFERROR(INDEX(MID(TABm,FIND("]",TABm)+1,255),ROW(A18),1),"") -> Dropdowns | C19: =HYPERLINK("#"&TOC!B19&"!A1",TOC!B19) -> Dropdowns
B20: =IFERROR(INDEX(MID(TABm,FIND("]",TABm)+1,255),ROW(A19),1),"") -> TestPits | C20: =HYPERLINK("#"&TOC!B20&"!A1",TOC!B20) -> TestPits
B21: =IFERROR(INDEX(MID(TABm,FIND("]",TABm)+1,255),ROW(A20),1),"") -> ICsizing | C21: =HYPERLINK("#"&TOC!B21&"!A1",TOC!B21) -> ICsizing
B22: =IFERROR(INDEX(MID(TABm,FIND("]",TABm)+1,255),ROW(A21),1),"") -> RWHTank | C22: =HYPERLINK("#"&TOC!B22&"!A1",TOC!B22) -> RWHTank
B23: =IFERROR(INDEX(MID(TABm,FIND("]",TABm)+1,255),ROW(A22),1),"") -> PondCleanout | C23: =HYPERLINK("#"&TOC!B23&"!A1",TOC!B23) -> PondCleanout
B24: =IFERROR(INDEX(MID(TABm,FIND("]",TABm)+1,255),ROW(A23),1),"") -> WetPondSize | C24: =HYPERLINK("#"&TOC!B24&"!A1",TOC!B24) -> WetPondSize
B25: =IFERROR(INDEX(MID(TABm,FIND("]",TABm)+1,255),ROW(A24),1),"") -> OGSSize | C25: =HYPERLINK("#"&TOC!B25&"!A1",TOC!B25) -> OGSSize
B26: =IFERROR(INDEX(MID(TABm,FIND("]",TABm)+1,255),ROW(A25),1),"") ->  | C26: =HYPERLINK("#"&TOC!B26&"!A1",TOC!B26) -> 
B27: =IFERROR(INDEX(MID(TABm,FIND("]",TABm)+1,255),ROW(A26),1),"") -> 

Sheet Assumptions
A1: UNIVERSAL ASSUMPTIONS (enter user defined values in yellow cells) | D1: TOC
A2: COMMON ASSUMPTIONS
A3: SOILS | B3: Sediment Accumulation from drainage area | C3: m3/DA/year | D3: 0.00045
B4: Depth to avoid frost | C4: m | D4: =1.4-0.3 -> 1.1
B5: Top Soil depth | C5: m | D5: 0.25
A6: PAVING | B6: Asphalt base depth | C6: m | D6: 0.3
B7: Asphalt depth | C7: m | D7: 0.05
A8: EXCAVATION | B8: Loading excavated soil | C8: % of excavation cost | D8: 0.15
B9: Truck volume per trip | C9: m3 | D9: 13.76
B10: Excavation | C10: soil swelling | D10: 0.25
B11: Hauling from site to disposal area | C11: trips/hr | D11: 3
A12: WATER | B12: Cost of purchased piped water | C12: per m3 | D12: 2
B13: Cost of purchased bulk water | C13: per m3 | D13: 1
A14: FINANCIAL | B14: Cost inflation | D14: 0.03
B15: Discount rate | D15: 0.05
B16: Intermediate planning horizon (< 50 years) | C16: years
B17: HST / sales tax | D17: 0.13
B18: Cost premium for retrofit projects | D18: 0.16
B19: Project management and overhead | D19: 0.1
B20: US/Cn Exch. Rate (https://www.bankofcanada.ca/rates/exchange/monthly-exchange-rates/) | C20: 2018-01-08 | D20: 1.34
B21: euro/Cn Exch. Rate (https://www.bankofcanada.ca/rates/exchange/monthly-exchange-rates/) | C21: 2018-01-08 | D21: 1.53
A22: GENERAL | B22: Compost depth | C22: m | D22: 0.05
B23: Add Mulch -Starts year 2 | C23: % replaced | D23: 0.5
B24: Clean/flush Underdrain pipe - Starts year 2 | C24: Times / year | D24: 1
B25: Prune | C25: Times / year | D25: 1
B26: Core areation for lawns(Starts year 3 or 5) | C26: Times / year | D26: 1
D27: LOW | E27: HIGH
B28: Restore lost vegetation - Starts year 2 | C28: % replaced (default 10 - 20%) | D28: 0.1 | E28: 0.2
B29: Remove litter | C29: Times / year | D29: 2 | E29: 4
B30: Weeding | C30: Times / year | D30: 2 | E30: 4
B31: Sediment Removal - Starts year 2 | C31: Times / year | D31: 1 | E31: 2
B32: Lawn mowing | C32: Times / year | D32: 5 | E32: 10
B33: Volume of accumulated sediment at cleanout | C33: % of SW pond volume | D33: 0.5 | E33: 0.35
A34: PLANT WATERING | B34: Yr 1: Bi-weekly first two months (May & June) | C34: # Visits | D34: 6
B35: Yr 1: Weekly rest of growing season (July to Sept) | C35: # Visits | D35: 3
B36: Total visits Year 1 | C36: # Visits | D36: =D34+D35 -> 9
B37: Yr 2: 90 % Weekly rest of growing season (May to Sept) | C37: # Visits | D37: 5
B38: Yr 2: 10% (L) or 20% (H) extra watering during start (new plants), then regular remaining 3 months | C38: # Visits | D38: 6
B39: Yr 3: 10% (L) or 20% (H) extra watering during start (new plants), then regular remaining 3 months | C39: # Visits | D39: 6
B40: Drought watering - every 5 years 100% | C40: # Visits | D40: 1
A41: Opportunity cost of land | B41: ( based on market value for lands in the area of the project site ) | C41: $/m2
A42: Enter names for each type of property in column C and corresponding values in column D. Do not alter formula in column B. | B42: =C42 -> None | C42: None | D42: 0
B43: ="Type 2, "&C43 -> Type 2, Nwmkt Aur ICI/Res | C43: Nwmkt Aur ICI/Res | D43: 706
B44: ="Type 3, "&C44 -> Type 3, E.Gwil. Stouf. Agric. | C44: E.Gwil. Stouf. Agric. | D44: 31
B45: ="Type 4, "&C45 -> Type 4, E.Gwil. Stouf. ICI/Res | C45: E.Gwil. Stouf. ICI/Res | D45: 124
B46: ="Type 5, "&C46 -> Type 5,
B47: ="Type 6, "&C47 -> Type 6,
A49: TESTING ASSUMPTIONS | B49: Soil sampling timing | C49: minutes per location | D49: 40
C50: minutes per soil sample | D50: 15
C51: Total minutes | D51: =D49+D50*7 -> 145
C52: hours per staff | D52: =D51/60 -> 2.416666667
C53: hourly rate for staff | D53: =UnitCosts!$L$208 -> 54.1265
B54: Add Soil characterization with Penetrometer | C54: per test, done with soil sampling | D54: 5
C55: TOTAL time | D55: =D54*8 -> 40
C56: hours per staff | D56: =D55/60 -> 0.6666666667
C57: hourly rate for staff | D57: =UnitCosts!$L$208 -> 54.1265
B58: DRI Testing - Bioretention OLDER SITE | C58: minutes per location | D58: 170
C59: per DRI test | D59: 140
C60: Total time | D60: =D58+IF(OM_Costs!F39/25<=5,5*D59,(CapitalCosts!D196/25-1)*D59) -> 870
C61: hours per staff | D61: =D60/60 -> 14.5
C62: hourly rate for staff | D62: =UnitCosts!$L$208 -> 54.1265
B63: DRI Testing - Bioretention NEW SITE | C63: minutes per location | D63: 55
C64: per DRI test | D64: 25
C65: Total time | D65: =D63+D64*4 -> 155
C66: hours per staff | D66: =D65/60 -> 2.583333333
C67: hourly rate for staff | D67: =UnitCosts!$L$208 -> 54.1265
B68: DRI Testing - Permeable Pavement | C68: minutes per location | D68: 65
C69: per DRI test | D69: 35
C70: Total time | D70: =D68+D69*4 -> 205
C71: hours per staff | D71: =D70/60 -> 3.416666667
C72: hourly rate for staff | D72: =UnitCosts!$L$208 -> 54.1265
B73: Simulated Event Testing - based on 200 m2 bioretention example | C73: Site set-up (equipment, pipes) | D73: 90
C74: Actual water test | D74: 60
C75: Time per m2 | D75: =(D73+D74)/200 -> 0.75
C76: Equipment download & check | D76: 30
C77: Total time | D77: =D75*OM_Costs!F39+D76 -> 105
C78: hours per staff for time of testing | D78: 5
C79: hours per 1/2 staff for prep & post test | D79: 3
C80: hourly rate for staff | D80: =UnitCosts!$L$208 -> 54.1265
C81: Cost for 4 staff | D81: =(D78*D80*4*1.25)+D79*D80*2 -> 1677.9215
C82: Truck for 3 hours | D82: 500
C83: Truck volume (m3) | D83: 26
C84: Water rate / M3 | D84: =D12 -> 2
C85: Cost of 26 m3 of water | D85: =D83*D84 -> 52
C86: Cost of pipes ($1/m2) | D86: =1*OM_Costs!F39 -> 100
C87: 2 weeks of water level monitoring | D87: 500
C88: Total staff & equip cost | D88: =SUM(D81:D87) -> 2857.9215
B89: Natural Event Testing | C89: 2 months of water level monitoring | D89: 2000
C90: Includes staff time and equipment
C91: Continuous water level monitoring
C92: 6 months of water level monitoring | D92: 6000

Sheet UnitCosts
A1: COSTING INFORMATION (Input Alternative Costs In Column 'M' To Override The Unit Costs Provided Here) | E1: TOC
A2: REFERENCE | C2: New Description | D2: Original description | E2: Original cost | F2: Year of cost | G2: Cost index | H2: Inflation Index | I2: Original cost unit | J2: Unit conversion | K2: STEP tool cost unit | L2: ="Cn$ Cost, "&YEAR(NOW()) -> Cn$ Cost, 2019 | M2: User cost data
A3: RSMeans | B3: 02 32 19.10 0120 & 02 32 19.10 0130 | C3: Test pits, backhoe | D3: Test pits | E3: =(55.5+77.5)/2 -> 66.5 | F3: 2018 | G3: =IF(A3="rsmeans",1.051,1) -> 1.051 | H3: =(1+Assumptions!$D$14)^(YEAR(NOW())-F3) -> 1.03 | I3: cy | J3: =VLOOKUP(I3,$J$227:$M$245,2,FALSE) -> c.y. to m3 | K3: =VLOOKUP(I3,$J$227:$M$245,4,FALSE) -> m3 | L3: =IF(ISNUMBER(M3),M3,E3*H3*G3*VLOOKUP(J3,$K$227:$L$245,2,FALSE)) -> 94.15705214
A4: CVC, TRCA | C4: Stakeout of utilities | D4: Stakeout of utilities (TRCA Preston) | E4: 500 | F4: 2018 | G4: 1 | H4: =(1+Assumptions!$D$14)^(YEAR(NOW())-F4) -> 1.03 | I4: each | J4: each | K4: each | L4: 515
A5: RSMeans | B5: 02 21 13.09 0100 | C5: Site surveys, topographical survey, maximum | E5: 4475 | F5: 2018 | G5: 1.051 | H5: =(1+Assumptions!$D$14)^(YEAR(NOW())-F5) -> 1.03 | I5: acre | J5: acre to m2 | K5: m2 | L5: 1.197057981
A6: RSMeans | B6: 33 41 16.35 0880 | C6: 8" dia. Filter Sock | D6: 8" dia. FilterSoxx | E6: 6.9 | F6: 2018 | G6: 1.051 | H6: =(1+Assumptions!$D$14)^(YEAR(NOW())-F6) -> 1.03 | I6: ft | J6: ft to m | K6: m | L6: 24.50609252
A7: RSMeans | B7: 01 54 33.40 4700 | C7: 2" Submersible electric pump, 120 GPM | D7: 2" Submersible gas pump | E7: 28.4 | F7: 2018 | G7: 1.051 | H7: =(1+Assumptions!$D$14)^(YEAR(NOW())-F7) -> 1.03 | I7: day | J7: day | K7: day | L7: 30.743852
A8: BMP Store (https://bmpstore.com/products/regular-flow-siltsack-type-a) | C8: Siltsack - High-Flow - Type B, 2'x2', original price in USD but assumes sourcing in Ontario and 15% for shipping | D8: Silt sack in catchbasin (Terrafix) | E8: =45*1.15 -> 51.75 | F8: 2019 | G8: =Assumptions!D20 -> 1.34 | H8: =(1+Assumptions!$D$14)^(YEAR(NOW())-F8) -> 1 | I8: each | J8: each | K8: each | L8: 69.345
A9: RSMeans | B9: 31 25 14.16 1000 | C9: Silt fence, install and maintain, remove | D9: Silt fence around excavation | E9: 1.88 | F9: 2018 | G9: =IF(A9="rsmeans",1.051,1) -> 1.051 | H9: =(1+Assumptions!$D$14)^(YEAR(NOW())-F9) -> 1.03 | I9: ft | J9: ft to m | K9: m | L9: 6.67702231
A10: RSMeans | B10: 31 23 16.16 6060 | C10: Excavating, common earth, minor structures, backhoe 2 c.y. bucket | D10: Excavator: assumed 100 Bm3/hr (1.5 m3 bucket) | E10: 11.6 | F10: 2018 | G10: 1.051 | H10: =(1+Assumptions!$D$14)^(YEAR(NOW())-F10) -> 1.03 | I10: bcy | J10: c.y. to m3 | K10: bm3 | L10: 16.42438804
A11: RSMeans | B11: 31 23 16.16 6060 | C11: Fill assumed same as excavating, common earth, minor structures, backhoe 2 c.y. bucket | D11: Place fill: labour (assume same as excavation cost) | E11: =E10 -> 11.6 | F11: 2018 | G11: 1.051 | H11: =(1+Assumptions!$D$14)^(YEAR(NOW())-F11) -> 1.03 | I11: bcy | J11: c.y. to m3 | K11: bm3 | L11: 16.42438804
A12: RSMeans | B12: 31 23 16.16 6060 | C12: Remove pavers assumed 10% higher than Excavating, common earth, minor structures, backhoe 2 c.y. bucket | D12: Remove pavers | E12: =UnitCosts!E10*1.1 -> 12.76 | F12: 2018 | G12: 1.051 | H12: =(1+Assumptions!$D$14)^(YEAR(NOW())-F12) -> 1.03 | I12: bcy | J12: c.y. to m3 | K12: bm3 | L12: 18.06682685
A13: RSMeans | B13: 31 23 16.16 6060 X 0.85 | C13: Remove No. 8, and top 2" of No.57 stone assumed 15% lower than Excavating, common earth, minor structures, backhoe 2 c.y. bucket | D13: Remove No. 8, and top 2" of No.57 stone | E13: =UnitCosts!E10*0.85 -> 9.86 | F13: 2018 | G13: 1.051 | H13: =(1+Assumptions!$D$14)^(YEAR(NOW())-F13) -> 1.03 | I13: bcy | J13: c.y. to m3 | K13: bm3 | L13: 13.96072984
A14: RSMeans | B14: 31 23 16.16 6100 | C14: Excavating, common earth, small bldg foundations, backhoe 2 c.y. bucket | D14: Remove filter media | E14: 10.55 | F14: 2018 | G14: 1.051 | H14: =(1+Assumptions!$D$14)^(YEAR(NOW())-F14) -> 1.03 | I14: bcy | J14: c.y. to m3 | K14: bm3 | L14: 14.93769775
A15: RSMeans | B15: 31 23 16.42 0260 | C15: Excavating, common earth piled, bulk bank, backhoe 2 c.y. bucket | D15: Excavator: assumed 50 Bm3/hr (1.5 m3 bucket) | E15: 1.76 | F15: 2018 | G15: 1.051 | H15: =(1+Assumptions!$D$14)^(YEAR(NOW())-F15) -> 1.03 | I15: bcy | J15: c.y. to m3 | K15: bm3 | L15: 2.491976117
A16: RSMeans | B16: 31 23 16.13 1372 | C16: Excavating, trench, 6'-10' deep, w/trench box, backhoe 2.5 c.y. bucket | D16: Excavator: (1.9 m3 bucket) | E16: 2.99 | F16: 2018 | G16: 1.051 | H16: =(1+Assumptions!$D$14)^(YEAR(NOW())-F16) -> 1.03 | I16: bcy | J16: c.y. to m3 | K16: bm3 | L16: 4.233527608
A17: RSMeans | B17: 31 23 16.42 0260 | C17: Assumed to be 85% of Excavating, common earth piled, bulk bank, backhoe 2 c.y. bucket | D17: Excavator: assumed 50 Bm3/hr (1.5 m3 bucket) GRAVEL | E17: =E15*0.85 -> 1.496 | F17: 2018 | G17: 1.051 | H17: =(1+Assumptions!$D$14)^(YEAR(NOW())-F17) -> 1.03 | I17: bcy | J17: c.y. to m3 | K17: bm3 | L17: 2.118179699
A18: RSMeans | B18: G1030 115 1950 | C18: Site earthwork, Cut and fill, common earth, 105 hp dozer and roller compactor, 150' haul, 8" lifts, 4 passes | E18: 11.38 | F18: 2018 | G18: 1.051 | H18: =(1+Assumptions!$D$14)^(YEAR(NOW())-F18) -> 1.03 | I18: cy | J18: c.y. to m3 | K18: m3 | L18: 16.11289103
A19: RSMeans | B19: G1030 125 1950 | C19: Site earthwork, Cut and fill, clay, 105 hp dozer and roller compactor, 150' haul, 8" lifts, 4 passes | E19: 14.35 | F19: 2018 | G19: 1.051 | H19: =(1+Assumptions!$D$14)^(YEAR(NOW())-F19) -> 1.03 | I19: cy | J19: c.y. to m3 | K19: m3 | L19: 20.31810073
A20: RSMeans | B20: 31 23 23.17 0190 | C20: General fill, spread fill from stockpile with dozer, 300 hp, 300' haul | E20: 4.84 | F20: 2018 | G20: 1.051 | H20: =(1+Assumptions!$D$14)^(YEAR(NOW())-F20) -> 1.03 | I20: lcy | J20: LCY to m3 | K20: m3 | L20: 6.852934321
A21: RSMeans | B21: 31 23 23.13 0015 | C21: Backfill, by hand, no compaction, light soil + compaction in 12" layers, vibrating plate | E21: =34.5 -> 34.5 | F21: 2018 | G21: =IF(A21="rsmeans",1.051,1) -> 1.051 | H21: =(1+Assumptions!$D$14)^(YEAR(NOW())-F21) -> 1.03 | I21: lcy | J21: =VLOOKUP(I21,$J$227:$M$245,2,FALSE) -> LCY to m3 | K21: =VLOOKUP(I21,$J$227:$M$245,4,FALSE) -> m3 | L21: 48.84839547
A22: RSMeans | B22: 31 23 23.23 7000 | C22: Compaction, walk behind vibrating plate, 21" wide, 12" lifts, 2 passes | E22: 0.95 | F22: 2018 | G22: 1.051 | H22: =(1+Assumptions!$D$14)^(YEAR(NOW())-F22) -> 1.03 | I22: ecy | J22: c.y. to m3 | K22: Em3 | L22: 1.345100745
A23: RSMeans | B23: 31 23 23.16 0050 | C23: Fill by borrow and utility bedding, utility bedding for pipe and conduit, not incl. compaction, crushed or screened bank run gravel | E23: 36 | F23: 2018 | G23: =IF(A23="rsmeans",1.051,1) -> 1.051 | H23: =(1+Assumptions!$D$14)^(YEAR(NOW())-F23) -> 1.03 | I23: lcy | J23: =VLOOKUP(I23,$J$227:$M$245,2,FALSE) -> LCY to m3 | K23: =VLOOKUP(I23,$J$227:$M$245,4,FALSE) -> m3 | L23: 50.97223875
A24: RSMeans | B24: 31 23 23.16 0500 | C24: Fill by borrow and utility bedding, compaction in trench | E24: 5.8 | F24: 2018 | G24: =IF(A24="rsmeans",1.051,1) -> 1.051 | H24: =(1+Assumptions!$D$14)^(YEAR(NOW())-F24) -> 1.03 | I24: ecy | J24: =VLOOKUP(I24,$J$227:$M$245,2,FALSE) -> c.y. to m3 | K24: =VLOOKUP(I24,$J$227:$M$245,4,FALSE) -> Em3 | L24: 8.212194021
A25: RSMeans | B25: 31 23 23.13 1100 | C25: Backfill, by hand, compaction in 12" layers, vibrating plate | E25: 5.9 | F25: 2018 | G25: 1.051 | H25: =(1+Assumptions!$D$14)^(YEAR(NOW())-F25) -> 1.03 | I25: ecy | J25: c.y. to m3 | K25: Em3 | L25: 8.353783573
A26: RSMeans | B26: G1010 120 1000 | C26: Clear and grub site, remove trees and shrubs up to 6" in dia., cut and chip and remove stumps | E26: 6925 | F26: 2018 | G26: 1.051 | H26: =(1+Assumptions!$D$14)^(YEAR(NOW())-F26) -> 1.03 | I26: acre | J26: acre to m2 | K26: m2 | L26: 1.852430506
A27: RSMeans | B27: G2010 230 1230 | C27: Bituminous roadway, two lanes, 3-1/2" thick pavement, 6" thick gravel base, 24' widegravel base (Adjustments: (1) cost for granite curbs removed; (2) costs for gravel, compaction and grading increased 25% to account for 3' shoulders on either side of road; (3) costs for excavation added) | E27: =136-61.9+0.25*(0.47+7.04+0.17+15.21)+E18*((9.5/12)*(24+6)*1/27) -> 89.83268519 | F27: 2018 | G27: 1.051 | H27: =(1+Assumptions!$D$14)^(YEAR(NOW())-F27) -> 1.03 | I27: ft | J27: ft to m | K27: m | L27: 319.0504485
A28: RSMeans | B28: 32 31 13.20 2100 | C28: Fence chain link industrial, 5'0" high fence, 9 ga, no barbed wire, 2" line post, 10' oc, 1-5/8" top post, galvanized steel, in concrete | E28: 28.5 | F28: 2018 | G28: 1.051 | H28: =(1+Assumptions!$D$14)^(YEAR(NOW())-F28) -> 1.03 | I28: ft | J28: ft to m | K28: m | L28: 101.2208169
A29: RSMeans | B29: 32 31 13.20 5020 | C29: Fence chain link industrial, double swing gates including posts and hardware, 20' opening, in concrete | E29: 1275 | F29: 2018 | G29: 1.051 | H29: =(1+Assumptions!$D$14)^(YEAR(NOW())-F29) -> 1.03 | I29: each | J29: each | K29: each | L29: 1380.22575
A30: RSMeans | B30: 31 23 23.20 2175 | C30: Trucking, avg 40 mph, 6 mile cycle, 18 c.y. 8 wheel truck | D30: Trucking | E30: 167 | F30: 2018 | G30: 1.051 | H30: =(1+Assumptions!$D$14)^(YEAR(NOW())-F30) -> 1.03 | I30: hour | J30: hour | K30: hour | L30: 180.78251
A31: RSMeans | B31: 01 56 26.50 0620 | C31: Plastic safety fencing, heavy duty, 4', posts at 10' | D31: Safety fencing | E31: 5.45 | F31: 2018 | G31: 1.051 | H31: =(1+Assumptions!$D$14)^(YEAR(NOW())-F31) -> 1.03 | I31: ft | J31: ft to m | K31: m | L31: 19.35626148
A32: RSMeans | B32: 31 14 13.23 1420 | C32: Remove and stockpile top soil on site, 6" deep, 200' haul | D32: Top soil hauling | E32: 2.65 | F32: 2018 | G32: 1.051 | H32: =(1+Assumptions!$D$14)^(YEAR(NOW())-F32) -> 1.03 | I32: cy | J32: c.y. to m3 | K32: m3 | L32: 3.75212313
A33: RSMeans | B33: 32 91 19.13 0400 | C33: Top soil placement and grading, spread from pile to rough finish grade, f.e. loader, 1.5 cy | D33: Top soil placement | E33: 6.35 | F33: 2018 | G33: 1.051 | H33: =(1+Assumptions!$D$14)^(YEAR(NOW())-F33) -> 1.03 | I33: cy | J33: c.y. to m3 | K33: m3 | L33: 8.990936558
A34: RSMeans | B34: 32 91 19.13 0400 | C34: Compost placement assumed same as Top soil placement and grading, spread from pile to rough finish grade, f.e. loader, 1.5 cy | D34: Compost placement | E34: =E33 -> 6.35 | F34: 2018 | G34: 1.051 | H34: =(1+Assumptions!$D$14)^(YEAR(NOW())-F34) -> 1.03 | I34: cy | J34: c.y. to m3 | K34: m3 | L34: 8.990936558
A35: RSMeans | B35: 32 91 13.23 6250 | C35: Tilling topsoil, 26" rototiller, 6" deep | D35: Compost Till | E35: 0.74 | F35: 2018 | G35: 1.051 | H35: =(1+Assumptions!$D$14)^(YEAR(NOW())-F35) -> 1.03 | I35: sy | J35: sy to m2 | K35: m2 | L35: 0.9580743405
A36: RSMeans | B36: 32 91 13.23 1800 | C36: Structural soil mixing, rolling top soil, hand push roller | D36: Roll the tilled soil | E36: 0.15 | F36: 2018 | G36: 1.051 | H36: =(1+Assumptions!$D$14)^(YEAR(NOW())-F36) -> 1.03 | I36: ft2 | J36: ft2 to m2 | K36: m2 | L36: 1.747839144
A37: RSMeans | B37: G1030 805 1330 | C37: Trenching and backfill, common earth, no slope, 2' wide, 4' deep, 3/8 cy bucket | D37: Trenching: trenching and backfill | E37: 5.25 | F37: 2018 | G37: 1.051 | H37: =(1+Assumptions!$D$14)^(YEAR(NOW())-F37) -> 1.03 | I37: ft | J37: ft to m | K37: m | L37: 18.64593996
A38: RSMeans | B38: G1030 805 1340 | C38: Trenching and backfill, common earth, no slope, 2' wide, 6' deep, 3/8 cy bucket | D38: Trenching | E38: 6.94 | F38: 2018 | G38: 1.051 | H38: =(1+Assumptions!$D$14)^(YEAR(NOW())-F38) -> 1.03 | I38: ft | J38: ft to m | K38: m | L38: 24.64815682
A39: RSMeans | B39: G1030 815 1500 | C39: Pipe bedding, side slope 0 - 1, 1' wide, 12" pipe | D39: Trenching: bedding | E39: 5.83 | F39: 2018 | G39: 1.051 | H39: =(1+Assumptions!$D$14)^(YEAR(NOW())-F39) -> 1.03 | I39: ft | J39: ft to m | K39: m | L39: 20.70587238
A40: RSMeans | B40: G1030 815 1580 | C40: Pipe bedding, side slope 0 - 1, 1' wide, 18" pipe | D40: Trenching: bedding | E40: 9.83 | F40: 2018 | G40: 1.051 | H40: =(1+Assumptions!$D$14)^(YEAR(NOW())-F40) -> 1.03 | I40: ft | J40: ft to m | K40: m | L40: 34.91230282
A41: RSMeans | B41: 30 30 53.40 4750 0011 | C41: Misc. cast-in-place concrete, slab on grade, not including finish, formed vertical outside edge, earthen bottom and inside slope, 24" deep by 24" bottom, unreinforced | E41: 40 | F41: 2018 | G41: 1.051 | H41: =(1+Assumptions!$D$14)^(YEAR(NOW())-F41) -> 1.03 | I41: ft | J41: ft to m | K41: m | L41: 142.0643045
A42: RSMeans | B42: 31 05 19.53 0011 | C42: Reservoir liners HDPE, membrane lining, 30 mil thick | D42: Impermeable membrane: 0.762 mm HDPE liner 33 47 13.53 1100 | E42: 1.49 | F42: 2018 | G42: 1.051 | H42: =(1+Assumptions!$D$14)^(YEAR(NOW())-F42) -> 1.03 | I42: ft2 | J42: ft2 to m2 | K42: m2 | L42: 17.36186883
A43: RSMeans | B43: 01 54 36.50 1200 | C43: General delivery, small equip. stored in back of ot towed by pickup truck, 2 hours | D43: General delivery | E43: 190 | F43: 2018 | G43: 1.051 | H43: =(1+Assumptions!$D$14)^(YEAR(NOW())-F43) -> 1.03 | I43: each | J43: each | K43: each | L43: 205.6807
A44: RSMeans | B44: 33 41 16.30 2110 | C44: Pipe, perforated PVC, 6" | D44: Armtec - Pipe: 150 mm perforated monitoring pipes (L2) | E44: 15.25 | F44: 2018 | G44: 1.051 | H44: =(1+Assumptions!$D$14)^(YEAR(NOW())-F44) -> 1.03 | I44: ft | J44: ft to m | K44: m | L44: 54.16201608
A45: RSMeans | B45: 34 41 16.30 2120 | C45: Pipe, perforated PVC, 8" | D45: Armtec - Pipe: 200 mm perforated pipe (L1) | E45: 18.3 | F45: 2018 | G45: =IF(A45="rsmeans",1.051,1) -> 1.051 | H45: =(1+Assumptions!$D$14)^(YEAR(NOW())-F45) -> 1.03 | I45: ft | J45: ft to m | K45: m | L45: 64.99441929
A46: RSMeans | B46: 35 41 16.30 2140 | C46: Pipe, perforated PVC, 12" | D46: Armtec - Pipe: 300 mm perforated (L3) | E46: 27 | F46: 2018 | G46: 1.051 | H46: =(1+Assumptions!$D$14)^(YEAR(NOW())-F46) -> 1.03 | I46: ft | J46: ft to m | K46: m | L46: 95.89340551
A47: RSMeans | B47: 33 31 11.25 2040 | C47: Pipe: Sewage collection PVC SDR 35 4" (100 mm) | D47: Armtec - Pipe: 100 mm solid pipe (L4) | E47: 6.15 | F47: 2018 | G47: 1.051 | H47: =(1+Assumptions!$D$14)^(YEAR(NOW())-F47) -> 1.03 | I47: ft | J47: ft to m | K47: m | L47: 21.84238681
A48: RSMeans | B48: 33 31 11.25 2060 | C48: Pipe: Sewage collection PVC SDR 35 6" (150 mm) | D48: Armtec - Pipe: 150 mm solid pipes (L2) | E48: 8.5 | F48: 2018 | G48: 1.051 | H48: =(1+Assumptions!$D$14)^(YEAR(NOW())-F48) -> 1.03 | I48: ft | J48: ft to m | K48: m | L48: 30.1886647
A49: RSMeans | B49: 33 31 11.25 2080 | C49: Pipe: Sewage collection PVC SDR 35 8" (200 mm) | D49: Armtec - Pipe: 200 mm solid pipes (L1) | E49: 12.05 | F49: 2018 | G49: 1.051 | H49: =(1+Assumptions!$D$14)^(YEAR(NOW())-F49) -> 1.03 | I49: ft | J49: ft to m | K49: m | L49: 42.79687172
A50: RSMeans | B50: 33 31 11.25 2160 | C50: Pipe: Sewage collection PVC SDR 35 12" (300 mm) | D50: Armtec - Pipe: 300 mm solid pipes (L1) | E50: 21 | F50: 2018 | G50: 1.051 | H50: =(1+Assumptions!$D$14)^(YEAR(NOW())-F50) -> 1.03 | I50: ft | J50: ft to m | K50: m | L50: 74.58375984
A51: RSMeans | B51: 33 31 11.25 2300 | C51: Pipe: Sewage collection PVC SDR 35 18" (450 mm) | D51: Armtec - Pipe: 300 mm solid pipes (L1) | E51: 27.5 | F51: 2018 | G51: 1.051 | H51: =(1+Assumptions!$D$14)^(YEAR(NOW())-F51) -> 1.03 | I51: ft | J51: ft to m | K51: m | L51: 97.66920932
A52: RSMeans | B52: 34 31 11.20 3140 | C52: Pipe: Sewage collection, plastic pipe 24" diameter (600 mm) | E52: 32 | F52: 2018 | G52: =IF(A52="rsmeans",1.051,1) -> 1.051 | H52: =(1+Assumptions!$D$14)^(YEAR(NOW())-F52) -> 1.03 | I52: ft | J52: =VLOOKUP(I52,$J$227:$M$245,2,FALSE) -> ft to m | K52: =VLOOKUP(I52,$J$227:$M$245,4,FALSE) -> m | L52: 113.6514436
A53: RSMeans | B53: 34 31 11.20 3160 | C53: Pipe: Sewage collection, plastic pipe 30" diameter (750 mm) | E53: 42.5 | F53: 2018 | G53: 1.051 | H53: =(1+Assumptions!$D$14)^(YEAR(NOW())-F53) -> 1.03 | I53: ft | J53: ft to m | K53: m | L53: 150.9433235
A54: RSMeans | B54: 34 31 11.20 3180 | C54: Pipe: Sewage collection, plastic pipe 36" diameter (900 mm) | E54: 52 | F54: 2018 | G54: 1.051 | H54: =(1+Assumptions!$D$14)^(YEAR(NOW())-F54) -> 1.03 | I54: ft | J54: ft to m | K54: m | L54: 184.6835958
A55: RSMeans | B55: 33 42 11.50 1040 | C55: Pipe: corrugated HDPE type S, with gaskets, 12" | D55: Armtec - PipeL 300 mm solid Armtec 2000 | E55: 12.3 | F55: 2018 | G55: 1.051 | H55: =(1+Assumptions!$D$14)^(YEAR(NOW())-F55) -> 1.03 | I55: ft | J55: ft to m | K55: m | L55: 43.68477362
A56: RSMeans | B56: 33 05 61.10 4210 | C56: Storm drainage manholes, frames and covers, rubber boot 6" diameter or smaller (includes labor) | D56: Armtec fittings: 150 mm manhole/catchbasin adaptor | E56: 122 | F56: 2018 | G56: 1.051 | H56: =(1+Assumptions!$D$14)^(YEAR(NOW())-F56) -> 1.03 | I56: each | J56: each | K56: each | L56: 132.06866
A57: RSMeans | B57: 33 05 61.10 4215 | C57: Storm drainage manholes, frames and covers, rubber boot 8" diameter (includes labor) | D57: Armtec - Pipe: 200 solid manhold adaptor: material | E57: 137 | F57: 2018 | G57: 1.051 | H57: =(1+Assumptions!$D$14)^(YEAR(NOW())-F57) -> 1.03 | I57: each | J57: each | K57: each | L57: 148.30661
A58: RSMeans | B58: 33 05 61.10 4225 | C58: Storm drainage manholes, frames and covers, rubber boot 12" diameter (includes labor) | D58: Armtec - Pipe: 300 mm solid manhole adaptor: material | E58: 202 | F58: 2018 | G58: 1.051 | H58: =(1+Assumptions!$D$14)^(YEAR(NOW())-F58) -> 1.03 | I58: each | J58: each | K58: each | L58: 218.67106
A59: RSMeans | B59: 33 05 61.10 4235 | C59: Storm drainage manholes, frames and covers, rubber boot 18" diameter (includes labor) | E59: 293 | F59: 2018 | G59: 1.051 | H59: =(1+Assumptions!$D$14)^(YEAR(NOW())-F59) -> 1.03 | I59: each | J59: each | K59: each | L59: 317.18129
A60: RSMeans | B60: 33 05 61.10 4240 | C60: Storm drainage manholes, frames and covers, rubber boot 24" diameter (includes labor) | D60: Armtec - Pipe: 600 mm solid manhole adaptor: material | E60: 330 | F60: 2018 | G60: 1.051 | H60: =(1+Assumptions!$D$14)^(YEAR(NOW())-F60) -> 1.03 | I60: each | J60: each | K60: each | L60: 357.2349
A61: RSMeans | B61: 33 05 61.10 4245 | C61: Storm drainage manholes, frames and covers, rubber boot 30" diameter (includes labor) | E61: 425 | F61: 2018 | G61: =IF(A61="rsmeans",1.051,1) -> 1.051 | H61: =(1+Assumptions!$D$14)^(YEAR(NOW())-F61) -> 1.03 | I61: each | J61: =VLOOKUP(I61,$J$227:$M$245,2,FALSE) -> each | K61: =VLOOKUP(I61,$J$227:$M$245,4,FALSE) -> each | L61: 460.07525
A62: RSMeans | B62: 33 14 19.10 3816 | C62: Valves and hdrants for water utility service, gate valves, C.I. 125 psi, mechanical joint, 8" dia. (200 mm) | E62: 2475 | F62: 2018 | G62: 1.051 | H62: =(1+Assumptions!$D$14)^(YEAR(NOW())-F62) -> 1.03 | I62: each | J62: each | K62: each | L62: 2679.26175
A63: RSMeans | B63: 33 14 19.10 3820 | C63: Valves and hdrants for water utility service, gate valves, C.I. 125 psi, mechanical joint, 12" dia. (300 mm) | E63: 5525 | F63: 2018 | G63: 1.051 | H63: =(1+Assumptions!$D$14)^(YEAR(NOW())-F63) -> 1.03 | I63: each | J63: each | K63: each | L63: 5980.97825
A64: RSMeans | B64: 33 14 19.10 3824 | C64: Valves and hdrants for water utility service, gate valves, C.I. 125 psi, mechanical joint, 16" dia. (400 mm) | E64: 17000 | F64: 2018 | G64: =IF(A64="rsmeans",1.051,1) -> 1.051 | H64: =(1+Assumptions!$D$14)^(YEAR(NOW())-F64) -> 1.03 | I64: each | J64: =VLOOKUP(I64,$J$227:$M$245,2,FALSE) -> each | K64: =VLOOKUP(I64,$J$227:$M$245,4,FALSE) -> each | L64: 18403.01
A65: RSMeans | B65: 33 14 19.10 3826 | C65: Valves and hdrants for water utility service, gate valves, C.I. 125 psi, mechanical joint, 18" dia. (450 mm) | E65: 20400 | F65: 2018 | G65: =IF(A65="rsmeans",1.051,1) -> 1.051 | H65: =(1+Assumptions!$D$14)^(YEAR(NOW())-F65) -> 1.03 | I65: each | J65: =VLOOKUP(I65,$J$227:$M$245,2,FALSE) -> each | K65: =VLOOKUP(I65,$J$227:$M$245,4,FALSE) -> each | L65: 22083.612
A66: RSMeans | B66: 33 14 19.10 3830 | C66: Valves and hdrants for water utility service, gate valves, C.I. 125 psi, mechanical joint, 24" dia. (600 mm) | E66: 41300 | F66: 2018 | G66: 1.051 | H66: =(1+Assumptions!$D$14)^(YEAR(NOW())-F66) -> 1.03 | I66: each | J66: each | K66: each | L66: 44708.489
A67: NDS 2018 Price List | C67: 8" Round Grate (material only from NDS, 1/2 hour labor added) | E67: =17.65*Assumptions!D20+L209/2 -> 56.46519063 | F67: 2018 | G67: 1 | H67: =(1+Assumptions!$D$14)^(YEAR(NOW())-F67) -> 1.03 | I67: each | J67: each | K67: each | L67: =IF(ISNUMBER(M67),M67,E67*H67*G67*VLOOKUP(J67,$K$227:$L$245,2,FALSE)) -> 58.15914634
A68: NDS 2018 Price List | C68: 12" Round Grate (material only from NDS, 1/2 hour labor added) | E68: =87.84*Assumptions!D20+L209/2 -> 150.5197906 | F68: 2018 | G68: 1 | H68: =(1+Assumptions!$D$14)^(YEAR(NOW())-F68) -> 1.03 | I68: each | J68: each | K68: each | L68: 155.0353843
A69: RSMeans | B69: Standard Crew, B6 | C69: 2 laborers, 1 equip. operator (light), 1 backhoe operator (48 h) | E69: 80.57 | F69: 2018 | G69: 1.051 | H69: =(1+Assumptions!$D$14)^(YEAR(NOW())-F69) -> 1.03 | I69: each | J69: each | K69: each | L69: 87.2194421
A70: RSMeans | B70: Standard Crew, B1 | C70: I labor foreman (outside) + 2 laborers, 1 hour each, Including markup | D70: General: labour | E70: 124.45 | F70: 2018 | G70: 1.051 | H70: =(1+Assumptions!$D$14)^(YEAR(NOW())-F70) -> 1.03 | I70: each | J70: each | K70: each | L70: 134.7208585
A71: RSMeans | B71: 33 31 11.25 3910 | C71: Pipe: Sewage collection PVC tees 8", labor component + markup | D71: Tees: labour | E71: =64.5*1.29 -> 83.205 | F71: 2018 | G71: 1.051 | H71: =(1+Assumptions!$D$14)^(YEAR(NOW())-F71) -> 1.03 | I71: each | J71: each | K71: each | L71: 90.07190865
A72: RSMeans | B72: Standard Crew, Q1 | C72: I labor foreman (outside) + 2 laborers, 2 hour each, Including markup | D72: Manhole/Catchbasin adaptor: labour | E72: =2*E70 -> 248.9 | F72: 2018 | G72: 1.051 | H72: =(1+Assumptions!$D$14)^(YEAR(NOW())-F72) -> 1.03 | I72: each | J72: each | K72: each | L72: 269.441717
A73: RSMeans | B73: 33 31 11.25 3670 | C73: Pipe: Sewage collection PVC SDR 35, end cap, 6" | D73: Armtec fittings: 150 mm end caps or footplates | E73: 48 | F73: 2018 | G73: 1.051 | H73: =(1+Assumptions!$D$14)^(YEAR(NOW())-F73) -> 1.03 | I73: each | J73: each | K73: each | L73: 51.96144
A74: RSMeans | B74: 34 31 11.25 3671 | C74: Pipe: Sewage collection PVC SDR 35, end cap, 8" | D74: Armtec fittings: 200 mm end caps or footplates | E74: 56.5 | F74: 2018 | G74: 1.051 | H74: =(1+Assumptions!$D$14)^(YEAR(NOW())-F74) -> 1.03 | I74: each | J74: each | K74: each | L74: 61.162945
A75: RSMeans | B75: 35 31 11.25 3673 | C75: Pipe: Sewage collection PVC SDR 35, end cap, 12" | D75: Armtec fittings: 300 mm end caps or footplates | E75: 180 | F75: 2018 | G75: 1.051 | H75: =(1+Assumptions!$D$14)^(YEAR(NOW())-F75) -> 1.03 | I75: each | J75: each | K75: each | L75: 194.8554
A76: RSMeans | B76: 33 14 13.25 8520 | C76: water supply PVC pipe, repair coupling, 6" | D76: Armtec fittings: 150 mm coupler | E76: 57 | F76: 2018 | G76: 1.051 | H76: =(1+Assumptions!$D$14)^(YEAR(NOW())-F76) -> 1.03 | I76: each | J76: each | K76: each | L76: 61.70421
A77: RSMeans | B77: 33 31 11.25 3160 | C77: Pipe: Sewage collection PVC tees 6" | D77: Armtec fittings: 100-150 mm tees | E77: 138 | F77: 2018 | G77: 1.051 | H77: =(1+Assumptions!$D$14)^(YEAR(NOW())-F77) -> 1.03 | I77: each | J77: each | K77: each | L77: 149.38914
A78: RSMeans | B78: 33 31 11.25 3910 | C78: Pipe: Sewage collection PVC tees 8" | D78: Armtec fittings: 200 mm tees | E78: 191 | F78: 2018 | G78: 1.051 | H78: =(1+Assumptions!$D$14)^(YEAR(NOW())-F78) -> 1.03 | I78: each | J78: =VLOOKUP(I78,$J$227:$M$245,2,FALSE) -> each | K78: =VLOOKUP(I78,$J$227:$M$245,4,FALSE) -> each | L78: 206.76323
A79: RSMeans | B79: 33 14 13.15 6180 | C79: water supply ductile iron pipe, cap, 6" | D79: Armtec fittings: Cast iron caps | E79: 218 | F79: 2018 | G79: 1.051 | H79: =(1+Assumptions!$D$14)^(YEAR(NOW())-F79) -> 1.03 | I79: each | J79: each | K79: each | L79: 235.99154
A80: HARCO PRICE LIST 2019 | B80: http://www.harcofittings.com . | C80: Domed grate, 8" (material price only from HARCO, 1/2 hr labour added) | D80: Armtec fittings: Overflow inlet guard | E80: =35*Assumptions!D20+L209/2 -> 79.71419063 | F80: 2019 | G80: 1 | H80: =(1+Assumptions!$D$14)^(YEAR(NOW())-F80) -> 1 | I80: each | J80: each | K80: each | L80: 79.71419063
A81: RSMeans | B81: 22 05 23.60 3320 | C81: valves, plastic, ball check PVC 4" | D81: Armtec fittings: Canpipe 4" ball valve | E81: 675 | F81: 2018 | G81: 1.051 | H81: =(1+Assumptions!$D$14)^(YEAR(NOW())-F81) -> 1.03 | I81: each | J81: each | K81: each | L81: 730.70775
A82: RSMeans | B82: 32 11 23.23 1511 | C82: Aggegate base courses, base course drainage layers, alternate method to figure base course, crushed stone, 3/4" compacted, 6" deep | D82: Stone: 19 mm clear limestone material | E82: 42 | F82: 2018 | G82: 1.051 | H82: =(1+Assumptions!$D$14)^(YEAR(NOW())-F82) -> 1.03 | I82: cy | J82: c.y. to m3 | K82: m3 | L82: 59.46761188
A83: RSMeans | B83: 32 11 23.23 1521 | C83: Aggegate base courses, base course drainage layers, alternate method to figure base course, crushed stone, 1 1/2" compacted, 6" deep | D83: Stone: 50 mm material | E83: 41 | F83: 2018 | G83: 1.051 | H83: =(1+Assumptions!$D$14)^(YEAR(NOW())-F83) -> 1.03 | I83: m3 | J83: m3 to m3 | K83: m3 | L83: 44.38373
A84: RSMeans | B84: 32 91 13.16 1300 | C84: stone mulch, hand spread, granite chips, labour portion plus 34% markup | D84: Stone/rock: labour hand spread | E84: =1.34*97.5 -> 130.65 | F84: 2018 | G84: =IF(A84="rsmeans",1.051,1) -> 1.051 | H84: =(1+Assumptions!$D$14)^(YEAR(NOW())-F84) -> 1.03 | I84: cy | J84: c.y. to m3 | K84: m3 | L84: 184.9867498
A85: GINKGOROOFS | C85: Pea gravel: material, labour (hand spread), 4" depth | D85: Pea gravel: material | E85: 50.34 | F85: 2019 | G85: 1 | H85: =(1+Assumptions!$D$14)^(YEAR(NOW())-F85) -> 1 | I85: m3 | J85: m3 to m3 | K85: m3 | L85: 50.34
A86: RSMeans | B86: 31 37 13.10 0300 | C86: Riprap and rock lining, dumped, 50 lb average (original cost per ton converted to y2 at 1224 kg/y³) | E86: =31*(2200/2000)*1.22 -> 41.602 | F86: 2018 | G86: 1.051 | H86: =(1+Assumptions!$D$14)^(YEAR(NOW())-F86) -> 1.03 | I86: cy | J86: c.y. to m3 | K86: m3 | L86: 58.90408546
A87: RSMeans | B87: 31 32 19.16 1500 | C87: geotextile soil stabilizarion, geotextile fabric, woven, 200 lb tensile strength | D87: Geotextile: material | E87: 1.42 | F87: 2018 | G87: 1.051 | H87: =(1+Assumptions!$D$14)^(YEAR(NOW())-F87) -> 1.03 | I87: SY | J87: sy to m2 | K87: m2 | L87: 1.838466978
A88: CVC | C88: Filter media plus delivery | D88: Filter media plus delivery (Grobark) | E88: 42 | F88: 2018 | G88: 1 | H88: =(1+Assumptions!$D$14)^(YEAR(NOW())-F88) -> 1.03 | I88: lm3 | J88: m3 to m3 | K88: Lm3 | L88: 43.26
A89: RSMeans | B89: 31 23 23.14 2000 | C89: Backfill, structural, dozer or FE loader, from existing stockpile, no compaction, 80 HP, 50' haul, sand & gravel | D89: Backfill: labour, equip. | E89: 1.27 | F89: 2018 | G89: 1.051 | H89: =(1+Assumptions!$D$14)^(YEAR(NOW())-F89) -> 1.03 | I89: lcy | J89: LCY to m3 | K89: m3 | L89: 1.798187312
A90: RSMeans | B90: 31 23 23.17 0170 | C90: General fill, spread fill from stockpile with 2 1/2 cy bucket F.E. loader, 130 HP, 300' haul | D90: Backfill: excavation | E90: 3.7 | F90: 2018 | G90: 1.051 | H90: =(1+Assumptions!$D$14)^(YEAR(NOW())-F90) -> 1.03 | I90: lcy | J90: LCY to m3 | K90: m3 | L90: 5.238813427
A91: RSMeans | B91: 31 23 23.15 6075 | C91: Borrow, loading and/or spreading, clay, till or blasted rock, front end loader, track mounted, 3 cu.yd. bucket | E91: 15.9 | F91: 2018 | G91: 1.051 | H91: =(1+Assumptions!$D$14)^(YEAR(NOW())-F91) -> 1.03 | I91: bcy | J91: c.y. to m3 | K91: bm3 | L91: 22.51273878
A92: RSMeans | B92: 32 16 13.13 0430 | C92: Curb and gutter, straight, 6" high curb, 6" thick gutter, wood forms, 24" wide, 0.055 cy/ft | D92: Curbs & gutter with curb inlets: materials | E92: 27 | F92: 2018 | G92: 1.051 | H92: =(1+Assumptions!$D$14)^(YEAR(NOW())-F92) -> 1.03 | I92: ft | J92: ft to m | K92: m | L92: 95.89340551
A93: RSMeans | B93: 33 42 11.60 2010 | C93: Sewage/drainage collection, concrete pipe, flaired ends, 12" | D93: Culvert headwall | E93: 350 | F93: 2018 | G93: 1.051 | H93: =(1+Assumptions!$D$14)^(YEAR(NOW())-F93) -> 1.03 | I93: each | J93: each | K93: each | L93: 378.8855
A94: RSMeans | B94: 33 42 11.60 2010 | C94: Sewage/drainage collection, concrete pipe, Reinforced culvert, class 3, no gaskets, 12" | D94: NEW FOR CULVERTS (STEP used 300 mm solid pipe from Armtec) | E94: 36.5 | F94: 2018 | G94: 1.051 | H94: =(1+Assumptions!$D$14)^(YEAR(NOW())-F94) -> 1.03 | I94: ft | J94: ft to m | K94: m | L94: 129.6336778
A95: RSMeans | B95: 33 05 61.10 1110 | C95: Storm drainage manholes, frames and covers, precast, 4' ID, 4' deep | D95: Catchbasin frame and cover materials | E95: 1500 | F95: 2018 | G95: 1.051 | H95: =(1+Assumptions!$D$14)^(YEAR(NOW())-F95) -> 1.03 | I95: each | J95: each | K95: each | L95: 1623.795
A96: RSMeans | B96: 32 92 23.10 0020 | C96: Sodding, 1" deep blue grass sod on level ground, over 4,000 sf | D96: Sod: material | E96: =425/1000 -> 0.425 | F96: 2018 | G96: 1.051 | H96: =(1+Assumptions!$D$14)^(YEAR(NOW())-F96) -> 1.03 | I96: ft2 | J96: ft2 to m2 | K96: m2 | L96: 4.952210908
A97: RSMeans | B97: 32 91 13.26 4100 | C97: Planting beds, remove sod, sod cutter | D97: assumed twice sodding | E97: 0.79 | F97: 2018 | G97: 1.051 | H97: =(1+Assumptions!$D$14)^(YEAR(NOW())-F97) -> 1.03 | I97: sy | J97: sy to m2 | K97: m2 | L97: 1.022809093
A98: RSMeans | B98: 32 16 13.23 0550 | C98: Precast concrete Curb and gutter, straight, 6" x 18" | D98: Check dam: 0.3 m curb | E98: 16.9 | F98: 2018 | G98: 1.051 | H98: =(1+Assumptions!$D$14)^(YEAR(NOW())-F98) -> 1.03 | I98: ft | J98: ft to m | K98: m | L98: 60.02216864
A99: Filtrexx ( https://www.filtrexx.com/en/resources/bmp-comparison ) | C99: 12" Filtrexx® SiltSoxx™, original price in USD Jan 2019, assumes local sourcing plus 15% shipping | D99: Check dam: 12" biofilter sock | E99: =3.81*1.15 -> 4.3815 | F99: 2018 | G99: =Assumptions!$D$20 -> 1.34 | H99: =(1+Assumptions!$D$14)^(YEAR(NOW())-F99) -> 1.03 | I99: ft | J99: ft to m | K99: m | L99: 19.840375
A100: RSMeans | B100: 32 16 13.43 1100 | C100: Stone Curb, granite, split face, straight, 6" x 18" | D100: Check dam: linked to rock above | E100: 37.5 | F100: 2018 | G100: =IF(A100="rsmeans",1.051,1) -> 1.051 | H100: =(1+Assumptions!$D$14)^(YEAR(NOW())-F100) -> 1.03 | I100: ft | J100: ft to m | K100: m | L100: 133.1852854
A101: RSMeans | B101: 32 11 23.23 1523 | C101: Base course drainage layer, crushed stone, compacted, 1 1/2", 12" deep, excluding material cost | D101: Pea gravel: labour (hand spreading) | E101: 10 | F101: 2018 | G101: 1.051 | H101: =(1+Assumptions!$D$14)^(YEAR(NOW())-F101) -> 1.03 | I101: cy | J101: c.y. to m3 | K101: m3 | L101: 14.15895521
A102: RSMeans | B102: 31 23 23.23 7200 | C102: Compact stone: 21" wide walk-behind vibrating plate compactor, 2 passes, 12" lifts | D102: Compact stone: 21" wide walk-behind vibrating plate compactor, 2 passes, 6" lifts labour | E102: 0.95 | F102: 2018 | G102: 1.051 | H102: =(1+Assumptions!$D$14)^(YEAR(NOW())-F102) -> 1.03 | I102: ecy | J102: c.y. to m3 | K102: Em3 | L102: 1.345100745
A103: RSMeans | B103: 31 23 23.24 0600 | C103: Compaction structural, 8" lifts with vibrating plate, common fill | D103: Compact stone: 200 mm lifts with vibrating plate compactor | E103: 2.6 | F103: 2018 | G103: 1.051 | H103: =(1+Assumptions!$D$14)^(YEAR(NOW())-F103) -> 1.03 | I103: ecy | J103: c.y. to m3 | K103: Em3 | L103: 3.681328354
A104: RSMeans | B104: 32 11 23.23 7000 | C104: Base course drainage layers, prepare and roll sub-base, small areas to 2500 sy | D104: Compact of native soil: 30,000 lb grader + 25T vibratory roller labour | E104: 2.15 | F104: 2018 | G104: 1.051 | H104: =(1+Assumptions!$D$14)^(YEAR(NOW())-F104) -> 1.03 | I104: sy | J104: sy to m2 | K104: m2 | L104: 2.783594368
A105: RSMeans | B105: 32 11 23.23 0303 | C105: Base course drainage layers, for roadways and large areas, crushed 1 1/2" stone compacted to 8" deep excluding material cost | D105: Compact sub-base: 30,000 lb grader, 1.5 cy front-end loader, 300 hp dozer, 25 T vibratory roller, truck tractor & water tank trailer + 1 labour foreman + 2 labourers labour | E105: =12.1-9.05 -> 3.05 | F105: 2018 | G105: 1.051 | H105: =(1+Assumptions!$D$14)^(YEAR(NOW())-F105) -> 1.03 | I105: sy | J105: sy to m2 | K105: m2 | L105: 3.948819917
A106: RSMeans | B106: 32 11 23.23 0100 | C106: Base course drainage layers, for roadways and large areas, crushed 3/4" stone base, compacted to 6" deep excluding material cost | D106: Compact base: 30,000 lb grader, 300 hp dozer, 25 T vibratory roller, truck tractor & water tank trailer + 1 labour foreman labour | E106: =7.4-5.4 -> 2 | F106: 2018 | G106: 1.051 | H106: =(1+Assumptions!$D$14)^(YEAR(NOW())-F106) -> 1.03 | I106: sy | J106: sy to m2 | K106: m2 | L106: 2.589390109
A107: RSMeans | B107: 31 23 23.23 7020 | C107: Compact stone: 18" wide walk-behind vibrating plate compactor, 3 passes, 6" lifts | D107: Compact backfill: walk-behind vibrating plate labour | E107: 2.81 | F107: 2018 | G107: 1.051 | H107: =(1+Assumptions!$D$14)^(YEAR(NOW())-F107) -> 1.03 | I107: ecy | J107: c.y. to m3 | K107: Em3 | L107: 3.978666414
A108: RSMeans | B108: 01 45 23.50 4900 | C108: Proctor compaction, 4" standard mold, ASTM D 698 | D108: Proctor test | E108: 135 | F108: 2018 | G108: 1.051 | H108: =(1+Assumptions!$D$14)^(YEAR(NOW())-F108) -> 1.03 | I108: each | J108: each | K108: each | L108: 146.14155
A109: RSMeans | B109: 01 45 23.50 4735 | C109: 'Soil density nuclear testing ASTM D 2922 | D109: Nuclear density test | E109: 38.5 | F109: 2018 | G109: 1.051 | H109: =(1+Assumptions!$D$14)^(YEAR(NOW())-F109) -> 1.03 | I109: each | J109: each | K109: each | L109: 41.677405
A110: RSMeans | B110: 01 54 36.50 1700 | C110: Eqiuipment mobilization, up to 25 mi. haul distance, crane, truck mounted, up to 75 ton (driver only) - doubled to account for demobilization | D110: Crane - 55 ton mobilization | E110: =2*169 -> 338 | F110: 2018 | G110: 1.051 | H110: =(1+Assumptions!$D$14)^(YEAR(NOW())-F110) -> 1.03 | I110: each | J110: each | K110: each | L110: 365.89514
A111: RSMeans | B111: 01 54 36.50 1800 | C111: Eqiuipment mobilization, up to 25 mi. haul distance, crane, truck mounted, over 75 ton (with chase vehicle) - doubled to account for demobilization | D111: Crane - 100 ton mobilization | E111: =545*2 -> 1090 | F111: 2018 | G111: 1.051 | H111: =(1+Assumptions!$D$14)^(YEAR(NOW())-F111) -> 1.03 | I111: each | J111: each | K111: each | L111: 1179.9577
A112: RSMeans | B112: 01 54 19.50 0400 + 01 54 33.60 2620 | C112: Lifting and housting equipment, rental without operators, truck-mounted hydraulic, 55 ton capacity + Temporary cranes, daily crane crews for small jobs, portal to portal, 55 ton truck-mounted hydraulic crane | D112: Crane - 55 ton | E112: =993.8+2925 -> 3918.8 | F112: 2018 | G112: 1.051 | H112: =(1+Assumptions!$D$14)^(YEAR(NOW())-F112) -> 1.03 | I112: each | J112: each | K112: each | L112: 4242.218564
A113: RSMeans | B113: 01 54 19.50 0500 + 01 54 33.60 2720 | C113: Lifting and housting equipment, rental without operators, truck-mounted hydraulic, 100 ton capacity + Temporary cranes, daily crane crews for small jobs, portal to portal, 80 ton truck-mounted hydraulic crane | D113: Crane - 100 ton | E113: =1533+3750 -> 5283 | F113: 2018 | G113: 1.051 | H113: =(1+Assumptions!$D$14)^(YEAR(NOW())-F113) -> 1.03 | I113: each | J113: each | K113: each | L113: 5719.00599
A114: RSMeans | B114: 07 54 23.10 0200 | C114: thermoplastic polyolefin roofing (TPO), 60 mil membrane, heat welded seams, ballasted, fully adhered | D114: Waterproof Membrane - TPO: material | E114: =215/100 -> 2.15 | F114: 2018 | G114: 1.051 | H114: =(1+Assumptions!$D$14)^(YEAR(NOW())-F114) -> 1.03 | I114: ft2 | J114: ft2 to m2 | K114: m2 | L114: 25.05236106
A115: RSMeans | B115: 07 53 23.20 4800 | C115: EPDM roofing, 60 mils, 0.40 psf, fully adhered with adhesive | D115: Waterproof Membrane - EPDM: material | E115: =254/100 -> 2.54 | F115: 2018 | G115: 1.051 | H115: =(1+Assumptions!$D$14)^(YEAR(NOW())-F115) -> 1.03 | I115: ft2 | J115: ft2 to m2 | K115: m2 | L115: 29.59674284
A116: Intl. leak detection | D116: Water Leak Test - EFVM | E116: 13.99 | F116: 2018 | G116: 1 | H116: =(1+Assumptions!$D$14)^(YEAR(NOW())-F116) -> 1.03 | I116: m2 | J116: m2 to m2 | K116: m2 | L116: 14.4097
A117: GINKGOROOFS | C117: avg 20 mil | D117: Root Barrier: material | E117: 5.66 | F117: 2019 | G117: 1 | H117: =(1+Assumptions!$D$14)^(YEAR(NOW())-F117) -> 1 | I117: m2 | J117: m2 to m2 | K117: m2 | L117: 5.66
A118: GINKGOROOFS | C118: roof deck insulation, extruded polystyrene, 15 psi compresive strength, 4" thick, R20 | D118: Insulation: material | E118: 48.17 | F118: 2019 | G118: 1 | H118: =(1+Assumptions!$D$14)^(YEAR(NOW())-F118) -> 1 | I118: m2 | J118: m2 to m2 | K118: m2 | L118: 48.17
A119: 3RFoam | D119: Drainage Layer + Filter Cloth: material | E119: 11.09 | F119: 2018 | G119: 1 | H119: =(1+Assumptions!$D$14)^(YEAR(NOW())-F119) -> 1.03 | I119: m2 | J119: m2 to m2 | K119: m2 | L119: 11.4227
A120: RSMeans | B120: 32 84 13.10 1850 | C120: Subsurface drip irrigation, typical installation, 18"OC, small, maximum | D120: Irrigation System | E120: 2.35 | F120: 2018 | G120: 1.051 | H120: =(1+Assumptions!$D$14)^(YEAR(NOW())-F120) -> 1.03 | I120: ft2 | J120: ft2 to m2 | K120: m2 | L120: 27.38281326
A121: GINKGOROOFS | C121: Green roof systems, green roof edging treated lumber 4"x4", no hoisting included, (Treated wood edging material cost replaced with Permaloc GeoEdge Aluminum Edging, Geoedge 4.5"H x 4.5"W x 8' Mill Finish, unit price allows for a 4" overlap at joints Gertens Greenhouse, Mineaopolis, 2018 catalogue at https://www.gertens.com/downloads/Gertens2018_RetailHardscapeCatalog_Online.pdf) | D121: Aluminum Edging - 4.5" | E121: 49.02 | F121: 2019 | G121: 1 | H121: =(1+Assumptions!$D$14)^(YEAR(NOW())-F121) -> 1 | I121: m | J121: m to m | K121: m | L121: 49.02
A122: GINKGOROOFS | C122: Green roof systems, green roof edging treated lumber 4"x6", no hoisting included, (Treated wood edging material cost replaced with Permaloc GeoEdge Aluminum Edging, Geoedge 4.5"H x 6.5"W x 8' Mill Finish, unit price allows for a 4" overlap at joints Gertens Greenhouse, Mineaopolis, 2018 catalogue at https://www.gertens.com/downloads/Gertens2018_RetailHardscapeCatalog_Online.pdf) | D122: Aluminum Edging - 6.5" | E122: 81.46 | F122: 2019 | G122: 1 | H122: =(1+Assumptions!$D$14)^(YEAR(NOW())-F122) -> 1 | I122: m | J122: m to m | K122: m | L122: 81.46
A123: Stonehenge/Permaloc | D123: Aluminum Corners - 4.5" | E123: 43.06 | F123: 2018 | G123: 1 | H123: =(1+Assumptions!$D$14)^(YEAR(NOW())-F123) -> 1.03 | I123: each | J123: each | K123: each | L123: 44.3518
A124: Stonehenge/Permaloc | D124: Aluminum Corners - 6.5" | E124: 57.46 | F124: 2018 | G124: 1 | H124: =(1+Assumptions!$D$14)^(YEAR(NOW())-F124) -> 1.03 | I124: each | J124: each | K124: each | L124: 59.1838
A125: GINKGOROOFS | C125: Soil mix for green roof, hoist and spread soil mixtutre 4" depth, up to 5 story tall roof | D125: Growth Medium 4" TOTAL | E125: 45.43 | F125: 2019 | G125: 1 | H125: =(1+Assumptions!$D$14)^(YEAR(NOW())-F125) -> 1 | I125: m2 | J125: m2 to m2 | K125: m2 | L125: 45.43
A126: GINKGOROOFS | C126: Soil mix for green roof, hoist and spread soil mixtutre 6" depth, up to 5 story tall roof | D126: Growth Medium 6" TOTAL | E126: 58.89 | F126: 2019 | G126: 1 | H126: =(1+Assumptions!$D$14)^(YEAR(NOW())-F126) -> 1 | I126: m2 | J126: m2 to m2 | K126: m2 | L126: 58.89
A127: GINKGOROOFS | D127: Plants - Plugs TOTAL | E127: 126.44 | F127: 2019 | G127: 1 | H127: =(1+Assumptions!$D$14)^(YEAR(NOW())-F127) -> 1 | I127: m2 | J127: m2 to m2 | K127: m2 | L127: 126.44
A128: GINKGOROOFS | C128: Green roof systems, planting sedum mat per sf, including shipping (4000 sf minimum) | D128: Plants - Mats TOTAL | E128: 70.56 | F128: 2018 | G128: 1 | H128: =(1+Assumptions!$D$14)^(YEAR(NOW())-F128) -> 1.03 | I128: m2 | J128: m2 to m2 | K128: m2 | L128: 72.6768
A129: RSMeans | B129: 02 41 19.19 2000 | C129: Selective demolition, rubbish hauling, load, haul, dump and return, 0'-50' haul, hand carried | D129: 4": Labour to remove sedum, filter media and stone | E129: 46.5 | F129: 2018 | G129: 1.051 | H129: =(1+Assumptions!$D$14)^(YEAR(NOW())-F129) -> 1.03 | I129: cy | J129: c.y. to m3 | K129: m3 | L129: 65.83914172
A130: RSMeans | B130: 02 41 19.19 0940 | C130: Selective demolition, alternative pricing for dumpesters, disposal fee per ton, average all sizes (of dumpsters) | D130: Disposal by truck | E130: 97 | F130: 2018 | G130: 1.051 | H130: =(1+Assumptions!$D$14)^(YEAR(NOW())-F130) -> 1.03 | I130: ton | J130: ton-tonne | K130: tonne | L130: 95.28621597
A131: RSMeans | B131: 02 42 10.20 2010 | C131: Deconstruction of building components, Deconstruction of roofing and accessories, built up roofs | D131: Labour to remove membrane | E131: 1.7 | F131: 2018 | G131: 1.051 | H131: =(1+Assumptions!$D$14)^(YEAR(NOW())-F131) -> 1.03 | I131: ft2 | J131: ft2 to m2 | K131: m2 | L131: =IF(ISNUMBER(M131),M131,E131*H131*G131*VLOOKUP(J131,$K$227:$L$245,2,FALSE)) -> 19.80884363
A132: RSMeans | B132: 02 41 19.19 0122 | C132: Costing based on combination of: regular chute, 36" RSMeans 02 41 19.19 0122 (3 per 10ft); Top chute, circular steel, 4' long, 36" diameter, RSMeans 02 41 19.19 0120; Top chute, cover, RSMeans 02 41 19.19 0144; Top chute, trough, RSMeans 02 41 19.19 0148; Dust control device for dumpsters, RSMeans 02 41 19.19 0164; Bolt down frame and counterweights, RSMeans 02 41 19.19 0150 to 0156 (size based on weight od assembly). Average cost from 1 to 5 story building. | D132: Chute | E132: 1252 | F132: 2018 | G132: 1.051 | H132: =(1+Assumptions!$D$14)^(YEAR(NOW())-F132) -> 1.03 | I132: m | J132: m to m | K132: m | L132: 1355.32756
A133: GINKGOROOFS | C133: Weeding, $2 to $12.m2 | D133: Green roof weeding | E133: 7 | F133: 2019 | G133: 1 | H133: =(1+Assumptions!$D$14)^(YEAR(NOW())-F133) -> 1 | I133: m2 | J133: m2 to m2 | K133: m2 | L133: 7
A134: From original model, no ref. | C134: Green roof membrane repair | D134: Green roof Repair membrance | E134: 762 | F134: 2018 | G134: 1 | H134: =(1+Assumptions!$D$14)^(YEAR(NOW())-F134) -> 1.03 | I134: M2 | J134: m2 to m2 | K134: m2 | L134: 784.86
A135: RSMeans | B135: G3030 210 5820 | C135: Storm sewer assembly cost, manholes and catch basins, concrete, precast, 4' ID, 4' deep (includes excavation) | D135: Manhole: material | E135: 3050 | F135: 2018 | G135: 1.051 | H135: =(1+Assumptions!$D$14)^(YEAR(NOW())-F135) -> 1.03 | I135: each | J135: each | K135: each | L135: 3301.7165
A136: RSMeans | B136: G3030 210 5860 | C136: Storm sewer assembly cost, manholes and catch basins, concrete, precast, 4' ID, 8' deep (includes excavation) | D136: Manhole: material | E136: 5325 | F136: 2018 | G136: 1.051 | H136: =(1+Assumptions!$D$14)^(YEAR(NOW())-F136) -> 1.03 | I136: each | J136: each | K136: each | L136: 5764.47225
A137: RSMeans | B137: G3030 210 5880 | C137: Storm sewer assembly cost - install portion only, manholes and catch basins, 4' ID, 10' deep (includes excavation) | D137: HDS: installation | E137: 3200 | F137: 2018 | G137: 1.051 | H137: =(1+Assumptions!$D$14)^(YEAR(NOW())-F137) -> 1.03 | I137: each | J137: each | K137: each | L137: 3464.096
A138: RSMeans | B138: 33 46 23.10 0140 | C138: HDPE stormwater infiltration chamber, 30" H x 52" W (includes end caps and labour) | D138: Infiltration Chambers & End caps: material (StormTech SC-740) | E138: 43.5 | F138: 2018 | G138: 1.051 | H138: =(1+Assumptions!$D$14)^(YEAR(NOW())-F138) -> 1.03 | I138: ft | J138: ft to m | K138: m | L138: 154.4949311
A139: RSMeans | B139: 33 41 23.19 0110 | C139: Geosynthetic drainage layers, fabric laid in trench, polypropolene, adverse conditions | D139: Line pipe with filter cloth held in place with expandable rings | E139: 2.29 | F139: 2018 | G139: 1.051 | H139: =(1+Assumptions!$D$14)^(YEAR(NOW())-F139) -> 1.03 | I139: ft2 | J139: ft2 to m2 | K139: m2 | L139: 26.6836776
A140: RSMeans | B140: 32 16 13.13 0404 | C140: Curbs and gutters, cast in place, concrete, wood forms, 6" X 18", straight, concrete | D140: Concrete curb: 150 mm wide, 450 mm deep, cast-in-place - 1 carpenter foreman, 4 carpenters, 1 labourer labour | E140: 14.05 | F140: 2018 | G140: 1.051 | H140: =(1+Assumptions!$D$14)^(YEAR(NOW())-F140) -> 1.03 | I140: ft | J140: ft to m | K140: m | L140: 49.90008694
A141: Ewing irrigation and landscape supply (https://www.ewingirrigation.com/snap-edge-paver-edging.html ) | C141: SNAP EDGE PAVER RESTRAINT 8FT, USD list price Jan 2019, assumes local sourcing plus 15% shipping | D141: Plastic edge restraints: Snapedge® materials (Unilok) | E141: =14.7/8*1.15 -> 2.113125 | F141: 2018 | G141: =Assumptions!$D$20 -> 1.34 | H141: =(1+Assumptions!$D$14)^(YEAR(NOW())-F141) -> 1.03 | I141: ft | J141: ft to m | K141: m | L141: 9.568684793
A142: Ewing irrigation and landscape supply (https://www.ewingirrigation.com/snap-edge-paver-edging.html ) | C142: SNAP EDGE STAKES METAL 10IN, assume install every 8", USD list price Jan 2019, assumes local sourcing plus 15% shipping | D142: Plastic edge restraints: Snapedge® spikes materials | E142: =0.8*(8*12/8)/8*1.15 -> 1.38 | F142: 2018 | G142: =Assumptions!$D$20 -> 1.34 | H142: =(1+Assumptions!$D$14)^(YEAR(NOW())-F142) -> 1.03 | I142: ft | J142: =VLOOKUP(I142,$J$227:$M$245,2,FALSE) -> ft to m | K142: =VLOOKUP(I142,$J$227:$M$245,4,FALSE) -> m | L142: 6.248937008
A143: Unilock | B143: Unilock gave the lowest cost pavers at $3.08 for materials, doubled that cost to $6.16 for install | D143: Pavers: 80 mm interlocking pavers materials | E143: 6.16 | F143: 2018 | G143: =IF(A143="rsmeans",1.051,1) -> 1 | H143: =(1+Assumptions!$D$14)^(YEAR(NOW())-F143) -> 1.03 | I143: ft2 | J143: ft2 to m2 | K143: m2 | L143: 68.29488822
A144: RSMeans | B144: 32 14 16.10 0540 | C144: Brick paving, bedding, coarse washed sand, 1" thick (material cost doubled for 2" sand layer) | D144: Pavers & beddings: includes 50 mm layer and void filling, materials, labour, equipment | E144: =0.7+0.35 -> 1.05 | F144: 2018 | G144: 1.051 | H144: =(1+Assumptions!$D$14)^(YEAR(NOW())-F144) -> 1.03 | I144: ft2 | J144: ft2 to m2 | K144: m2 | L144: 12.23487401
A145: RSMeans | B145: 32 14 16.10 0540 | C145: Brick paving, bedding, coarse washed sand, 1" thick - material cost only (volume calc to derive cost/m3) | D145: Replace bedding: materials | E145: =1728/144*0.35*1.27 -> 5.334 | F145: 2018 | G145: 1.051 | H145: =(1+Assumptions!$D$14)^(YEAR(NOW())-F145) -> 1.03 | I145: ft3 | J145: ft3 to m3 | K145: m3 | L145: 203.9148145
A146: RSMeans | B146: 32 14 16.10 0540 | C146: Brick paving, bedding, coarse washed sand, 1" thick - material cost only (labour and equip) | D146: Replace bedding: labour | E146: =0.2*1.27 -> 0.254 | F146: 2018 | G146: 1.051 | H146: =(1+Assumptions!$D$14)^(YEAR(NOW())-F146) -> 1.03 | I146: ft2 | J146: ft2 to m2 | K146: m2 | L146: 2.959674284
A147: RSMeans | B147: 32 14 13.18 0540 | C147: Precast concrete plantable pavers with topsoil, 24" by 16", les than 600 sq.ft., irregular area, (includes 3/4" crushed stone base, 6", seeding and fertilizer) | E147: =10.3+6.4/9+106/1000 -> 11.11711111 | F147: 2018 | G147: 1.051 | H147: =(1+Assumptions!$D$14)^(YEAR(NOW())-F147) -> 1.03 | I147: ft2 | J147: ft2 to m2 | K147: m2 | L147: 129.5394798
A148: RSMeans | B148: G 2020 214 1500 | C148: parking lot 10 cars, with handicap, and lighting, stall parking striping (total cost divided by total area to give unit cost) | D148: Striping | E148: =95.24/455 -> 0.2093186813 | F148: 2018 | G148: 1.051 | H148: =(1+Assumptions!$D$14)^(YEAR(NOW())-F148) -> 1.03 | I148: sy | J148: sy to m2 | K148: m2 | L148: 0.2710038616
A149: RSMeans | B149: 32 01 30.10 6420 | C149: Site maintenance, sweep drives and parking areas with power vacuum | D149: Surface sweeping | E149: =4.86/1000 -> 0.00486 | F149: 2018 | G149: 1.051 | H149: =(1+Assumptions!$D$14)^(YEAR(NOW())-F149) -> 1.03 | I149: ft2 | J149: ft2 to m2 | K149: m2 | L149: 0.05662998827
A150: Rainwaterharvest systems (https://www.rainharvest.com/filtration/pre-filtration/industrial-filters.asp?pagesize=75) | C150: Assume Volume Filter VF2, by 3P Technik, Heavy-duty, industrial grade, high efficiency below ground rainwater filtration system. (1) 8" Rainwater Inlets, (1) 6" Tank Outlet, (1) 8" Sewer Outlet, Suitable for roofs up to 13,000 square feet, (2) Independent filter sieves, Filters to 360 microns Suitable for roofs to 1200 m2, assume multiple units run in parallel for larger roofs. Original price in USD jan 2019, assume US source plus 15% shipping and Cn388 customs clearance | D150: Inline German style filter: 3P VF4 by 3P Technik | E150: =2699.95*1.15+388/Assumptions!D20 -> 3394.494739 | F150: 2018 | G150: =Assumptions!D20 -> 1.34 | H150: =(1+Assumptions!$D$14)^(YEAR(NOW())-F150) -> 1.03 | I150: each | J150: each | K150: each | L150: 4685.081638
A151: RSMeans | B151: 33 05 63.13 0510 | C151: Concrete vaults and chambers, precast utility structures, 6" thick, (both at same cost) - meter pit, 6' by 6' by 4' deep | D151: Precast concrete tank for filter | E151: 4150 | F151: 2018 | G151: =IF(A151="rsmeans",1.051,1) -> 1.051 | H151: =(1+Assumptions!$D$14)^(YEAR(NOW())-F151) -> 1.03 | I151: each | J151: each | K151: each | L151: 4492.4995
A152: RH20 North America Inc. | C152: Install filter into tank + delivery | D152: Installation of filter into tank and delivery of combined tank/filter | E152: 2000 | F152: 2018 | G152: 1 | H152: =(1+Assumptions!$D$14)^(YEAR(NOW())-F152) -> 1.03 | I152: each | J152: each | K152: each | L152: 2060
A153: Acton Pre-cast concrete (https://www.actonprecast.com/categories/11?gclid=EAIaIQobChMIn_uElMzc3wIVQZppCh1W5wvBEAAYASAAEgL-AvD_BwE) | C153: CISTERNS & STORAGE TANKS, Water Storage Tanks for residential and commercial use, 2000 to 10,000 gallons | D153: Precast concrete tank - below ground (Connect the drops 2010) | E153: 9.5 | F153: 2018 | G153: 1 | H153: =(1+Assumptions!$D$14)^(YEAR(NOW())-F153) -> 1.03 | I153: FT3 | J153: ft3 to m3 | K153: m3 | L153: 345.5545824
A154: FORTERRA (https://forterrabp.com/site/assets/files/2616/81045-dpp-ontario_price_list_17_2.pdf) | C154: Circular Maintenance Holes and Utility Chambers prices include rubber gaskets, Riser section, 1200 mm, 1 m height (from PRICE LIST 2 17, EFFECTIVE FEBRUARY 15, 2017) | D154: Standard access riser | E154: 664 | F154: 2017 | G154: 1 | H154: =(1+Assumptions!$D$14)^(YEAR(NOW())-F154) -> 1.0609 | I154: each | J154: each | K154: each | L154: 704.4376
A155: Connect the drops 2010 | C155: Tank delivery | D155: Concrete tank delivery | E155: 233 | F155: 2018 | G155: 1 | H155: =(1+Assumptions!$D$14)^(YEAR(NOW())-F155) -> 1.03 | I155: each | J155: each | K155: each | L155: 239.99
A156: RSMeans | B156: 22 12 21.13 2000 to 2040 | C156: Facility underground potable water stroage tank, fibreglass, single wall, average unit cost for 600 to 1000 US gallon tank - <4 m3 (same as RSMeans costs for rainwater storage tanks) | D156: Plastic tank - above ground | E156: 52.96 | F156: 2018 | G156: 1.051 | H156: =(1+Assumptions!$D$14)^(YEAR(NOW())-F156) -> 1.03 | I156: ft3 | J156: ft3 to m3 | K156: m3 | L156: 2024.621031
A157: RSMeans | B157: 22 12 21.13 2000 to 2040 | C157: Facility underground potable water stroage tank, fibreglass, single wall, average unit cost for 1000 to 20,000 US gallon tank - >4 m3 (same as RSMeans costs for rainwater stotrage tanks) | D157: Precast concrete tank - below ground | E157: 23.1 | F157: 2018 | G157: 1.051 | H157: =(1+Assumptions!$D$14)^(YEAR(NOW())-F157) -> 1.03 | I157: ft3 | J157: ft3 to m3 | K157: m3 | L157: 883.0956535
A158: RSMeans | B158: 01 54 33.60 2400 + 01 54 36.50 1700 | C158: Lifting and hoisting equipment without operators, truck mounted, hydraulic, 12 ton capacity (8 hours labor added) + Mobilization, crane, truck mounted, up to 75 ton, (driver only) (doubled for demobilization) | D158: Craning - for precast concrete tanks>20,000L | E158: =496+8*31+169*2 -> 1082 | F158: 2018 | G158: 1.051 | H158: =(1+Assumptions!$D$14)^(YEAR(NOW())-F158) -> 1.03 | I158: day | J158: day | K158: day | L158: 1171.29746
A159: RS Means | B159: 22 14 29.16 7100 | C159: Submersible sump pumps, plastic, 1 1/4" discharge, 1/4 HP | D159: Submersible pump: 81.2 lpm fountain pump with controls materials | E159: 282 | F159: 2018 | G159: 1 | H159: =(1+Assumptions!$D$14)^(YEAR(NOW())-F159) -> 1.03 | I159: each | J159: each | K159: each | L159: 290.46
A160: HomeDepot ('https://www.homedepot.com/p/Water-Worker-119-Gal-Pressurized-Well-Tank-HT119B/202846488) | C160: Water worker, 119 Gal. Pressurized Well Tank, model # HT119B (jan 2019) | D160: Pressure tank: 439 L (116 gallons) potable water tank materials (RSMeans '221223133060) | E160: 682.31 | F160: 2019 | G160: 1 | H160: =(1+Assumptions!$D$14)^(YEAR(NOW())-F160) -> 1 | I160: each | J160: each | K160: each | L160: 682.31
A161: RS Means | B161: Crews standard | C161: Crew L6 - 1 plumber, 0.5 electrician, assume 1/2 day (4 hours) | D161: Pressure tank: 439 L (116 gallons) potable water tank labour | E161: =91.4*4 -> 365.6 | F161: 2018 | G161: 1 | H161: =(1+Assumptions!$D$14)^(YEAR(NOW())-F161) -> 1.03 | I161: each | J161: each | K161: each | L161: 376.568
A162: Grainger (https://www.grainger.com/category/float-switches/pump-controls/pumps/ecatalog/N-cc8) | C162: LEVELGUARD Pump Switches, Solid State Pump Switch, Contact Form: Normally Open, 115VAC, 12 amp, 30' wire lead connection, adjustable float switch on/off point, original price in USD Jan 2019, assumes local sourcing plus 15% shipping | D162: Pump float switch: Approximately 1 HP (Connect the drops 2010) | E162: =147.29*1.15 -> 169.3835 | F162: 2018 | G162: =Assumptions!D20 -> 1.34 | H162: =(1+Assumptions!$D$14)^(YEAR(NOW())-F162) -> 1.03 | I162: each | J162: each | K162: each | L162: 233.7831067
A163: RONA (https://www.rona.ca/en/wire-ac90-14-2-20-m) | C163: WIRE AC90 14/2 20 M | D163: Electrical wiring: Approximately 14 gauge | E163: =47.95/20 -> 2.3975 | F163: 2019 | G163: =IF(A163="rsmeans",1.051,1) -> 1 | H163: =(1+Assumptions!$D$14)^(YEAR(NOW())-F163) -> 1 | I163: m | J163: m to m | K163: m | L163: 2.3975
A164: RSMeans | B164: 22 11 13.74 4420 | C164: Pipe, plastic, PVC 1 1/2" diameter (includes hangers, couplings, labor) | D164: Pipe: 40 mm Polyethylene (PE) C901 | E164: 29.5 | F164: 2018 | G164: =IF(A164="rsmeans",1.051,1) -> 1.051 | H164: =(1+Assumptions!$D$14)^(YEAR(NOW())-F164) -> 1.03 | I164: ft | J164: ft to m | K164: m | L164: 104.7724245
A165: RSMeans | B165: 22 11 13.76 2160 | C165: Pipe fittings, plastic, PVC schedule 80, socket joint, 90 degree elbow 1 1/2" (includes labor) | D165: Fittings: 40 mm Polyethylene (PE) C901 elbow | E165: 49.5 | F165: 2018 | G165: =IF(A165="rsmeans",1.051,1) -> 1.051 | H165: =(1+Assumptions!$D$14)^(YEAR(NOW())-F165) -> 1.03 | I165: each | J165: each | K165: each | L165: 53.585235
A166: PVC fittings online ('www.pvcfittingsonline.com/accessories/modular-seals/link-seals.htm) | C166: Link-Seal® Modular Seal Model Options with EPDM Seal Elements - Model “C” or “L” Link-Seal Modular Seal Suitable for use in water, direct ground burial and atmospheric conditions. Provides electrical isolation where cathodic protection is required. Type: Standard: Seal Element: EPDM (Black) or EPDM (Blue); Pressure Plates: Reinforced Nylon Polymer; Bolts & Nuts: Steel with 2-part Zinc Dichromate & proprietary corrosion inhibiting coating.; Temp. Range: -40 to +250ºF (-40 to +121ºC) Steel and Plastic Pipe with Same Outside Diameter (IPS), CAST OR CORE BIT DRILLED HOLE, pipe size - 1-1/2", hole I.D. - 4", LINK-SEALsize - LS 315- C, links per seal - 6. Original price in USD Jan 2019, assume local sourcing plus 15% shipping (http://www.rustrol.com/WordDocs/products/isolating-materials/Link_Seal_Modular_Seals.pdf) | D166: Fittings: pipe sleeve with link seal for 1-1/2" dia. Pipe | E166: =9.43*6*1.15 -> 65.067 | F166: 2019 | G166: =Assumptions!$D$20 -> 1.34 | H166: =(1+Assumptions!$D$14)^(YEAR(NOW())-F166) -> 1 | I166: each | J166: each | K166: each | L166: 87.18978
A167: RSMeans | B167: 22 11 13.23 1240 | C167: Pipe/tube, copper, solder joints, typs K tubing, couplings and clevis hanger assemblies, 10' OC | D167: Pipe: 40 mm Copper Class K pipe includes couplings and hangers | E167: 34.5 | F167: 2018 | G167: =IF(A167="rsmeans",1.051,1) -> 1.051 | H167: =(1+Assumptions!$D$14)^(YEAR(NOW())-F167) -> 1.03 | I167: ft | J167: ft to m | K167: m | L167: 122.5304626
A168: RSMeans | B168: 22 11 13.23 1240 | C168: Pipe/tube, copper, solder joints, copper x copper, 90o elbow, 1 1/2" | D168: Fittings: 40 mm copper 90 degree elbows materials | E168: 73.5 | F168: 2018 | G168: =IF(A168="rsmeans",1.051,1) -> 1.051 | H168: =(1+Assumptions!$D$14)^(YEAR(NOW())-F168) -> 1.03 | I168: each | J168: each | K168: each | L168: 79.565955
A169: Tanks.ie (https://www.tanks.ie/3p-top-up-set.html) | C169: 3P TOP-UP SET - Control Unit - 97 x 163 x 62 mm, 0.5kg; Level Probe - 15m cable (extendable to 30m); Solenoid Valve - with 30cm braided hose and isolating valve (1/2“ F BSP); 3P Tundish with overflow c/w wall mounting bracket, anti-spray nozzle and elbow; Tundish Overflow - 39mm (external); Tundish Outlet - 50mm (external); Schuko plug adapter for pump connection; The set provides maximum siting flexibility for installers. ORIGINAL PRICE IN EUROS (jAN 2019), Cn$190 added for customs clearance and 25% for shipping | D169: Top-up float switch approximately 1/2 HP (Connect the drops 2010) | E169: =ROUND(344.25*1.25+190/Assumptions!D21,2) -> 554.5 | F169: 2018 | G169: =Assumptions!D21 -> 1.53 | H169: =(1+Assumptions!$D$14)^(YEAR(NOW())-F169) -> 1.03 | I169: each | J169: each | K169: each | L169: 873.83655
A170: RSMeans | B170: 22 11 19.54 0500 | C170: Water hammer arrestor/shock absorber, copper, 3/4" male IPS for 1 to 11 fixtures | D170: Water hammer arrestor: 20 mm materials | E170: 93.5 | F170: 2018 | G170: =IF(A170="rsmeans",1.051,1) -> 1.051 | H170: =(1+Assumptions!$D$14)^(YEAR(NOW())-F170) -> 1.03 | I170: each | J170: each | K170: each | L170: 101.216555
A171: RSMeans | B171: 22 11 19.38 2080 | C171: Water supply meters, domestic/commercial, bronze, threaded/flanged, 3/4" diameter to 30 GPM | D171: Water meter: 40 mm materials | E171: 155 | F171: 2018 | G171: =IF(A171="rsmeans",1.051,1) -> 1.051 | H171: =(1+Assumptions!$D$14)^(YEAR(NOW())-F171) -> 1.03 | I171: each | J171: each | K171: each | L171: 167.79215
A172: RSMeans | B172: 22 11 13.74 4216 | C172: Pipe, plastic, ABS schedule 40, couplings 10' OC, clevis hanger assem. 3 per 10', foam core type, plain end black, 2" diameter | D172: Pipe: ABS (int.installation): 50mm dia., including couplings and hangers material | E172: 31 | F172: 2018 | G172: =IF(A172="rsmeans",1.051,1) -> 1.051 | H172: =(1+Assumptions!$D$14)^(YEAR(NOW())-F172) -> 1.03 | I172: ft | J172: ft to m | K172: m | L172: 110.099836
A173: RSMeans | B173: 22 11 13.76 4570 | C173: Pipe, plastic, DWV ABS non-pressure socket joints, 1/4 bend, 2" diameter | D173: Fittings: 50 mm ABS elbow materials | E173: 46.5 | F173: 2018 | G173: =IF(A173="rsmeans",1.051,1) -> 1.051 | H173: =(1+Assumptions!$D$14)^(YEAR(NOW())-F173) -> 1.03 | I173: each | J173: each | K173: each | L173: 50.337645
A174: PVC fittings online ('www.pvcfittingsonline.com/accessories/modular-seals/link-seals.htm) | C174: Link-Seal® Modular Seal Model Options with EPDM Seal Elements - Model “C” or “L” Link-Seal Modular Seal Suitable for use in water, direct ground burial and atmospheric conditions. Provides electrical isolation where cathodic protection is required. Type: Standard: Seal Element: EPDM (Black) or EPDM (Blue); Pressure Plates: Reinforced Nylon Polymer; Bolts & Nuts: Steel with 2-part Zinc Dichromate & proprietary corrosion inhibiting coating.; Temp. Range: -40 to +250ºF (-40 to +121ºC) Steel and Plastic Pipe with Same Outside Diameter (IPS), CAST OR CORE BIT DRILLED HOLE, pipe size - 2", hole I.D. - 4", LINK-SEALsize - LS 300- C, links per seal - 6. Original price in USD Jan 2019, assume local sourcing plus 15% shipping (http://www.rustrol.com/WordDocs/products/isolating-materials/Link_Seal_Modular_Seals.pdf accessed 8 Jan 2019) | D174: Fittings: pipe sleeve with link seal for 2" dia. pipes | E174: =5.37*6*1.15 -> 37.053 | F174: 2019 | G174: =Assumptions!$D$20 -> 1.34 | H174: =(1+Assumptions!$D$14)^(YEAR(NOW())-F174) -> 1 | I174: each | J174: each | K174: each | L174: 49.65102
A175: RSMeans | B175: 22 11 13.74 4244 | C175: Pipe, plastic, ABS schedule 40, foam core type, plain end black, 2" diameter, no , couplings or clevis hanger assem. | D175: Pipe: 50mm dia. ABS (does not include coupling or hangers) materials | E175: =E172-0.43*8.55-0.48*14.45 -> 20.3875 | F175: 2018 | G175: =IF(A175="rsmeans",1.051,1) -> 1.051 | H175: =(1+Assumptions!$D$14)^(YEAR(NOW())-F175) -> 1.03 | I175: ft | J175: ft to m | K175: m | L175: 72.40840018
A176: RSMeans | B176: 22 11 13.76 4962 | C176: Pipe fittings, plastic, DWV ABS non-pressure socket joints, couplings 2" | D176: Fittings: 50 mm ABS couplings materials | E176: 43 | F176: 2018 | G176: 1.051 | H176: =(1+Assumptions!$D$14)^(YEAR(NOW())-F176) -> 1.03 | I176: each | J176: each | K176: each | L176: 46.54879
A177: RSMeans | B177: 22 11 19.42 4180 | C177: Backflow preventers, includes valves & test cocks, corrosion resistant, automatic operation, Reduced pressure principle, threaded bronze, ball valves, 2" pipe | D177: Reduced pressure backflow preventer: 50 mm materials | E177: 1325 | F177: 2018 | G177: 1.051 | H177: =(1+Assumptions!$D$14)^(YEAR(NOW())-F177) -> 1.03 | I177: each | J177: each | K177: each | L177: 1434.35225
A178: RSMeans | B178: 31 11 10.10 0020 | C178: Clear and grub site, cut and chip light trees to 6" | D178: Cut & Chip light trees - labour | E178: 4950 | F178: 2018 | G178: 1.051 | H178: =(1+Assumptions!$D$14)^(YEAR(NOW())-F178) -> 1.03 | I178: acre | J178: acre to m2 | K178: m2 | L178: 1.324120001
A179: RSMeans | B179: 31 11 10.10 0150 | C179: Clear and grub site, grub stumps and remove | D179: Grub stumps - labour | E179: 1975 | F179: 2018 | G179: 1.051 | H179: =(1+Assumptions!$D$14)^(YEAR(NOW())-F179) -> 1.03 | I179: acre | J179: acre to m2 | K179: m2 | L179: 0.5283105054
A180: RSMeans | B180: 32 91 13.23 3650 | C180: Structural soil mixing, screen topsoil from stock pile, mobilization | E180: 490 | F180: 2018 | G180: 1.051 | H180: =(1+Assumptions!$D$14)^(YEAR(NOW())-F180) -> 1.03 | I180: each | J180: each | K180: each | L180: 530.4397
A181: RSMeans | B181: 32 91 13.23 3550 | C181: Structural soil mixing, screen topsoil from stock pile, dry material | E181: 7.4 | F181: 2018 | G181: 1.051 | H181: =(1+Assumptions!$D$14)^(YEAR(NOW())-F181) -> 1.03 | I181: cy | J181: c.y. to m3 | K181: m3 | L181: 10.47762685
A182: RSMeans | B182: 32 91 13.23 3550 | C182: Structural soil mixing, screen topsoil from stock pile, mixing with conditioners, manure and peat | E182: 2.2 | F182: 2018 | G182: 1.051 | H182: =(1+Assumptions!$D$14)^(YEAR(NOW())-F182) -> 1.03 | I182: cy | J182: c.y. to m3 | K182: m3 | L182: 3.114970146
A183: RSMeans | B183: 32 91 13.23 3550 | C183: Structural soil mixing, spread conditioned topsoil, 6" deep, 300 hp dozer | E183: =775/1000 -> 0.775 | F183: 2018 | G183: 1.051 | H183: =(1+Assumptions!$D$14)^(YEAR(NOW())-F183) -> 1.03 | I183: ft2 | J183: ft2 to m2 | K183: m2 | L183: 9.030502244
A184: RSMeans | B184: 32 91 13.23 3550 | C184: Structural soil mixing, tiling topsoil, 20 hp tractor, disk harrow, 2" deep | E184: =1.98/1000 -> 0.00198 | F184: 2018 | G184: 1.051 | H184: =(1+Assumptions!$D$14)^(YEAR(NOW())-F184) -> 1.03 | I184: ft2 | J184: ft2 to m2 | K184: m2 | L184: 0.0230714767
A185: RSMeans | B185: 32 93 13.40 xxxx 32 93 13.30 xxxx 32 93 23.10 xxxx | C185: Average of plant costs for bioretention - see Plant costing file | D185: Plant material, delivery, labour | E185: 77.67 | F185: 2018 | G185: 1.051 | H185: =(1+Assumptions!$D$14)^(YEAR(NOW())-F185) -> 1.03 | I185: m2 | J185: m2 to m2 | K185: m2 | L185: 84.0801051
A186: RSMeans | B186: 32 93 43.10 0594 | C186: Planting, trees, shrubs and ground cover, medium soil, container, 3 gallon, includes planting only | D186: Vegetation: labour | E186: 34.5 | F186: 2018 | G186: 1.051 | H186: =(1+Assumptions!$D$14)^(YEAR(NOW())-F186) -> 1.03 | I186: m2 | J186: m2 to m2 | K186: m2 | L186: 37.347285
A187: RSMeans | B187: 32 93 43.10 0590 | C187: Planting, trees, shrubs and ground cover, medium soil, container, average of 1 gallon and 5 gallon, includes planting only | D187: Vegetation: labour | E187: 16.45 | F187: 2018 | G187: 1.051 | H187: =(1+Assumptions!$D$14)^(YEAR(NOW())-F187) -> 1.03 | I187: m2 | J187: m2 to m2 | K187: m2 | L187: 17.8076185
A188: HORTICO, GoWild Native Plant Nursery, Ontario Native Plants, Grand Morrain Growers, St Williams | C188: Trees and shrubs, assume: 25% tree coverage at 3 m OC spacing, one gallon pots, average $13.79 each 75% shrub coverage at 1 m OC spacing, one gallon pots, average $12.79 each See plant costing file | E188: =(1/9)*(13.79+E186)+1*(12.79+E187) -> 34.60555556 | F188: 2019 | G188: 1 | H188: =(1+Assumptions!$D$14)^(YEAR(NOW())-F188) -> 1 | I188: m2 | J188: m2 to m2 | K188: m2 | L188: 34.60555556
A189: St. Williams Nursery | C189: Stream Channel & Wetland Edge Seed Mix, $155.kg, 8 to 12 kg/ha | E189: =155*10/10000+L193 -> 0.4604476174 | F189: 2019 | G189: 1 | H189: =(1+Assumptions!$D$14)^(YEAR(NOW())-F189) -> 1 | I189: m2 | J189: m2 to m2 | K189: m2 | L189: 0.4604476174
A190: St. Williams Nursery | C190: Bobolink & Meadowlark Wet Meadow seed mix, $130.kg, 10 to 12 kg/ha | E190: =155*11/10000+L193 -> 0.4759476174 | F190: 2019 | G190: 1 | H190: =(1+Assumptions!$D$14)^(YEAR(NOW())-F190) -> 1 | I190: m2 | J190: m2 to m2 | K190: m2 | L190: 0.4759476174
A191: St. Williams Nursery | C191: Base Restoration Seed Mix, $105.kg, 7 to 10 kg/ha | E191: =105*8.5/10000+L193 -> 0.3946976174 | F191: 2019 | G191: 1 | H191: =(1+Assumptions!$D$14)^(YEAR(NOW())-F191) -> 1 | I191: m2 | J191: m2 to m2 | K191: m2 | L191: 0.3946976174
A192: HORTICO, Grand Morrain Growers, St Williams | C192: Aquatic plant material, Emergent - plugs, 3 plants per m of waters edge; Submergent - 1 gallon pots, 3 plants per m of waters edge Planting guideline from City of Toronto Landscape Design Guidelines for Stormwater Management Ponds, 2015 See plant cost file for costing | E192: =3*(3.07+E194)+3*(9.61+E196) -> 89.55 | F192: 2019 | G192: 1 | H192: =(1+Assumptions!$D$14)^(YEAR(NOW())-F192) -> 1 | I192: m | J192: m to m | K192: m | L192: 89.55
A193: RSMeans | B193: 32 92 19.13 0800 | C193: Mechanical seeding, grass seed, hand push spreader, 4.5 lb per 1000 ft2 | E193: =27/1000 -> 0.027 | F193: 2019 | G193: 1.051 | H193: =(1+Assumptions!$D$14)^(YEAR(NOW())-F193) -> 1 | I193: ft2 | J193: ft2 to m2 | K193: m2 | L193: 0.3054476174
A194: RSMeans | B194: 32 93 43.10 0560 | C194: Planting, trees, shrubs and ground cover, medium soil, bare root seedlings 3" to 5", includes planting only | E194: 0.72 | F194: 2019 | G194: 1.051 | H194: =(1+Assumptions!$D$14)^(YEAR(NOW())-F194) -> 1 | I194: each | J194: each | K194: each | L194: 0.75672
A195: RSMeans | B195: 32 93 43.10 0560 | C195: Planting, trees, shrubs and ground cover, medium soil, 3" pot, includes planting only | E195: 0.82 | F195: 2019 | G195: 1.051 | H195: =(1+Assumptions!$D$14)^(YEAR(NOW())-F195) -> 1 | I195: each | J195: each | K195: each | L195: =IF(ISNUMBER(M195),M195,E195*H195*G195*VLOOKUP(J195,$K$227:$L$245,2,FALSE)) -> 0.86182
A196: RSMeans | B196: 32 93 43.10 0560 | C196: Planting, trees, shrubs and ground cover, medium soil, 1 gallon pot, includes planting only | E196: 16.45 | F196: 2019 | G196: 1.051 | H196: =(1+Assumptions!$D$14)^(YEAR(NOW())-F196) -> 1 | I196: each | J196: each | K196: each | L196: 17.28895
A197: RSMeans | B197: 32 93 43.10 0560 | C197: Planting, trees, shrubs and ground cover, medium soil, 3 gallon pot, includes planting only | E197: 34.5 | F197: 2019 | G197: 1.051 | H197: =(1+Assumptions!$D$14)^(YEAR(NOW())-F197) -> 1 | I197: each | J197: each | K197: each | L197: 36.2595
A198: RSMeans | B198: 10 14 26.10 0050 | C198: Post and panel signage, Alum. Incl. 2 posts, 2-sided panel (blank), concrete footings per post | E198: 1050 | F198: 2018 | G198: 1.051 | H198: =(1+Assumptions!$D$14)^(YEAR(NOW())-F198) -> 1.03 | I198: each | J198: each | K198: each | L198: 1136.6565
A199: RSMeans | B199: 32 91 13.16 0100 | C199: Soil preparation, mulching, aged bark, 3" deep, hand spread | D199: Wood mulch: material | E199: 9.05 | F199: 2018 | G199: 1.051 | H199: =(1+Assumptions!$D$14)^(YEAR(NOW())-F199) -> 1.03 | I199: sy | J199: sy to m2 | K199: m2 | L199: 11.71699025
A200: RSMeans | B200: 01 31 13.20 0160 | C200: Assume 4 hours common labourer/m3 | D200: Remove sediment - Manual | E200: =4*E209 -> 242.5 | F200: 2018 | G200: 1.051 | H200: =(1+Assumptions!$D$14)^(YEAR(NOW())-F200) -> 1.03 | I200: m3 | J200: m3 to m3 | K200: m3 | L200: 262.513525
... 39 more rows

Sheet BRDesign
B1: BIORETENTION | J1: BR calcs | L1: TOC | N1: INTRO | O1: Capital | P1: O&M | Q1: Summary
C3: Design & Costs Information
C30: Design Guidance (visit wiki.sustainabletechnologies.ca for detailed guidance; see the STEP Life Cycle Costing Tool User Guide for info on how to use the tool for cost estimation) • Bioretention cells work best for smaller drainage areas in terms of water quality treatment; however, smaller facilities are also more expensive than those designed for larger drainage areas. Generally, 8000 m2 is the most cost-effective drainage area for water quality treatment. • STEP recommends a maximum drainage area to surface area ratio of 20:1. The tool uses this as a default for cost-optimization purposes • The STEP LID Planning and Design guide recommends a depth of .75 metres or over; the tool default is .75 metres • The recommended mulch depth is 75 millimetres on the surface of the filter bed to enhance plant survival, suppress weed growth and pre-treat runoff. • An underdrain (minimum 200 mm perforated pipe) is only needed where the native soil infiltration rate is less than 15 mm/hr, or when other factors preclude infiltration. • For the full infiltration, partial infiltration, and no infiltration model designs used to generate costs, see the LCCT User Guide Tool Assumptions • User enters site information into the yellow cells in the User Input section. The tool includes defaults based on STEP’s LID Planning and Design Guidance, but users may change the values found in the pink cells. STEP default values are kept in a separate column as a reference. • Designs include pretreatment through stone diaphragms at curb inlets. Other forms of pretreatment, such as a settling forebay or a vegetated filter strip, are not included. Vegetated filter strips have their own costing sheet, should the user want to select this method for pretreatment • The tool calculates costs for new designs (based on model designs; see the LCCT User Guide) and includes costs of design (as part of overhead), contractor profit, material, delivery, labour, equipment (rental, operating and operator costs), hauling and disposal. Since the tool was built to estimate greenfield development costs, it does not include mobilization and demobilization. You can add mobilization costs in the "Additional Costs" cells. • Unit costs are based on 2018 pricing; the tool automatically adds inflation. See the Assumptions sheet for details. • The cost of retrofitting is in general 16% higher than the cost of new construction. These added construction costs can be found in the 'costs summary' tab and are easily added to the total construction cost for increased accuracy.
C57: USERS: Please enter information into YELLOW coloured cells, DO NOT LEAVE BLANK
C59: Site and Design Information | J59: Construction Costs | N59: Sales tax / HST (%) | P59: =Assumptions!$D$17 -> 0.13
C61: USER INPUTS | J61: PRE-CONSTRUCTION | N61: Unit | O61: Cost | P61: Cost adjustment
C62: Drainage area (DA) | G62: 2000 | H62: m2 | J62: Test pits (2) | M62: =IFERROR(IF(G62=0,"",ROUNDUP(TestPits!E8*2,0)),"") -> 5 | N62: m3 | O62: =CapitalCosts!G102*(1+$P$59)*(1+P62) -> 1063.974689 | P62: 0
C63: Native soil infiltration rate | G63: 10 | H63: mm/hr | J63: Infiltration tests (2 per test pit) | M63: =IFERROR(IF(G62=0,"",IF(G64="No Infiltration",0,4)),"") -> 4 | N63: tests | O63: =CapitalCosts!G103*(1+$P$59)*(1+P63) -> 601.4356258 | P63: 0
C64: Design type 1 | G64: Partial Infiltration | H64: Unitless | J64: Stakeout of utilities | M64: =IF(G62=0,"",1) -> 1 | N64: visit | O64: =CapitalCosts!G104*(1+$P$59)*(1+P64) -> 581.95 | P64: 0
C65: Drainage period | G65: 36 | H65: hours | J65: Erosion and sediment controls:
C66: BR surface area length to width ratio | G66: 1 | H66: Unitless | J66: 2" Submersible gas pump | M66: =IFERROR(IF(G62=0,"",IF(G64="No Infiltration",0,3)),"") -> 3 | N66: days | O66: =CapitalCosts!G106*(1+$P$59)*(1+P66) -> 104.2216583 | P66: 0
C67: Project land value classification | G67: None | H67: Unitless | J67: Silt sack in catchbasin | M67: =IFERROR(IF(G62=0,"",IF(G64="No Infiltration",0,1)),"") -> 1 | N67: each | O67: =CapitalCosts!G107*(1+$P$59)*(1+P67) -> 78.35985 | P67: 0
C68: DESIGN DEFAULTS | F68: defaults | G68: (values in col G can be changed) | J68: Silt fence 2 m around excavation | M68: =IFERROR(IF(G62=0,"",IF(G64="Full Infiltration",2*(CapitalCosts!D48+2)+2*(CapitalCosts!D49+2),IF(G64="Partial Infiltration",2*(CapitalCosts!D48+(CapitalCosts!I57*2)+2)+2*(CapitalCosts!D49+(CapitalCosts!I57*2)+2),0))),"") -> 50.6608 | N68: m | O68: =CapitalCosts!G108*(1+$P$59)*(1+P68) -> 382.2375198 | P68: 0
C69: Maximum drainage area to surface area ratio | F69: 20 | G69: 20 | H69: Unitless | J69: Value of project land | M69: =G82 -> 100 | N69: m2 | O69: =CapitalCosts!G101*(1+$P$59)*(1+P69) -> 0 | P69: 0
C70: Water Quality Volume Requirement | F70: 45 | G70: 45 | H70: m3/ha | J70: Add additional costs if necessary | O70: 0
C71: Filter Media Depth | F71: 0.75 | G71: 0.75 | H71: m | J71: EXCAVATION
C72: Ponding depth | F72: 0.2 | G72: 0.2 | H72: m | J72: Excavation | M72: =IFERROR(IF(G62=0,"",CapitalCosts!D111),"") -> 155.496984 | N72: m3 | O72: =CapitalCosts!G111*(1+$P$59)*(1+P72) -> 437.8690904 | P72: 0
C73: Safety factor | F73: 2.5 | G73: 2.5 | H73: Unitless | J73: Loading | M73: =Assumptions!$D$8 -> 0.15 | N73: % of excavation cost | O73: =CapitalCosts!G112*(1+$P$59)*(1+P73) -> 65.68036356 | P73: 0
C74: Void ratio | F74: 40 | G74: 40 | H74: % | J74: Hauling | M74: =IFERROR(IF(G62=0,"",CapitalCosts!D113),"") -> 5 | N74: hours | O74: =CapitalCosts!G113*(1+$P$59)*(1+P74) -> 1021.421181 | P74: 0
C75: Mulch depth | F75: 0.075 | G75: 0.075 | H75: m | J75: Safety fencing 6 m around excavation | M75: =IFERROR(IF(G62=0,"",(CapitalCosts!D48+12+CapitalCosts!D49+12)*2),"") -> 88 | N75: m (1 week rental) | O75: =CapitalCosts!G114*(1+$P$59)*(1+P75) -> 1924.786642 | P75: 0
C76: DESIGN CALCULATIONS | J76: Trenching for pipe to sewer | M76: =IFERROR(IF(G62=0,"",CapitalCosts!D49+1),"") -> 11 | N76: m | O76: =CapitalCosts!G115*(1+$P$59)*(1+P76) -> 489.1430273 | P76: 0
C77: Pea gravel depth | G77: =IFERROR(IF(G62=0,"",IF($G$64="Full Infiltration",0,0.1)),"") -> 0.1 | H77: m | J77: Add additional costs if necessary | O77: 0
C78: Filter media depth | G78: =IFERROR(IF(G62=0,"",IF($G$64="Full Infiltration",CapitalCosts!D43,CapitalCosts!D16)),"") -> 0.75 | H78: m | J78: MATERIALS & INSTALLATION
C79: Gravel storage layer depth | G79: =IFERROR(IF(G62=0,"",IF($G$64="Full Infiltration",0,IF($G$64="Partial Infiltration",CapitalCosts!D57,IF($G$64="No Infiltration",CapitalCosts!D68,0)))),"") -> 0.56 | H79: m | J79: =CapitalCosts!C134 -> Impermeable membrane | M79: =IFERROR(IF(G62=0,"",IF(G64="No Infiltration",(CapitalCosts!D48*CapitalCosts!D49)+(2*(CapitalCosts!D48*1.2))+(2*(CapitalCosts!D49*1.2))+(2*(CapitalCosts!D48*CapitalCosts!I71))+(2*(CapitalCosts!D49*CapitalCosts!I71))+(4*CapitalCosts!I72)+(2*((CapitalCosts!D48+CapitalCosts!I70*2)*1))+(2*((CapitalCosts!D49+CapitalCosts!I70*2)*1)),0)),"") -> 0 | N79: m2 | O79: =CapitalCosts!G134*(1+$P$59)*(1+P79) -> 0 | P79: 0
C80: Total depth 2 | G80: =IFERROR(IF(G62=0,"",SUM(G75,G77:G79)),"") -> 1.485 | H80: m | J80: =CapitalCosts!C135 -> Underdrain | M80: =IFERROR(IF(G62=0,"",IF($G$64="Full Infiltration",0,CapitalCosts!D48)),"") -> 10 | N80: m | O80: =CapitalCosts!G135*(1+$P$59)*(1+P80) -> 734.436938 | P80: 0
C81: Underdrain diameter | G81: =IFERROR(IF(G62=0,"",IF($G$64="Full Infiltration",0,0.2)),"") -> 0.2 | H81: m | J81: =CapitalCosts!C136 -> Clean out pipes (2 pipes) | M81: =IFERROR(IF(G62=0,"",IF($G$64="Full Infiltration",0,2*(CapitalCosts!D16+CapitalCosts!D17+CapitalCosts!D18+CapitalCosts!D19))),"") -> 2.25 | N81: m | O81: =CapitalCosts!G136*(1+$P$59)*(1+P81) -> 76.75468 | P81: 0
C82: Surface area (SA) | G82: =IF(G62=0,"",G83*G84) -> 100 | H82: m2 | J82: =CapitalCosts!C137 -> Overflow pipes | M82: =IFERROR(IF(G62=0,"",IF(G64="Full Infiltration",CapitalCosts!D44+G72,IF(G64="Partial Infiltration",CapitalCosts!D58+G72,IF(G64="No Infiltration",CapitalCosts!D69+G72)))),"") -> 1.685 | N82: m | O82: =CapitalCosts!G137*(1+$P$59)*(1+P82) -> 81.4873836 | P82: 0
C83: Length | G83: =IF($G$64="full infiltration",CapitalCosts!D48,IF($G$64="partial infiltration",CapitalCosts!D61,IF($G$64="no infiltration",CapitalCosts!D72))) -> 10 | H83: m | J83: =CapitalCosts!C138 -> Pipe to sewer | M83: =IFERROR(IF(G62=0,"",M76),"") -> 11 | N83: m | O83: =CapitalCosts!G138*(1+$P$59)*(1+P83) -> 531.9651155 | P83: 0
C84: Width | G84: =IF(G63=0,"",IF($G$64="full infiltration",CapitalCosts!D49,IF($G$64="partial infiltration",CapitalCosts!D62,IF($G$64="no infiltration",CapitalCosts!D73)))) -> 10 | H84: m | J84: =CapitalCosts!C139 -> Monitoring pipes | M84: =IFERROR(IF(G62=0,"",IF(G64="Full Infiltration",2,IF(G64="Partial Infiltration",2,0))),"") -> 2 | N84: each | O84: =CapitalCosts!G139*(1+$P$59)*(1+P84) -> 206.2543734 | P84: 0
C85: Maximum duration of ponding | G85: =CapitalCosts!D45 -> 50 | H85: hours | J85: =CapitalCosts!C140 -> Fittings (materials & labour) | M85: =IFERROR(IF(G62=0,"","Yes"),"") -> Yes | N85: $ | O85: =CapitalCosts!G140*(1+$P$59)*(1+P85) -> 5088.374064 | P85: 0
C86: Water storage volume 3 | G86: =G82*G80*(G74/100) -> 59.4 | H86: m3 | J86: =CapitalCosts!C151 -> Manhole adaptor | M86: =IFERROR(IF(G62=0,"","Yes"),"") -> Yes | N86: units | O86: =CapitalCosts!G151*(1+$P$59)*(1+P86) -> 335.1729386 | P86: 0
C87: Maximum rainfall captured | G87: =G86/G62*1000 -> 29.7 | H87: mm | J87: =CapitalCosts!C152 -> Delivery | M87: =CapitalCosts!D152 -> 2 | N87: each | O87: =CapitalCosts!G152*(1+$P$59)*(1+P87) -> 464.838382 | P87: 0
J88: =CapitalCosts!C153 -> Stone inlets | M88: =IFERROR(IF(G62=0,"",CapitalCosts!I156*0.1),"") -> 0.3 | N88: m3 | O88: =CapitalCosts!G153*(1+$P$59)*(1+P88) -> 15.04608447 | P88: 0
C89: =IF(G69>20,"DA/SA should not exceed 15","DA/SA ratio is OK") -> DA/SA ratio is OK | J89: =CapitalCosts!C154 -> Stone | M89: =IFERROR(IF(G62=0,"",IF($G$64="Full Infiltration",0,CapitalCosts!D48*CapitalCosts!D49*G79)),"") -> 56 | N89: m3 | O89: =CapitalCosts!G154*(1+$P$59)*(1+P89) -> 2808.602434 | P89: 0
C90: =IF(G85>G65,"Ponding period exceeds specified period, change ponding depth","Ponding duration is OK") -> Ponding period exceeds specified period, change ponding depth | J90: =CapitalCosts!C155 -> Pea gravel, including labour | M90: =IFERROR(IF(G63=0,"",IF($G$64="Full Infiltration",0,CapitalCosts!D48*CapitalCosts!D49*G77)),"") -> 10 | N90: m3 | O90: =CapitalCosts!G155*(1+$P$59)*(1+P90) -> 597.0013301 | P90: 0
J91: =CapitalCosts!C156 -> Geotextile | M91: =IF(G64="Full Infiltration",0,CapitalCosts!D48) -> 10 | N91: m2 | O91: =CapitalCosts!G156*(1+$P$59)*(1+P91) -> 20.77467685 | P91: 0
C92: Notes: 1 Suggested design type based on native soil infiltration rate Full Infiltration ≥ 15 mm/hr Partial Infiltration < 15 mm/hr, requires underdrain No Infiltration - where there are high water tables, contaminated soils, critica infrastructure underneath or other constraints to infiltration, requires underdrain and impermeable liner 2 Total depth can be changed by adjusting the depth of any of the layers 3 Water volume capacity does not include ponding depth 4 The ratio of impervious drainage area to footprint surface area of the practice should be between 5:1 and 15:1 to limit the accumulation of fine sediments and thereby prevent clogging 5 The tool assumes vegetation covers 2/3 of cell area. The tool assumes 50% shrubs, 40% grasses, 10% broadleaf/herb 6 Project Acceptance Inspections include the following options: Option #1: Surface infiltration testing: Includes 1 Double Ring Infiltration test per 25 m of bioretention (minimum of 5), staff time; Option #2: Natural event testing: Includes 2 months of water level monitoring, materials and staff; Option #3: Simulated event testing: Includes water truck, materials and staff, plus 2 weeks of water level monitoring; Option #4: Continuous water level monitoring: 6 months of water level monitoring, materials and staff. | J92: =CapitalCosts!C157 -> Backfill | M92: =IFERROR(IF(G62=0,"",IF(G64="Full Infiltration",0,IF(G64="Partial Infiltration",CapitalCosts!I59*1.25/0.9,CapitalCosts!I73*1.25/0.9))),"") -> 3.106922157 | N92: m3 | O92: =CapitalCosts!G157*(1+$P$59)*(1+P92) -> 6.313115642 | P92: 0
J93: =CapitalCosts!C158 -> Curbs & gutter with curb inlets | M93: =IFERROR(IF(G62=0,"",2*(CapitalCosts!D49)+2*(CapitalCosts!D48)),"") -> 40 | N93: m | O93: =CapitalCosts!G158*(1+$P$59)*(1+P93) -> 4334.381929 | P93: 0
J94: =CapitalCosts!C159 -> Vegetation | M94: =IFERROR(IF(G62=0,"",2/3*(CapitalCosts!D48*CapitalCosts!D49)),"") -> 66.66666667 | N94: m2 | O94: =CapitalCosts!G159*(1+$P$59)*(1+P94) -> 6334.034584 | P94: 0
J95: =CapitalCosts!C160 -> Wood mulch | M95: =IFERROR(IF(G62=0,"",CapitalCosts!D48*CapitalCosts!D49*G75),"") -> 7.5 | N95: m3 | O95: =CapitalCosts!G160*(1+$P$59)*(1+P95) -> 99.30149233 | P95: 0
J96: =CapitalCosts!C161 -> Filter media TOTAL | M96: =IFERROR(IF(G62=0,"",CapitalCosts!D48*CapitalCosts!D49*G78*1.25),"") -> 93.75 | N96: Lm3 | O96: =CapitalCosts!G161*(1+$P$59)*(1+P96) -> 5790.351718 | P96: 0
J97: Add additional costs if necessary | O97: 0
J98: INSPECTIONS
J99: Construction Inspections | M99: =IF(G62="","",CapitalCosts!D200) -> 5 | N99: visit | O99: =(CapitalCosts!D199*M99+CapitalCosts!D203)*(1+$P$59)*(1+P99) -> 1141.443532 | P99: 0
J100: Project Acceptance Inspections6 | M100: =IF(G62=0,"",CapitalCosts!E200) -> 2.5 | N100: visit | O100: =(CapitalCosts!E199*M100)*(1+$P$59)*(1+P100) -> 401.9279243 | P100: 0
J101: Option #1: Surface infiltration testing | M101: =IF(G62=0,"",1) -> 1 | N101: tests | O101: =CapitalCosts!E205*M101*(1+$P$59)*(1+P101) -> 316.0085492 | P101: 0
J102: Option #2: Natural event testing | M102: =IF(G62=0,"",1) -> 1 | N102: tests | O102: =CapitalCosts!E206*M102*(1+$P$59)*(1+P102) -> 0 | P102: -1
J103: Option #3: 6 months water level monitoring | M103: =IF(G63=0,"",1) -> 1 | N103: tests | O103: =CapitalCosts!E207*M103*(1+$P$59)*(1+P103) -> 0 | P103: -1
J104: Add additional costs if necessary | O104: 0
J105: TOTALS
J106: Sub-total | O106: =SUM(O79:O97,O72:O77,O62:O70,O99:O105) -> 36135.55089
J107: Overhead | M107: =Assumptions!$D$19 -> 0.1 | O107: =O106*M107 -> 3613.555089
J108: Other | M108: 0 | O108: =O106*M108 -> 0
J109: GRAND TOTAL | O109: =SUM(O106:O108) -> 39749.10598
C113: User Notes:
C123: Maintenance and Life Cycle Costs
C124: USERS: Choose your maintenance level. Defaults will populate the table below. Light green coloured cells can be modified.
H126: Select maitenance level --> | J126: Low | N126: Notes: ▪ Maintenance costs are scaled based on the size of the bioretention. ▪ If rehabilitation is performed, Year 1 and 2 watering and restoration of lost vegetation maintenance will be costed again ▪ Rehabilitation occurs on schedule, even during the last year of the evaluation period ▪ The discount rate accounts for the time value of money and the risk of anticipated future cash flows ▪ All Life Cycle Costing Results are Net Present Value, which takes into account average annual interest and discount rates over the evaluation time periods ▪ Life cycle cost of Rehabilitation takes into account differences in maintenance when rehabilitation performed ▪ Average Annual Maintenance cost does not include rehabilitation costs and therefore represents an average of routine maintenance tasks as outlined in the Maintenance table above
H127: Sales tax/HST (%) | J127: =Assumptions!$D$17 -> 0.13
G129: Life Cycle Occurrence (every X years) | J129: Unit cost
C130: MAINTENANCE OPTIONS | G130: Occurrence | H130: Default | I130: Assumed
C131: =OM_Costs!C54 -> Routine Operation Inspections | G131: Periodic | H131: 1 | I131: 1 | J131: =IF(G131="Ignore",0,OM_Costs!D54*($J$127+1)) -> 156.8980461
C132: =OM_Costs!C55 -> Maintenance Inspections | G132: Periodic | H132: 5 | I132: 5 | J132: =IF(G132="Ignore",0,OM_Costs!D55*($J$127+1)) -> 138.3180143
C133: =OM_Costs!C56 -> Performance Verification Inspections | G133: Periodic | H133: 15 | I133: 15 | J133: =IF(G133="Ignore",0,OM_Costs!D56*($J$127+1)) -> 430.2251066
C134: =OM_Costs!C57 -> PV Option #1: Surface infiltration testing | G134: Periodic | H134: 15 | I134: 15 | J134: =IF(G134="Ignore",0,OM_Costs!D57*($J$127+1)) -> 1488.298328
C135: =OM_Costs!C58 -> PV Option #2: Natural event testing | G135: Ignore | H135: 15 | I135: 15 | J135: =IF(G135="Ignore",0,OM_Costs!D58*($J$127+1)) -> 0
C136: =OM_Costs!C59 -> PV Option #3: Simulated event testing | G136: Ignore | H136: 15 | I136: 15 | J136: =IF(G136="Ignore",0,OM_Costs!D59*($J$127+1)) -> 0
C137: =OM_Costs!C60 -> PV Option #4: 6 months water level monitoring | G137: Ignore | H137: 15 | I137: 15 | J137: =IF(G137="Ignore",0,OM_Costs!D60*($J$127+1)) -> 0
C138: =OM_Costs!C61 -> Watering - Year 1 only | G138: Once | H138: 1 | I138: 1 | J138: =IF(G138="Ignore",0,OM_Costs!D61*($J$127+1)) -> 311.2014201
C139: =OM_Costs!C62 -> Watering - Year 2 only | G139: Once | H139: 2 | I139: 2 | J139: =IF(G139="Ignore",0,OM_Costs!D62*($J$127+1)) -> 176.3474714
C140: =OM_Costs!C63 -> Annual watering - Starts in Year 3 | G140: Periodic | H140: 1 | I140: 1 | J140: =IF(G140="Ignore",0,OM_Costs!D63*($J$127+1)) -> 51.86690334
C141: =OM_Costs!C64 -> Drought watering | G141: Periodic | H141: 5 | I141: 5 | J141: =IF(G141="Ignore",0,OM_Costs!D64*($J$127+1)) -> 4.324432453
C142: =OM_Costs!C65 -> Remove litter and debris | G142: Periodic | H142: 1 | I142: 1 | J142: =IF(G142="Ignore",0,OM_Costs!D65*($J$127+1)) -> 48.20722135
C143: =OM_Costs!C66 -> Prune | G143: Periodic | H143: 1 | I143: 1 | J143: =IF(G143="Ignore",0,OM_Costs!D66*($J$127+1)) -> 68.93831036
C144: =OM_Costs!C67 -> Weed | G144: Periodic | H144: 1 | I144: 1 | J144: =IF(G144="Ignore",0,OM_Costs!D67*($J$127+1)) -> 48.6039886
C145: =OM_Costs!C68 -> Sediment removal - Starts Year 2 | G145: Periodic | H145: 1 | I145: 1 | J145: =IF(G145="Ignore",0,OM_Costs!D68*($J$127+1)) -> 301.6831681
C146: =OM_Costs!C69 -> Add mulch to maintain 75 mm - Starts Year 2 | G146: Periodic | H146: 2 | I146: 2 | J146: =IF(G146="Ignore",0,OM_Costs!D69*($J$127+1)) -> 56.10534316
C147: =OM_Costs!C70 -> Replace lost vegetation - Starts Year 2 | G147: Periodic | H147: 1 | I147: 1 | J147: =IF(G147="Ignore",0,OM_Costs!D70*($J$127+1)) -> 715.745908 | N147: User Notes:
C148: =OM_Costs!C71 -> Unclog underdrain - Starts Year 2 | G148: Periodic | H148: 1 | I148: 1 | J148: =IF(G148="Ignore",0,OM_Costs!D71*($J$127+1)) -> 176.8668626
C149: =OM_Costs!C72 -> User added additional options | G149: Periodic | H149: n/a | I149: n/a | J149: =IF(G149="Ignore",0,OM_Costs!D72*($J$127+1)) -> 0
C150: =OM_Costs!C73 -> User added additional options | G150: Periodic | H150: n/a | I150: n/a | J150: =IF(G150="Ignore",0,OM_Costs!D73*($J$127+1)) -> 0
C151: =OM_Costs!C74 -> User added additional options | G151: Periodic | H151: n/a | I151: n/a | J151: =IF(G151="Ignore",0,OM_Costs!D74*($J$127+1)) -> 0
C152: =OM_Costs!C75 -> User added additional options | G152: Periodic | H152: n/a | I152: n/a | J152: =IF(G152="Ignore",0,OM_Costs!D75*($J$127+1)) -> 0
C153: =OM_Costs!C76 -> Rehabilitation | G153: Periodic | H153: 25 | I153: 25 | J153: =IF(G153="Ignore",0,OM_Costs!D76*($J$127+1)) -> 9957.550707
C155: LIFE CYCLE COSTING INPUTS
C156: Inflation Rate (%) | G156: =Assumptions!$D$14 -> 0.03
C157: Discount Rate (%) | G157: =Assumptions!$D$15 -> 0.05
C158: Construction Costs | G158: =BRDesign!O109 -> 39749.10598
C159: Life Cycle Costing Results (present value, 50 years)
C160: Life Cycle Cost of Rehabilitation | G160: =LifeCycleCosts!AY72 -> 9963.439299 | H160: <- Difference of total maintenance costs with inflation and discount for rehab vs no rehab
C161: Average Annual Maintenance Cost
C162: 50 Year evaluation period | G162: =LifeCycleCosts!AZ69 -> 3687.963686 | H162: <- Includes inflation, does not include discount or rehabilitation
C163: =Assumptions!$D$16&" Year evaluation period" -> Year evaluation period | G163: =LifeCycleCosts!AZ67 ->  | H163: <- Includes inflation, does not include discount or rehabilitation
C170: Design Summary
C171: Drainage area, m2 | G171: =G62 -> 2000
C172: Soil Infiltration rate, mm/hr | G172: =G63 -> 10
C173: Surface area, m2 | G173: =G82 -> 100
C174: Design type | G174: =G64 -> Partial Infiltration
C175: Storage volume, m3 | G175: =G86 -> 59.4
C177: Cost Summary
C178: Total construction costs | G178: =BRDesign!$O$109 -> 39749.10598
C179: Construction cost break down
C180: Pre-construction | G180: =SUM(BRDesign!O62:O70) -> 2812.179343
C181: Excavation | G181: =SUM(BRDesign!O72:O77) -> 3938.900305
C182: Materials & Installation | G182: =SUM(BRDesign!O79:O97) -> 27525.09124
C183: Inspections | G183: =SUM(BRDesign!O99:O104) -> 1859.380005
C184: Project mngt, overhead & other | G184: =SUM(BRDesign!O107:O108) -> 3613.555089
C187: Life Cycle Totals
C188: 50 YEAR EVALUATION PERIOD
C189: PV of maintenance & rehabilitation | G189: =IF(G178>0,LifeCycleCosts!AY71,0) -> 56992.56938
C190: PV of all costs | G190: =G189+G178 -> 96741.67536
C191: =Assumptions!$D$16&" YEAR EVALUATION PERIOD" -> YEAR EVALUATION PERIOD
C192: PV of maintenance & rehabilitation | G192: =IF(G178>0,LifeCycleCosts!AY70,0) -> 
C193: PV of all costs | G193: =G192+G178 -> 
C195: Estimated Retrofit Cost
C196: Percentage of total cost | G196: =Assumptions!$D$18 -> 0.16
C197: Total | G197: =G178*G196 -> 6359.856957
C208: Working Notes

Sheet EGSDesign
B1: ENHANCED GRASS SWALE | J1: EGS calcs | L1: TOC | N1: INTRO | O1: Capital | P1: O&M | Q1: Summary
C3: Design & Costs Information
C31: Design Guidance (visit wiki.sustainabletechnologies.ca for detailed guidance; see the LCCT User Guide for info on how to use the tool for cost estimation and for model design specifications) • EGS can provide pre-treatment for other stormwater BMPs, such as bioretention areas, soakaways and perforated pipe systems or be designed in series with other practices as part of a treatment train. • Swales should be designed with a trapezoidal or triangular cross section. Swale length between culverts should be 5 metres or greater. • Swales should be designed with a bottom width between 0.6 and 2.4 metres to allow for shallow flows and adequate water quality treatment. • The longitudinal slope should be between 0.5% and 4%. Check dams should be incorporated on slopes greater than 3%. • Side slopes should be as flat as possible to aid in providing pre-treatment for lateral incoming flows and to maximize the swale filtering surface. Steeper side slopes may be susceptible to erosion from incoming lateral flows. A maximum slope of 2.5:1 is recommended. The tool defaults to 2.5:1 to minimize facility surface area. • Maximum depth of flow should be 50% of height of grass for regularly mown swales, to maximum of 75 mm. For infrequently mown swales, STEP recommends maximim flows of 33% of the height of vegetation. • Grass swales should be designed for a maximum velocity of 0.3 m/s or less. The swale should also convey the locally required design storm (usually the 10 mm year storm) at non-erosive velocities. Tool Assumptions • User enters site information into the yellow cells in the User Input section. The tool includes defaults based on STEP’s LID Planning and Design Guidance, but users may change the values found in the pink cells. STEP default values are kept in a separate column as a reference. • Assumes an in-line system. • Thje tool assumes curb-and-gutter around the circumference of the facility with curb-cut inlets every 6 m to 0.5 m2 and stone splash pads. Modify these design assumptions accordingly if you've chosen another inflow method, as these costs are usually very high. • Check dam placement depends on slope. The greater the slope, the more check dams placed by the tool. The unit cost for check dams is for the amount of material required, not the number of dams. • If configuration includes a driveway (assumed to be two lanes), a culvert pipe connects the EGS and an extra 0.1 m of gravel is added beneath the culvert. Designs for swales which cross multiple driveways or smaller driveways can account for this by multiplying or dividing these costs in the Additional Costs cells. • The tool calculates costs for new designs (based on model designs; see the LCCT User Guide) and includes costs of design (as part of overhead), contractor profit, material, delivery, labour, equipment (rental, operating and operator costs), hauling and disposal. Since the tool was built to estimate greenfield development costs, it does not include mobilization and demobilization. You can add mobilization costs in the "Additional Costs" cells. • Unit costs are based on 2018 pricing; the tool automatically adds inflation. See the Assumptions sheet for details. • The cost of retrofitting is in general 16% higher than the cost of new construction. These added construction costs can be found in the 'costs summary' tab and are easily added to the total construction cost for increased accuracy.
C64: USERS: Please enter information into YELLOW coloured cells
C66: Site and Design Information | I66: Capital Costs | L66: Sales tax / HST (%) | N66: =Assumptions!$D$17 -> 0.13
C68: USER INPUTS | I68: PRE-CONSTRUCTION | L68: Unit | M68: Cost | N68: Cost adjustment
C69: Drainage area 1 | F69: 2000 | G69: m2 | I69: Test pits (2) | K69: =IF(F69="","",ROUNDUP(TestPits!E15*2,0)) -> 2 | L69: m3 | M69: =CapitalCosts!Q102*($N$66+1)*(1+N69) -> 255.3539254 | N69: 0
C70: Option to stormsewer | F70: Culvert | G70: unitless | I70: Infiltration tests (2 per test pit) | K70: =IF(F87="","",2*2) -> 4 | L70: tests | M70: =CapitalCosts!Q103*($N$66+1)*(1+N70) -> 601.4356258 | N70: 0
C71: Is there a driveway separating the EGS? | F71: Yes | I71: Stakeout of utilities | K71: =IF(F69="","",1) -> 1 | L71: visit | M71: =CapitalCosts!Q104*($N$66+1)*(1+N71) -> 581.95 | N71: 0
C72: Swale shape | F72: Linear | G72: unitless | I72: Erosion and sediment controls:
C73: Longitudinal slope | F73: 4 | G73: % | I73: 2" Submersible gas pump | K73: =IF(F69="","",3) -> 3 | L73: days | M73: =CapitalCosts!Q106*($N$66+1)*(1+N73) -> 104.2216583 | N73: 0
C74: Check dams | F74: Yes | G74: unitless | I74: Silt sack in catchbasin | K74: =IF(F69="","",1) -> 1 | L74: each | M74: =CapitalCosts!Q107*($N$66+1)*(1+N74) -> 78.35985 | N74: 0
C75: Check dam type | F75: Rock | G75: unitless | I75: Silt fence around excavation | K75: =IFERROR(IF(F69="","",CapitalCosts!N108),"") -> 118.5105263 | L75: m | M75: =CapitalCosts!Q108*($N$66+1)*(1+N75) -> 894.1660938 | N75: 0
C76: Project land value classification | F76: None | G76: Unitless | I76: Value of project land | K76: =CapitalCosts!N101 -> 239.9 | L76: m2 | M76: =CapitalCosts!Q101*($N$66+1)*(1+N76) -> 0 | N76: 0
C77: DESIGN DEFAULTS | E77: defaults | F77: (values in col G can be changed) | I77: Add additional costs if necessary | K77: =IF(F81="","","") ->  | M77: 0
C78: Drainage area to swale area ratio 2 | E78: 10 | F78: 10 | G78: :1 | I78: EXCAVATION
C79: Pipe to catchbasin length | E79: 5 | F79: 5 | G79: m | I79: Excavator | K79: =IFERROR(IF(F69="","",CapitalCosts!N111),"") -> 115.0749123 | L79: m3 | M79: =CapitalCosts!Q112*($N$66+1)*(1+N79) -> 183.2465937 | N79: 0
C80: Bottom width | E80: 0.75 | F80: 0.75 | G80: m | I80: Loading | K80: =Assumptions!$D$8 -> 0.15 | L80: % of excavation cost | M80: =CapitalCosts!Q113*($N$66+1)*(1+N80) -> 27.48698906 | N80: 0
C81: Depth of swale | E81: 0.5 | F81: 0.5 | G81: m | I81: Hauling | K81: =IFERROR(IF(F69="","",CapitalCosts!P118),"") -> 3.666666667 | L81: trips | M81: =CapitalCosts!Q114*($N$66+1)*(1+N81) -> 749.0421998 | N81: 0
C82: Side slopes | E82: 2.5 | F82: 2.5 | G82: X:1 | I82: Top soil salvage | K82: =CapitalCosts!N119 -> 50 | L82: m3 | M82: =SUM(CapitalCosts!Q119:Q120)*($N$66+1)*(1+N82) -> 846.9798513 | N82: 0
C83: Driveway culvert diameter | E83: 0.3 | F83: 0.3 | G83: m | I83: Safety fencing | K83: =IFERROR(IF(F69="","",CapitalCosts!N121),"") -> 158.5105263 | L83: m (1 week rental) | M83: =CapitalCosts!Q121*($N$66+1)*(1+N83) -> 3467.033451 | N83: 0
C84: Driveway width | E84: 8.4 | F84: 8.4 | G84: m | I84: Culvert to stormsewer trenching | K84: =IF(F69="","",IF(F70="Culvert",4,0)) -> 4 | L84: m | M84: =CapitalCosts!Q122*($N$66+1)*(1+N84) -> 177.8701918 | N84: 0
C85: TOOL RESULTS | I85: Pipe to catchbasin trenching | K85: =IFERROR(IF(F69="","",F79),"") -> 5 | L85: m | M85: =CapitalCosts!Q123*($N$66+1)*(1+N85) -> 222.3377397 | N85: 0
C86: Check dam height | F86: =IF(F69="","",IF(F74="No",0,0.3)) -> 0.3 | G86: m | I86: Add additional costs if necessary | M86: 0
C87: Surface area at top | F87: =IFERROR(IF(F69="","",F69/F78),"") -> 200 | G87: m2 | I87: MATERIALS & INSTALLATION
C88: Width at top | F88: =IF(F69="","",CapitalCosts!N44) -> 4.75 | G88: m | I88: Culvert to stormsewer and 1 headwall | K88: =IF(F69="","",IF(F70="Culvert",1,0)) -> 1 | L88: each | M88: =CapitalCosts!Q137*($N$66+1)*(1+N88) -> 1246.50403 | N88: 0
C89: Length of bottom | F89: =IF(F69="","",F87/F88) -> 42.10526316 | G89: m | I89: Catchbasin | K89: =IF(F69="","",IF(F70="Catchbasin",1,0)) -> 0 | L89: each | M89: =CapitalCosts!Q141*($N$66+1)*(1+N89) -> 0 | N89: 0
C90: Distance between check dams | F90: =IFERROR(IF(F69="","",IF(F74="No","n/a",F86/(F73/100))),"") -> 7.5 | G90: m | I90: Pipe to catchbasin (HDPE) | K90: =IFERROR(IF(F69="","",F79),"") -> 5 | L90: m | M90: =CapitalCosts!Q144*($N$66+1)*(1+N90) -> 409.3887945 | N90: 0
C91: Number of check dams | F91: =IFERROR(IF(F69="","",IF(F74="No",0,ROUNDDOWN(F89/F90,0.1))),"") -> 5 | G91: unitless | I91: Pipe to catchbasin delivery | K91: =IF(F69="","",IF(F70="Catchbasin",1,0)) -> 0 | L91: each | M91: =CapitalCosts!Q145*($N$66+1)*(1+N91) -> 0 | N91: 0
I92: Pipe for driveway culvert (incl delivery) | K92: =IFERROR(IF(F69="","",F84),"") -> 8.4 | L92: m | M92: =CapitalCosts!Q148*($N$66+1)*(1+N92) -> 1462.902061 | N92: 0
C93: =IF(F78>10,"DA/SA should not exceed 10","DA/SA ratio is OK") -> DA/SA ratio is OK | I93: Top Soil Amendments | M93: =SUM(CapitalCosts!Q149:Q150)*($N$66+1)*(1+N93) -> 110.6365193 | N93: 0
C94: =IF(AND(F74="no",F75<>"n/a"),"Should be 'na'.",IF(AND(F74<>"n/a",F75="no"),"specify type of check dam","Check dam specification OK")) -> Check dam specification OK | I94: Curbs & gutter with curb inlets | K94: =IFERROR(IF(F69="","",F89),"") -> 42.10526316 | L94: m | M94: =CapitalCosts!Q151*($N$66+1)*(1+N94) -> 4562.507294 | N94: 0
I95: Sod | K95: =IFERROR(IF(F69="","",CapitalCosts!N152),"") -> 233.4375987 | L95: m2 | M95: =CapitalCosts!Q152*($N$66+1)*(1+N95) -> 1306.316412 | N95: 0
C96: Notes: 1 Given the typical urban swale dimensions, the contributing drainage area should be limited to ≤ 20 000 m2 to maintain flow ≤ 0.15 m3/s and velocity ≤ 0.5 m/s. 2 Typical ratios of impervious drainage area to swale area range from 5:1 to 10:1 3 Includes compaction tests, 1 Proctor test, and 4 Nuclear Density tests 5 Project Acceptance Inspections include the following options: Option #1: Surface infiltration testing: Includes 1 Double Ring Infiltration test per 25 m of bioretention (minimum of 5), staff time; Option #2: Natural event testing: Includes 2 months of water level monitoring, materials and staff; Option #3: Simulated event testing: Includes water truck, materials and staff, plus 2 weeks of water level monitoring. | I96: =IF(F75="Curb","Check dams: 0.3 m curb",IF(F75="Filter Sock","Check dams: Biofilter sock",IF(F75="Rock","Check dams: 50 mm clear stone + geotextile","Check dams:"))) -> Check dams: 50 mm clear stone + geotextile | K96: =IFERROR(IF(F69="","",IF(F75="Curb",CapitalCosts!N153,IF(F75="Filter Sock",CapitalCosts!N154,CapitalCosts!N155))),"") -> 2.7 | L96: =IF(F75="Rock","m3","m") -> m3 | M96: =CapitalCosts!Q157*($N$66+1)*(1+N96) -> 439.0684219 | N96: 0
I97: Stone inlets | K97: =IFERROR(IF(F69="","",CapitalCosts!N160),"") -> 0.45 | L97: m3 | M97: =CapitalCosts!Q160*($N$66+1)*(1+N97) -> 116.634889 | N97: 0
I98: Stone inlets geotextile | K98: =IFERROR(IF(F69="","",CapitalCosts!N161),"") -> 4.5 | L98: m2 | M98: =CapitalCosts!Q161*($N$66+1)*(1+N98) -> 9.348604581 | N98: 0
I99: Headwalls for driveway culvert | K99: =IFERROR(IF(F69="","",CapitalCosts!N162),"") -> 2 | L99: units | M99: =CapitalCosts!Q162*($N$66+1)*(1+N99) -> 856.28123 | N99: 0
I100: 50 mm clear stone | K100: =IFERROR(IF(F69="","",CapitalCosts!N163),"") -> 16.01154 | L100: Cm3/Bm3 | M100: =CapitalCosts!Q163*($N$66+1)*(1+N100) -> 848.1240352 | N100: 0
I101: Compact stone 3 | K101: =IFERROR(IF(F69="","",CapitalCosts!N164),"") -> 16.01154 | L101: Em3 | M101: =CapitalCosts!Q164*($N$66+1)*(1+N101) -> 24.33696185 | N101: 0
I102: Add additional costs if necessary | M102: 0
I103: INSPECTIONS
I104: Construction Inspections | K104: =IF($F$69="","",CapitalCosts!N200) -> 5 | L104: visit | M104: =(CapitalCosts!N199*K104+CapitalCosts!N203)*($N$66+1)+(1+N104) -> 777.2811415 | N104: 0
I105: Project Acceptance Inspections4 | K105: =IF($F$69="","",CapitalCosts!O200) -> 2.5 | L105: visit | M105: =(CapitalCosts!O199*K105+CapitalCosts!O203)*($N$66+1)*(1+N105) -> 654.6450591 | N105: 0
I106: Option #1: Surface infiltration testing | K106: =IF($F$69="","",1) -> 1 | L106: tests | M106: =CapitalCosts!O205*K106*($N$66+1)*(1+N106) -> 468.9159117 | N106: 0
C107: User Notes: | I107: Option #2: Natural event testing | K107: =IF($F$69="","",1) -> 1 | L107: tests | M107: =CapitalCosts!O206*K107*($N$66+1)*(1+N107) -> 0 | N107: -1
I108: Option #3: Simulated event testing | K108: =IF($F$69="","",1) -> 1 | L108: tests | M108: =CapitalCosts!O207*K108*($N$66+1)*(1+N108) -> 0 | N108: -1
I109: Add additional costs if necessary | M109: 0
I110: TOTALS
I111: Sub-total | M111: =SUM(M88:M102,M79:M86,M69:M77,M104:M109) -> 21482.37553
I112: Overhead | K112: =Assumptions!$D$19 -> 0.1 | M112: =M111*K112 -> 2148.237553
I113: Other | K113: 0 | M113: =K113*M111 -> 0
I114: GRAND TOTAL | M114: =SUM(M111:M113) -> 23630.61309
C133: Maintenance and Life Cycle Costs
C134: USERS: Choose your maintenance level. Defaults will populate the table below. Light green coloured cells can be modified.
K136: Notes: ▪ Maintenance costs are scaled based on the size of the enhanced grass swale ▪ If rehabilitation is performed, Year 1 and 2 watering and restoration of lost vegetation maintenance will be costed again ▪ Rehabilitation occurs on schedule, even during the last year of the evaluation period ▪ The discount rate accounts for the time value of money and the risk of anticipated future cash flows ▪ All Life Cycle Costing Results are Net Present Value, which takes into account average annual interest and discount rates over the evaluation time periods ▪ Life cycle cost of Rehabilitation takes into account differences in maintenance when rehabilitation performed ▪ Average Annual Maintenance cost does not include rehabilitation costs and therefore represents an average of routine maintenance tasks as outlined in the Maintenance table above
F137: Select maitenance level --> | H137: Low
F138: Sales tax / HST (%) | H138: =Assumptions!$D$17 -> 0.13
F140: Life Cycle Occurrence (every X years)
C141: MAINTENANCE OPTIONS | F141: Occurrence | G141: Default | H141: Assumed | I141: Unit cost
C142: =OM_Costs!K54 -> Routine Inspection | F142: Periodic | G142: 1 | H142: 1 | I142: =IF(EGSDesign!$F$69="",0,IF(OR(F142="Select…",F142="Ignore"),0,IF($H$137="Low",OM_Costs!L54*($H$138+1),OM_Costs!M54*($H$138+1)))) -> 217.5276234
C143: =OM_Costs!K55 -> Maintenance Verification | F143: Periodic | G143: 5 | H143: 5 | I143: =IF(EGSDesign!$F$69="",0,IF(OR(F143="Select…",F143="Ignore"),0,IF($H$137="Low",OM_Costs!L55*($H$138+1),OM_Costs!M55*($H$138+1)))) -> 188.8426621
C144: =OM_Costs!K56 -> Performance Verification | F144: Periodic | G144: 15 | H144: 15 | I144: =IF(EGSDesign!$F$69="",0,IF(OR(F144="Select…",F144="Ignore"),0,IF($H$137="Low",OM_Costs!L56*($H$138+1),OM_Costs!M56*($H$138+1)))) -> 533.7163071
C145: =OM_Costs!K57 -> PV Option #1: Surface infiltration testing | F145: Periodic | G145: 15 | H145: 15 | I145: =IF(EGSDesign!$F$69="",0,IF(OR(F145="Select…",F145="Ignore"),0,IF($H$137="Low",OM_Costs!L57*($H$138+1),OM_Costs!M57*($H$138+1)))) -> 2344.579558
C146: =OM_Costs!K58 -> PV Option #2: Natural event testing | F146: Ignore | G146: 15 | H146: 15 | I146: =IF(EGSDesign!$F$69="",0,IF(OR(F146="Select…",F146="Ignore"),0,IF($H$137="Low",OM_Costs!L58*($H$138+1),OM_Costs!M58*($H$138+1)))) -> 0
C147: =OM_Costs!K59 -> PV Option #3: Simulated event testing | F147: Ignore | G147: 15 | H147: 15 | I147: =IF(EGSDesign!$F$69="",0,IF(OR(F147="Select…",F147="Ignore"),0,IF($H$137="Low",OM_Costs!L59*($H$138+1),OM_Costs!M59*($H$138+1)))) -> 0
C148: =OM_Costs!K60 -> PV Option #4: 6 months water level monitoring | F148: Ignore | G148: 15 | H148: 15 | I148: =IF(EGSDesign!$F$69="",0,IF(OR(F148="Select…",F148="Ignore"),0,IF($H$137="Low",OM_Costs!L60*($H$138+1),OM_Costs!M60*($H$138+1)))) -> 0
C149: =OM_Costs!K61 -> Watering - Year 1 only | F149: Once | G149: 1 | H149: 1 | I149: =IF(EGSDesign!$F$69="",0,IF(OR(F149="Select…",F149="Ignore"),0,IF($H$137="Low",OM_Costs!L61*($H$138+1),OM_Costs!M61*($H$138+1)))) -> 196.5482653 | K149: User Notes:
C150: =OM_Costs!K62 -> Watering - Year 2 only | F150: Once | G150: 2 | H150: 2 | I150: =IF(EGSDesign!$F$69="",0,IF(OR(F150="Select…",F150="Ignore"),0,IF($H$137="Low",OM_Costs!L62*($H$138+1),OM_Costs!M62*($H$138+1)))) -> 111.3773503
C151: =OM_Costs!K63 -> Annual watering - Starts in Year 3 | F151: Periodic | G151: 1 | H151: 1 | I151: =IF(EGSDesign!$F$69="",0,IF(OR(F151="Select…",F151="Ignore"),0,IF($H$137="Low",OM_Costs!L63*($H$138+1),OM_Costs!M63*($H$138+1)))) -> 13.10321769
C152: =OM_Costs!K64 -> Drought watering | F152: Periodic | G152: 5 | H152: 5 | I152: =IF(EGSDesign!$F$69="",0,IF(OR(F152="Select…",F152="Ignore"),0,IF($H$137="Low",OM_Costs!L64*($H$138+1),OM_Costs!M64*($H$138+1)))) -> 2.731220497
C153: =OM_Costs!K65 -> Remove litter and debris | F153: Periodic | G153: 1 | H153: 1 | I153: =IF(EGSDesign!$F$69="",0,IF(OR(F153="Select…",F153="Ignore"),0,IF($H$137="Low",OM_Costs!L65*($H$138+1),OM_Costs!M65*($H$138+1)))) -> 96.41444269
C154: =OM_Costs!K66 -> Mowing | F154: Periodic | G154: 1 | H154: 1 | I154: =IF(EGSDesign!$F$69="",0,IF(OR(F154="Select…",F154="Ignore"),0,IF($H$137="Low",OM_Costs!L66*($H$138+1),OM_Costs!M66*($H$138+1)))) -> 23.33617927
C155: =OM_Costs!K67 -> Sediment removal - Starts Year 2 | F155: Periodic | G155: 1 | H155: 1 | I155: =IF(EGSDesign!$F$69="",0,IF(OR(F155="Select…",F155="Ignore"),0,IF($H$137="Low",OM_Costs!L67*($H$138+1),OM_Costs!M67*($H$138+1)))) -> 301.6831681
C156: =OM_Costs!K68 -> Replace sod - Starts Year 2 | F156: Periodic | G156: 1 | H156: 1 | I156: =IF(EGSDesign!$F$69="",0,IF(OR(F156="Select…",F156="Ignore"),0,IF($H$137="Low",OM_Costs!L68*($H$138+1),OM_Costs!M68*($H$138+1)))) -> 26.62517098
C157: =OM_Costs!K69 -> Weed | F157: Periodic | G157: 1 | H157: 1 | I157: =IF(EGSDesign!$F$69="",0,IF(OR(F157="Select…",F157="Ignore"),0,IF($H$137="Low",OM_Costs!L69*($H$138+1),OM_Costs!M69*($H$138+1)))) -> 30.69725596
C158: =OM_Costs!K70 -> Prune | F158: Periodic | G158: 1 | H158: 1 | I158: =IF(EGSDesign!$F$69="",0,IF(OR(F158="Select…",F158="Ignore"),0,IF($H$137="Low",OM_Costs!L70*($H$138+1),OM_Costs!M70*($H$138+1)))) -> 43.53998549
C159: =OM_Costs!K71 -> User added additional options | F159: Periodic | G159: n/a | H159: n/a | I159: =IF(EGSDesign!$F$69="",0,IF(OR(F159="Select…",F159="Ignore"),0,IF($H$137="Low",OM_Costs!L71*($H$138+1),OM_Costs!M71*($H$138+1)))) -> 0
C160: =OM_Costs!K72 -> User added additional options | F160: Periodic | G160: n/a | H160: n/a | I160: =IF(EGSDesign!$F$69="",0,IF(OR(F160="Select…",F160="Ignore"),0,IF($H$137="Low",OM_Costs!L72*($H$138+1),OM_Costs!M72*($H$138+1)))) -> 0
C161: =OM_Costs!K73 -> User added additional options | F161: Periodic | G161: n/a | H161: n/a | I161: =IF(EGSDesign!$F$69="",0,IF(OR(F161="Select…",F161="Ignore"),0,IF($H$137="Low",OM_Costs!L73*($H$138+1),OM_Costs!M73*($H$138+1)))) -> 0
C162: =OM_Costs!K74 -> User added additional options | F162: Periodic | G162: n/a | H162: n/a | I162: =IF(EGSDesign!$F$69="",0,IF(OR(F162="Select…",F162="Ignore"),0,IF($H$137="Low",OM_Costs!L74*($H$138+1),OM_Costs!M74*($H$138+1)))) -> 0
C163: =OM_Costs!K75 -> Rehabilitation | F163: Periodic | G163: 25 | H163: 25 | I163: =IF(EGSDesign!$F$69="",0,IF(OR(F163="Select…",F163="Ignore"),0,IF($H$137="Low",OM_Costs!L75*($H$138+1),OM_Costs!M75*($H$138+1)))) -> 5578.307456
C166: LIFE CYCLE COSTING INPUTS
C167: Inflation Rate (%) | F167: =Assumptions!$D$14 -> 0.03
C168: Discount Rate (%) | F168: =Assumptions!$D$15 -> 0.05
C169: Construction Costs | F169: =EGSDesign!M114 -> 23630.61309
C170: Life Cycle Costing Results (present value, 50 years)
C171: Life Cycle Cost of Rehabilitation | F171: =LifeCycleCosts!CV72 -> 5581.606297 | G171: <- Difference of total maintenance costs with inflation and discount for rehab vs no rehab
C172: Average Annual Maintenance Cost
C173: 50 Year evaluation period | F173: =LifeCycleCosts!CW69 -> 2002.661967 | G173: <- Includes inflation, does not include discount or rehabilitation
C174: =Assumptions!$D$16&" Year evaluation period" -> Year evaluation period | F174: =LifeCycleCosts!CW67 ->  | G174: <- Includes inflation, does not include discount or rehabilitation
C183: Cost Summary
C186: Total construction costs | G186: =EGSDesign!M114 -> 23630.61309
C187: Construction cost break down
C188: Pre-construction | G188: =SUM(EGSDesign!M69:M77) -> 2515.487153
C189: Excavation | G189: =SUM(EGSDesign!M79:M86) -> 5673.997016
C190: Materials & Installation | G190: =SUM(EGSDesign!M88:M102) -> 11392.04925
C191: Inspections | G191: =SUM(EGSDesign!M104:M109) -> 1900.842112
C192: Project mngt, overhead & other | G192: =SUM(EGSDesign!M112:M113) -> 2148.237553
C194: Life Cycle Totals
C195: 50 YEAR EVALUATION PERIOD
C196: PV of maintenance & rehabilitation | G196: =LifeCycleCosts!CV71 -> 30956.64453
C197: PV of all costs | G197: =G196+G186 -> 54587.25762
C198: =Assumptions!$D$16&" YEAR EVALUATION PERIOD" -> YEAR EVALUATION PERIOD
C199: PV of maintenance & rehabilitation | G199: =LifeCycleCosts!CV70 -> 
C200: PV of all costs | G200: =G199+G186 -> 
C202: Retrofit Cost
C203: Percentage of total cost | G203: =Assumptions!$D$18 -> 0.16
C204: Total | G204: =G186*G203 -> 3780.898094
C219: Working Notes

Sheet VFSDesign
B1: Vegetated Filter Strips | J1: VFS calcs | L1: TOC | N1: INTRO | O1: Capital | P1: O&M | Q1: Summary
C3: Design & Costs Information
C31: Design Guidance (visit wiki.sustainabletechnologies.ca for detailed guidance; see the LCCT User Guide for info on how to use the tool for cost estimation and for model design specifications) • If designed as a stand-alone SWM practice, the strip should include a berm at the bottom of the slope. This option is not available on this tool. • The maximum contributing flow path length across adjacent impervious surfaces should not exceed 25 metres. Impervious surfaces draining to a filter strip should not have slopes greater than 3%. • The flow path length across the vegetated filter strip should exceed the maximum flow path length across the impervious surface draining to it. • The filter strip should have a flow path length of at least 5 metres to provide substantial water quality benefits; however, some pollutant removal benefits are realized with 3 metres of flow path length. Tool Assumptions • User enters site information into the yellow cells in the User Input section. The tool includes defaults based on STEP’s LID Planning and Design Guidance, but users may change the values found in the pink cells. STEP default values are kept in a separate column as a reference. • The tool calculates costs for new designs (based on model designs; see the LCCT User Guide) and includes costs of design (as part of overhead), contractor profit, material, delivery, labour, equipment (rental, operating and operator costs), hauling and disposal. Since the tool was built to estimate greenfield development costs, it does not include mobilization and demobilization. You can add mobilization costs in the "Additional Costs" cells. • Unit costs are based on 2018 pricing; the tool automatically adds inflation. See the Assumptions sheet for details. • The cost of retrofitting is in general 16% higher than the cost of new construction. These added construction costs can be found in the 'costs summary' tab and are easily added to the total construction cost for increased accuracy.
C59: USERS: Please enter information into YELLOW coloured cells
C61: Site and Design Information | I61: Capital Costs | L61: Sales tax / HST (%) | N61: =Assumptions!$D$17 -> 0.13
C63: USER INPUTS | I63: PRE-CONSTRUCTION | L63: Unit | M63: Cost | N63: Cost adjustment
C64: Drainage area 1 | F64: 10000 | G64: m2 | I64: Test pits (2) | K64: =IF(F64="","",ROUNDUP(TestPits!E22*2,0)) -> 2 | L64: m3 | M64: =CapitalCosts!AB102*($N$61+1)*(1+N64) -> 255.3539254 | N64: 0
C65: Longitudinal slope | F65: 0.5 | G65: % | I65: Infiltration tests (2 per test pit) | K65: =IF(F76="","",2*2) -> 4 | L65: tests | M65: =CapitalCosts!AB103*($N$61+1)*(1+N65) -> 601.4356258 | N65: 0
C66: Outlet to stormsewer | F66: Catchbasin | G66: unitless | I66: Stakeout of utilities | K66: =IF(F64="","",1) -> 1 | L66: visit | M66: =CapitalCosts!AB104*($N$61+1)*(1+N66) -> 581.95 | N66: 0
C67: Width | F67: 20 | G67: m | I67: Erosion and sediment controls: | M67: =CapitalCosts!AB105*($N$61+1)*(1+N67) -> 0
C68: Project land value classification | F68: None | G68: Unitless | I68: 2" Submersible gas pump | K68: =IF(F64="","",3) -> 3 | L68: days | M68: =CapitalCosts!AB106*($N$61+1)*(1+N68) -> 104.2216583 | N68: 0
C69: DESIGN DEFAULTS | E69: defaults | F69: (values in col G can be changed) | I69: Silt sack in catchbasin | K69: =IF(F64="","",CapitalCosts!Y107) -> 1 | L69: each | M69: =CapitalCosts!AB107*($N$61+1)*(1+N69) -> 78.35985 | N69: 0
C70: Maximum acceptable drainage area ratio | E70: 10 | F70: 10 | I70: Silt fence around excavation | K70: =IFERROR(IF(F64="","",CapitalCosts!Y108),"") -> 148 | L70: m | M70: =CapitalCosts!AB108*($N$61+1)*(1+N70) -> 1116.665211 | N70: 0
C71: Depth of swale | E71: 0.3 | F71: 0.3 | G71: m | I71: Value of project land | K71: =CapitalCosts!Y101 -> 1000 | L71: m2 | M71: =CapitalCosts!AB101*($N$61+1)*(1+N71) -> 0 | N71: 0
C72: Pipe to catchbasin length | E72: 5 | F72: 5 | G72: m | I72: Add additional costs if necessary | K72: =IF(F71="","","") ->  | M72: 0
C73: TOOL RESULTS | I73: EXCAVATION
C74: Length | F74: =(F64/F70)/F67 -> 50 | G74: m | I74: Excavator | K74: =IFERROR(IF(F64="","",CapitalCosts!Y111),"") -> 300 | L74: m3 | M74: =CapitalCosts!AB112*($N$61+1)*(1+N74) -> 140.7966506 | N74: 0
C75: Drainage area to swale area ratio 2 | F75: =IF(AND(ISNUMBER(F67*F74)*F67*F74>0),F64/F76,F70) -> 10 | G75: :1 | I75: Loading | K75: =Assumptions!$D$8 -> 0.15 | L75: % of excavation cost | M75: =CapitalCosts!AB113*($N$61+1)*(1+N75) -> 21.11949759 | N75: 0
C76: Surface area | F76: =F67*F74 -> 1000 | G76: m2 | I76: Hauling | K76: =CapitalCosts!AA118 -> 9.333333333 | L76: trips | M76: =CapitalCosts!AB114*($N$61+1)*(1+N76) -> 1906.652872 | N76: 0
I77: Top soil salvage | K77: =CapitalCosts!Y119 -> 250 | L77: m3 | M77: =SUM(CapitalCosts!AB119:AB120)*($N$61+1)*(1+N77) -> 4234.899256 | N77: 0
I78: Safety fencing | K78: =IFERROR(IF(F64="","",CapitalCosts!N121),"") -> 158.5105263 | L78: m (1 week rental) | M78: =CapitalCosts!AB121*($N$61+1)*(1+N78) -> 4112.044189 | N78: 0
I79: Culvert to stormsewer trenching | K79: =IF(F64="","",IF(F66="Culvert",4,0)) -> 0 | L79: m | M79: =CapitalCosts!AB122*($N$61+1)*(1+N79) -> 0 | N79: 0
I80: Pipe to catchbasin trenching | K80: =IFERROR(IF(F64="","",F72),"") -> 5 | L80: m | M80: =CapitalCosts!AB123*($N$61+1)*(1+N80) -> 222.3377397 | N80: 0
I81: Add additional costs if necessary | M81: 0
I82: MATERIALS & INSTALLATION
C83: =IF(F65>3,"A swale with longitudinal slope steeper than 3% requires check dams","Slope conditions are acceptable") -> Slope conditions are acceptable | I83: Culvert to stormsewer and 1 headwall | K83: =IF(F64="","",IF(F66="Culvert",1,0)) -> 0 | L83: each | M83: =CapitalCosts!AB137*($N$61+1)*(1+N83) -> 0 | N83: 0
C84: =IF(F75<=F70,"The design meets the drainage area requirements.","The design does not meet the drainage area requirements. Please reconsider the drainage area ratio or change swale dimensions ") -> The design meets the drainage area requirements. | I84: Catchbasin | K84: =IF(F64="","",IF(F66="Catchbasin",1,0)) -> 1 | L84: each | M84: =CapitalCosts!AB141*($N$61+1)*(1+N84) -> 1834.88835 | N84: 0
I85: Pipe to catchbasin (HDPE) | K85: =IFERROR(IF(F64="","",F72),"") -> 5 | L85: m | M85: =CapitalCosts!AB144*($N$61+1)*(1+N85) -> 409.3887945 | N85: 0
I86: Pipe to catchbasin delivery | K86: =IF(F64="","",IF(F66="Catchbasin",1,0)) -> 1 | L86: each | M86: =CapitalCosts!AB145*($N$61+1)*(1+N86) -> 232.419191 | N86: 0
I87: Curbs & gutter with curb inlets | K87: =F74 -> 50 | L87: m | M87: =CapitalCosts!AB146*($N$61+1)*(1+N87) -> 5417.977411 | N87: 0
I88: Sod | K88: =F76 -> 1000 | L88: m2 | M88: =CapitalCosts!AB147*($N$61+1)*(1+N88) -> 5595.998326 | N88: 0
C89: Notes: 1 Given the typical urban swale dimensions, the contributing drainage area should be limited to ≤ 20 000 m2 to maintain flow ≤ 0.15 m3/s and velocity ≤ 0.5 m/s. 3 Includes compaction tests, 1 Proctor test, and 4 Nuclear Density tests | I89: Stone inlets | K89: =IFERROR(IF(F64="","",CapitalCosts!Y149),"") -> 9 | L89: m3 | M89: =CapitalCosts!AB150*($N$61+1)*(1+N89) -> 116.634889 | N89: 0
I90: Stone inlets geotextile | K90: =IFERROR(IF(F64="","",CapitalCosts!Y151),"") -> 4.5 | L90: m2 | M90: =CapitalCosts!AB151*($N$61+1)*(1+N90) -> 9.348604581 | N90: 0
I91: Compost Amended TopSoil | K91: =IFERROR(IF(F64="","",CapitalCosts!Y154),"") -> 50 | L91: m3 | M91: =CapitalCosts!AB156*($N$61+1)*(1+N91) -> 5190.526282 | N91: 0
I92: Add additional costs if necessary | M92: 0
I93: INSPECTIONS
I94: Construction Inspections | K94: =IF($F$64="","",CapitalCosts!Y200) -> 5 | L94: visit | M94: =(CapitalCosts!Y199*K94+CapitalCosts!Y203)*($N$61+1)*(1+N94) -> 1472.147074 | N94: 0
I95: Project Acceptance Inspections3 | K95: =IF($F$64="","",CapitalCosts!Z200) -> 2.5 | L95: visit | M95: =(CapitalCosts!Z199*K95+CapitalCosts!Z203)*($N$61+1)*(1+N95) -> 1472.147074 | N95: 0
I96: Option #1: Surface infiltration testing | K96: =IF($F$64="","",1) -> 1 | L96: tests | M96: =CapitalCosts!Z204*K96*($N$61+1)*(1+N96) -> 316.0085492 | N96: 0
C97: User Notes: | I97: Add additional costs if necessary | M97: 0
I98: TOTALS
I99: Sub-total | M99: =SUM(M83:M91,M74:M81,M64:M72,M94:M97) -> 35443.32102
I100: Overhead | K100: =Assumptions!$D$19 -> 0.1 | M100: =M99*K100 -> 3544.332102
I101: Other | K101: 0 | M101: =$M$108*K101 -> 0
I102: GRAND TOTAL | M102: =SUM(M99:M101) -> 38987.65313
C114: Maintenance and Life Cycle Costs
C115: USERS: Choose your maintenance level. Defaults will populate the table below. Light green coloured cells can be modified.
F117: Select maitenance level --> | H117: Low | K117: Notes: ▪ Maintenance costs are scaled based on the size of the enhanced grass swale ▪ User added Rehabilitation occurs on schedule, even during the last year of the evaluation period ▪ The discount rate accounts for the time value of money and the risk of anticipated future cash flows ▪ All Life Cycle Costing Results are Net Present Value, which takes into account average annual interest and discount rates over the evaluation time periods ▪ Life cycle cost of User added Rehabilitation takes into account differences in maintenance when rehabilitation performed ▪ Average Annual Maintenance cost does not include User added rehabilitation costs and therefore represents an average of routine maintenance tasks as outlined in the Maintenance table above
F118: Sales tax / HST (%) | H118: =Assumptions!$D$17 -> 0.13
F120: Life Cycle Occurrence (every X years)
C121: MAINTENANCE OPTIONS | F121: Occurrence | G121: Default | H121: Assumed | I121: Unit cost
C122: =OM_Costs!S54 -> Routine Inspection | F122: Periodic | G122: 1 | H122: 1 | I122: =IF(VFSDesign!$F$64="",0,IF(OR(F122="Select…",F122="Ignore"),0,IF($H$117="Low",OM_Costs!T54*($H$118+1),OM_Costs!U54*($H$118+1)))) -> 619.3343924
C123: =OM_Costs!S55 -> Maintenance Verification | F123: Periodic | G123: 5 | H123: 5 | I123: =IF(VFSDesign!$F$64="",0,IF(OR(F123="Select…",F123="Ignore"),0,IF($H$117="Low",OM_Costs!T55*($H$118+1),OM_Costs!U55*($H$118+1)))) -> 433.5340747
C124: =OM_Costs!S56 -> Performance Verification | F124: Periodic | G124: 15 | H124: 15 | I124: =IF(VFSDesign!$F$64="",0,IF(OR(F124="Select…",F124="Ignore"),0,IF($H$117="Low",OM_Costs!T56*($H$118+1),OM_Costs!U56*($H$118+1)))) -> 770.8590224
C125: =OM_Costs!S57 -> PV Option #1: Surface infiltration testing | F125: Periodic | G125: 15 | H125: 15 | I125: =IF(VFSDesign!$F$64="",0,IF(OR(F125="Select…",F125="Ignore"),0,IF($H$117="Low",OM_Costs!T57*($H$118+1),OM_Costs!U57*($H$118+1)))) -> 1488.298328
C126: =OM_Costs!S58 -> Watering - first year only | F126: Once | G126: 1 | H126: 1 | I126: =IF(VFSDesign!$F$64="",0,IF(OR(F126="Select…",F126="Ignore"),0,IF($H$117="Low",OM_Costs!T58*($H$118+1),OM_Costs!U58*($H$118+1)))) -> 4668.021301
C127: =OM_Costs!S59 -> Watering - second year only | F127: Once | G127: 2 | H127: 2 | I127: =IF(VFSDesign!$F$64="",0,IF(OR(F127="Select…",F127="Ignore"),0,IF($H$117="Low",OM_Costs!T59*($H$118+1),OM_Costs!U59*($H$118+1)))) -> 2645.21207
C128: =OM_Costs!S60 -> Annual watering - Starts in year 3 | F128: Periodic | G128: 1 | H128: 1 | I128: =IF(VFSDesign!$F$64="",0,IF(OR(F128="Select…",F128="Ignore"),0,IF($H$117="Low",OM_Costs!T60*($H$118+1),OM_Costs!U60*($H$118+1)))) -> 311.2014201 | K128: User Notes:
C129: =OM_Costs!S61 -> Drought watering | F129: Periodic | G129: 5 | H129: 5 | I129: =IF(VFSDesign!$F$64="",0,IF(OR(F129="Select…",F129="Ignore"),0,IF($H$117="Low",OM_Costs!T61*($H$118+1),OM_Costs!U61*($H$118+1)))) -> 518.6690334
C130: =OM_Costs!S62 -> Remove litter and debris | F130: Periodic | G130: 1 | H130: 1 | I130: =IF(VFSDesign!$F$64="",0,IF(OR(F130="Select…",F130="Ignore"),0,IF($H$117="Low",OM_Costs!T62*($H$118+1),OM_Costs!U62*($H$118+1)))) -> 482.0722135
C131: =OM_Costs!S63 -> Mowing | F131: Periodic | G131: 1 | H131: 1 | I131: =IF(VFSDesign!$F$64="",0,IF(OR(F131="Select…",F131="Ignore"),0,IF($H$117="Low",OM_Costs!T63*($H$118+1),OM_Costs!U63*($H$118+1)))) -> 554.2342578
C132: =OM_Costs!S64 -> Core aeration of lawn | F132: Periodic | G132: High = 3, Low = 5 | H132: 5 | I132: =IF(VFSDesign!$F$64="",0,IF(OR(F132="Select…",F132="Ignore"),0,IF($H$117="Low",OM_Costs!T64*($H$118+1),OM_Costs!U64*($H$118+1)))) -> 424.7032927
C133: =OM_Costs!S65 -> Weed | F133: Periodic | G133: 1 | H133: 1 | I133: =IF(VFSDesign!$F$64="",0,IF(OR(F133="Select…",F133="Ignore"),0,IF($H$117="Low",OM_Costs!T65*($H$118+1),OM_Costs!U65*($H$118+1)))) -> 729.059829
C134: =OM_Costs!S66 -> Prune | F134: Periodic | G134: 1 | H134: 1 | I134: =IF(VFSDesign!$F$64="",0,IF(OR(F134="Select…",F134="Ignore"),0,IF($H$117="Low",OM_Costs!T66*($H$118+1),OM_Costs!U66*($H$118+1)))) -> 1034.074655
C135: =OM_Costs!S67 -> Remove Sediment - Starts year 2 | F135: Periodic | G135: 1 | H135: 1 | I135: =IF(VFSDesign!$F$64="",0,IF(OR(F135="Select…",F135="Ignore"),0,IF($H$117="Low",OM_Costs!T67*($H$118+1),OM_Costs!U67*($H$118+1)))) -> 1508.41584
C136: =OM_Costs!S68 -> Replace sod - Starts year 2 | F136: Periodic | G136: 1 | H136: 1 | I136: =IF(VFSDesign!$F$64="",0,IF(OR(F136="Select…",F136="Ignore"),0,IF($H$117="Low",OM_Costs!T68*($H$118+1),OM_Costs!U68*($H$118+1)))) -> 632.3478109
C137: =OM_Costs!S69 -> User added additional options | F137: Select… | G137: n/a | H137: n/a | I137: =IF(VFSDesign!$F$64="",0,IF(OR(F137="Select…",F137="Ignore"),0,IF($H$117="Low",OM_Costs!T69*($H$118+1),OM_Costs!U69*($H$118+1)))) -> 0
C138: =OM_Costs!S70 -> User added additional options | F138: Select… | G138: n/a | H138: n/a | I138: =IF(VFSDesign!$F$64="",0,IF(OR(F138="Select…",F138="Ignore"),0,IF($H$117="Low",OM_Costs!T70*($H$118+1),OM_Costs!U70*($H$118+1)))) -> 0
C139: =OM_Costs!S71 -> User added additional options | F139: Select… | G139: n/a | H139: n/a | I139: =IF(VFSDesign!$F$64="",0,IF(OR(F139="Select…",F139="Ignore"),0,IF($H$117="Low",OM_Costs!T71*($H$118+1),OM_Costs!U71*($H$118+1)))) -> 0
C140: =OM_Costs!S72 -> User added additional options | F140: Select… | G140: n/a | H140: n/a | I140: =IF(VFSDesign!$F$64="",0,IF(OR(F140="Select…",F140="Ignore"),0,IF($H$117="Low",OM_Costs!T72*($H$118+1),OM_Costs!U72*($H$118+1)))) -> 0
C141: =OM_Costs!S73 -> Rehabilitation | F141: Periodic | G141: 25 | H141: 25 | I141: =IF(VFSDesign!$F$64="",0,IF(OR(F141="Select…",F141="Ignore"),0,IF($H$117="Low",OM_Costs!T73*($H$118+1),OM_Costs!U73*($H$118+1)))) -> 11288.56045
C143: LIFE CYCLE COSTING INPUTS
C144: Inflation Rate (%) | F144: =Assumptions!$D$14 -> 0.03
C145: Discount Rate (%) | F145: =Assumptions!$D$15 -> 0.05
C146: Construction Costs | F146: =VFSDesign!M102 -> 38987.65313
C147: Life Cycle Costing Results (present value, 50 years)
C148: Life Cycle Cost of Rehabilitation | F148: =LifeCycleCosts!EO72 -> 11295.23616 | G148: <- Difference of total maintenance costs with inflation and discount for rehab vs no rehab
C149: Average Annual Maintenance Cost
C150: 50 Year evaluation period | F150: =LifeCycleCosts!EP69 -> 13963.32456 | G150: <- Includes inflation, does not include discount or rehabilitation
C151: =Assumptions!$D$16&" Year evaluation period" -> Year evaluation period | F151: =LifeCycleCosts!EP67 ->  | G151: <- Includes inflation, does not include discount or rehabilitation
C170: VEGETATED FILTER STRIP
C173: Cost Summary
C176: Total construction costs | G176: =VFSDesign!M102 -> 38987.65313
C177: Construction cost break down
C178: Pre-construction | G178: =SUM(VFSDesign!M64:M72) -> 2737.986271
C179: Excavation | G179: =SUM(VFSDesign!M74:M81) -> 10637.85021
C180: Materials & Installation | G180: =SUM(VFSDesign!M83:M92) -> 18807.18185
C181: Inspections | G181: =SUM(VFSDesign!M94:M97) -> 3260.302698
C182: Project mngt, overhead & other | G182: =SUM(VFSDesign!M100:M101) -> 3544.332102
C184: Life Cycle Totals
C185: 50 YEAR EVALUATION PERIOD
C186: PV of maintenance & rehabilitation | G186: =LifeCycleCosts!EO71 -> 202286.3751
C187: PV of all costs | G187: =G186+G176 -> 241274.0282
C188: =Assumptions!$D$16&" YEAR EVALUATION PERIOD" -> YEAR EVALUATION PERIOD
C189: PV of maintenance & rehabilitation | G189: =LifeCycleCosts!EO70 -> 
C190: PV of all costs | G190: =G189+G176 -> 
C192: Retrofit Cost
C193: Percentage of total cost | G193: =Assumptions!$D$18 -> 0.16
C194: Total | G194: =G176*G193 -> 6238.0245
C209: Working Notes

Sheet GRDesign
B1: GREEN ROOF | I1: GR calcs | L1: TOC | N1: INTRO | O1: Capital | P1: O&M | Q1: Summary
C3: Design & Costs Information
C31: Design Guidance • Only qualified professionals should design green roofs. • A qualified botanist or landscape architect should be consulted when choosing plant material. • Green roofs are physically feasible in most development situations, but should be planned at the time of building design. • Green roofs are typically sized based on the available roof area, as opposed to treatment volume requirements. • The load bearing capacity of the building structure and selected roof deck need to be sufficient to support the saturated weight of the soil, vegetation and accumulated water or snow, and may also need to support pedestrians, concrete pavers, etc. • Green roofs may be installed on roofs with slopes up to 10%. • Green roofs are designed to capture precipitation falling directly onto the roof surface. They are not designed to receive runoff diverted from other source areas. • For more details refer to the Low Impact Development Stormwater Management Planning and Design Guide and OMOE Stormwater Management Planning and Design Manual. Tool Assumptions • User enters site information into the yellow cells in the User Input section. The tool includes defaults based on STEP’s LID Planning and Design Guidance, but users may change the values found in the pink cells. STEP default values are kept in a separate column as a reference. • This tool only costs non accessible extensive green roof designs. • The tool calculates costs for new designs (based on model designs; see the LCCT User Guide) and includes costs of design (as part of overhead), contractor profit, material, delivery, labour, equipment (rental, operating and operator costs), hauling and disposal. Since the tool was built to estimate greenfield development costs, it does not include mobilization and demobilization. You can add mobilization costs in the "Additional Costs" cells. • Unit costs are based on 2018 pricing; the tool automatically adds inflation. See the Assumptions sheet for details. • The cost of retrofitting is in general 16% higher than the cost of new construction. These added construction costs can be found in the 'costs summary' tab and are easily added to the total construction cost for increased accuracy.
C60: USERS: Please enter information into YELLOW coloured cells
C62: Site and Design Information | I62: Capital Costs | L62: Sales tax / HST (%) | N62: =Assumptions!$D$17 -> 0.13
C64: USER INPUTS | I64: PRE-CONSTRUCTION | L64: Unit | M64: Cost | N64: Cost adjustment
C65: Building height | F65: 1 - 5 | G65: stories | I65: Crane - Mobilization & Demobilization | K65: =IFERROR(IF(F65="","",IF(F65="1 - 5",CapitalCosts!AG101,CapitalCosts!AG102)),"") -> 2 | L65: times | M65: =CapitalCosts!AJ103*($N$62+1)*(1+N65) -> 826.9230164 | N65: 0
C66: Roof length | F66: 44 | G66: m | I66: Add additional costs if necessary | M66: 0
C67: Roof width | F67: 44 | G67: m | I67: MATERIALS & INSTALLATION
C68: Roof slope | F68: 2 | G68: % | I68: Waterproof Membrane + Flashing | K68: =IFERROR(IF(F77="","",IF(F69="None",0,F77)),"") -> 1936 | L68: m2 | M68: =CapitalCosts!AJ136*($N$62+1)*(1+N68) -> 64748.20237 | N68: 0
C69: Membrane | F69: EPDM | G69: unitless | I69: Root Barrier | K69: =IFERROR(IF(F69="","",IF(F69="EPDM",F77,0)),"") -> 1936 | L69: m2 | M69: =CapitalCosts!AJ137*($N$62+1)*(1+N69) -> 12382.2688 | N69: 0
C70: Irrigation system | F70: No | G70: unitless | I70: Insulation | K70: =IFERROR(IF(F69="","",IF(F69="None",0,F77)),"") -> 1936 | L70: m2 | M70: =CapitalCosts!AJ138*($N$62+1)*(1+N70) -> 105380.5456 | N70: 0
C71: Growth medium | F71: 6 | G71: inches | I71: Drainage Layer + Filter Cloth | K71: =IFERROR(IF(F77="","",F77),"") -> 1936 | L71: m2 | M71: =CapitalCosts!AJ139*($N$62+1)*(1+N71) -> 24989.21234 | N71: 0
C72: Plants | F72: mats | G72: unitless | I72: Irrigation System | K72: =IFERROR(IF(F70="","",IF(F70="Yes",F77,0)),"") -> 0 | L72: m2 | M72: =CapitalCosts!AJ140*($N$62+1)*(1+N72) -> 0 | N72: 0
C73: DESIGN DEFAULTS | E73: defaults | F73: (values in col G can be changed) | I73: =IF(F71="","Aluminum Edging",IF(F71=4,"Aluminum Edging (4 - 1/2 in)","Aluminum Edging (6 - 1/2 in)")) -> Aluminum Edging (6 - 1/2 in) | K73: =IFERROR(IF(F71="","",CapitalCosts!AG23),"") -> 234.4016 | L73: m | M73: =CapitalCosts!AJ143*($N$62+1)*(1+N73) -> 21576.6204 | N73: 0
C74: Area of roof penetrations 1 | E74: 0.5 | F74: 0.5 | G74: m2 | I74: Aluminum Corners | K74: =IF(F80="","",24) -> 24 | L74: each | M74: =CapitalCosts!AJ146*($N$62+1)*(1+N74) -> 1605.064656 | N74: 0
C75: Vegetation-free zone width | E75: 0.5 | F75: 0.5 | G75: m | I75: Vegetation-free zone stone | K75: =IFERROR(IF(F79="","",F79),"") -> 115.5676128 | L75: m2 | M75: =CapitalCosts!AJ149*($N$62+1)*(1+N75) -> 500.9366054 | N75: 0
C76: TOOL RESULTS | I76: Growing Medium | K76: =IFERROR(IF(F80="","",F80),"") -> 1819.891851 | L76: m2 | M76: =CapitalCosts!AJ152*($N$62+1)*(1+N76) -> 121105.9771 | N76: 0
C77: Roof drainage area | F77: =F66*F67 -> 1936 | G77: m2 | I77: Plants | K77: =IFERROR(IF(F80="","",F80),"") -> 1819.891851 | L77: m2 | M77: =CapitalCosts!AJ155*($N$62+1)*(1+N77) -> 149458.2251 | N77: 0
C78: Roof drains | F78: =IFERROR(IF(F77="","",ROUNDUP(F77/427,0)),0) -> 5 | G78: each | I78: Savings 4 | K78: - | L78: unitless | M78: =CapitalCosts!AJ156*($N$62+1)*(1+N78) -> 20184.32952 | N78: 0
C79: Area of vegetation-free zones 2 | F79: =IFERROR(IF(F74="","",CapitalCosts!AG19),0) -> 115.5676128 | G79: m2 | I79: Crane (Lift supplies to rooftop) | K79: =IFERROR(IF(F65="","",IF(F65="1 - 5",CapitalCosts!AG157,CapitalCosts!AG158)),"") -> 8 | L79: days | M79: =CapitalCosts!AJ159*($N$62+1)*(1+N79) -> 38349.65582 | N79: 0
C80: Planted area | F80: =IFERROR(IF(F74="","",CapitalCosts!AG21),0) -> 1819.891851 | G80: m2 | I80: Add additional costs if necessary | M80: 0
I81: INSPECTIONS
I82: Construction Inspections | K82: =IF(F77="","",CapitalCosts!AG200) -> 5 | L82: visit | M82: =(CapitalCosts!AG199*K82+CapitalCosts!AG203)*($N$62+1)*(1+N82) -> 411.6126409 | N82: 0
C83: =IF(F68>10,"Roof slope cannot eceed 10% requires check dams","Roof slope conditions are acceptable") -> Roof slope conditions are acceptable | I83: Project Acceptance Inspections | K83: =IF($F$77=0,"",CapitalCosts!AH200) -> 2.5 | L83: visit | M83: =(CapitalCosts!AH199*K83+CapitalCosts!AH203)*($N$62+1)*(1+N83) -> 444.0348268 | N83: 0
I84: Task 1: Irrigation system test | K84: =IF($F$77=0,"",1) -> 1 | L84: visit | M84: =CapitalCosts!AH204*K84*($N$62+1)*(1+N84) -> 100.3537136 | N84: 0
I85: Task 2: Leak detection test | K85: =IF($F$77=0,"",1) -> 1 | L85: visit | M85: =CapitalCosts!AH205*K85*($N$62+1)*(1+N85) -> 35621.90812 | N85: 0
C86: Notes: 1 Includes mechanical units, vents, skylights, etc. 2 A vegetation-free zone must be a minimum of 0.5 m wide and border perimeter, roof penetrations and drains 3 Other testing options possible could include applied potential electrical method or water lance method, but these methods have not yet been used on greenroofs 4 Plant mats include 1" of medium. Savings from 1" less of growth medium | I86: Add additional costs if necessary | M86: 0
I87: TOTALS
I88: Sub-total | M88: =SUM(M65:M66,M68:M80,M82:M86) -> 597685.8707
I89: Overhead | K89: =Assumptions!$D$19 -> 0.1 | M89: =M88*K89 -> 59768.58707
I90: Other | K90: 0 | M90: =$M$109*K90 -> 0
I91: GRAND TOTAL | M91: =SUM(M88:M90) -> 657454.4578
C94: User Notes:
C116: Maintenance and Life Cycle Costs
C117: USERS: Choose your maintenance level. Defaults will populate the table below. Light green coloured cells can be modified.
G119: Select maitenance level --> | I119: Low | K119: Notes: Maintenance costs are scaled based on the roof drainage area. 1 Maintenance cost to repair the membrane is not scaled, frequency can be increased to account for more leaks after 10 years The discount rate accounts for the time value of money and the risk of anticipated future cash flows Rehabilitation occurs on schedule, even during the last year of the evaluation period Cost of rehabilitation alone included above in Maintenance table. Life cycle cost of Rehabilitation in the Life Cycle Cositng Inputs table takes into account differences in maintenance when rehabilitation performed
G120: Sales tax / HST (%) | I120: =Assumptions!$D$17 -> 0.13
F122: Life Cycle Occurrence (every X years)
C123: MAINTENANCE OPTIONS | F123: Occurrence | G123: Default | H123: Assumed | I123: Unit cost
C124: =OM_Costs!AA54 -> Routine Inspection | F124: Periodic | G124: 1 | H124: 1 | I124: =IF(GRDesign!$F$65="",0,IF(OR(F124="Select…",F124="Ignore"),0,IF($I$119="Low",OM_Costs!AB54*($I$120+1),OM_Costs!AC54*($I$120+1)))) -> 117.2386242
C125: =OM_Costs!AA55 -> Maintanance Inspection | F125: Periodic | G125: 5 | H125: 5 | I125: =IF(GRDesign!$F$65="",0,IF(OR(F125="Select…",F125="Ignore"),0,IF($I$119="Low",OM_Costs!AB55*($I$120+1),OM_Costs!AC55*($I$120+1)))) -> 73.27414012
C126: =OM_Costs!AA56 -> Performance Verification | F126: Periodic | G126: 15 | H126: 15 | I126: =IF(GRDesign!$F$65="",0,IF(OR(F126="Select…",F126="Ignore"),0,IF($I$119="Low",OM_Costs!AB56*($I$120+1),OM_Costs!AC56*($I$120+1)))) -> 463.5656405
C127: =OM_Costs!AA57 -> Watering - Year 1 only | F127: Once | G127: 1 | H127: 1 | I127: =IF(GRDesign!$F$65="",0,IF(OR(F127="Select…",F127="Ignore"),0,IF($I$119="Low",OM_Costs!AB57*($I$120+1),OM_Costs!AC57*($I$120+1)))) -> 1075.731556
C128: =OM_Costs!AA58 -> Watering - Year 2 only | F128: Once | G128: 2 | H128: 2 | I128: =IF(GRDesign!$F$65="",0,IF(OR(F128="Select…",F128="Ignore"),0,IF($I$119="Low",OM_Costs!AB58*($I$120+1),OM_Costs!AC58*($I$120+1)))) -> 609.5812149
C129: =OM_Costs!AA59 -> Annual watering - Starts in Year 3 | F129: Periodic | G129: 1 | H129: 1 | I129: =IF(GRDesign!$F$65="",0,IF(OR(F129="Select…",F129="Ignore"),0,IF($I$119="Low",OM_Costs!AB59*($I$120+1),OM_Costs!AC59*($I$120+1)))) -> 72.84543705 | K129: User Notes:
C130: =OM_Costs!AA60 -> Drought watering | F130: Periodic | G130: 5 | H130: 5 | I130: =IF(GRDesign!$F$65="",0,IF(OR(F130="Select…",F130="Ignore"),0,IF($I$119="Low",OM_Costs!AB60*($I$120+1),OM_Costs!AC60*($I$120+1)))) -> 119.5257284
C131: =OM_Costs!AA61 -> Weeding | F131: Periodic | G131: 1 | H131: 1 | I131: =IF(GRDesign!$F$65="",0,IF(OR(F131="Select…",F131="Ignore"),0,IF($I$119="Low",OM_Costs!AB61*($I$120+1),OM_Costs!AC61*($I$120+1)))) -> 32533.47866
C132: =OM_Costs!AA62 -> Remove litter | F132: Periodic | G132: 1 | H132: 1 | I132: =IF(GRDesign!$F$65="",0,IF(OR(F132="Select…",F132="Ignore"),0,IF($I$119="Low",OM_Costs!AB62*($I$120+1),OM_Costs!AC62*($I$120+1)))) -> 933.2918053
C133: =OM_Costs!AA63 -> Plant replacement - Starts in Year 2 | F133: Periodic | G133: 1 | H133: 1 | I133: =IF(GRDesign!$F$65="",0,IF(OR(F133="Select…",F133="Ignore"),0,IF($I$119="Low",OM_Costs!AB63*($I$120+1),OM_Costs!AC63*($I$120+1)))) -> 29382.37887
C134: =OM_Costs!AA64 -> Green roof irrigation test | F134: Periodic | G134: 1 | H134: 1 | I134: =IF(GRDesign!$F$65="",0,IF(OR(F134="Select…",F134="Ignore"),0,IF($I$119="Low",OM_Costs!AB64*($I$120+1),OM_Costs!AC64*($I$120+1)))) -> 0
C135: =OM_Costs!AA65 -> Test membrane | F135: Periodic | G135: 5 | H135: 5 | I135: =IF(GRDesign!$F$65="",0,IF(OR(F135="Select…",F135="Ignore"),0,IF($I$119="Low",OM_Costs!AB65*($I$120+1),OM_Costs!AC65*($I$120+1)))) -> 35621.90812
C136: =OM_Costs!AA66 -> Repair membrane - Starts in Year 10 | F136: Periodic | G136: 5 | H136: 5 | I136: =IF(GRDesign!$F$65="",0,IF(OR(F136="Select…",F136="Ignore"),0,IF($I$119="Low",OM_Costs!AB66*($I$120+1),OM_Costs!AC66*($I$120+1)))) -> 1002.187734
C137: =OM_Costs!AA67 -> Add additional options | F137: Select… | G137: n/a | H137: n/a | I137: =IF(GRDesign!$F$65="",0,IF(OR(F137="Select…",F137="Ignore"),0,IF($I$119="Low",OM_Costs!AB67*($I$120+1),OM_Costs!AC67*($I$120+1)))) -> 0
C138: =OM_Costs!AA68 -> Add additional options | F138: Select… | G138: n/a | H138: n/a | I138: =IF(GRDesign!$F$65="",0,IF(OR(F138="Select…",F138="Ignore"),0,IF($I$119="Low",OM_Costs!AB68*($I$120+1),OM_Costs!AC68*($I$120+1)))) -> 0
C139: =OM_Costs!AA69 -> Add additional options | F139: Select… | G139: n/a | H139: n/a | I139: =IF(GRDesign!$F$65="",0,IF(OR(F139="Select…",F139="Ignore"),0,IF($I$119="Low",OM_Costs!AB69*($I$120+1),OM_Costs!AC69*($I$120+1)))) -> 0
C140: =OM_Costs!AA70 -> Add additional options | F140: Select… | G140: n/a | H140: n/a | I140: =IF(GRDesign!$F$65="",0,IF(OR(F140="Select…",F140="Ignore"),0,IF($I$119="Low",OM_Costs!AB70*($I$120+1),OM_Costs!AC70*($I$120+1)))) -> 0
C141: =OM_Costs!AA71 -> Rehabilitation | F141: Periodic | G141: 40 | H141: 40 | I141: =IF(GRDesign!$F$65="",0,IF(OR(F141="Select…",F141="Ignore"),0,IF($I$119="Low",OM_Costs!AB71*($I$120+1),OM_Costs!AC71*($I$120+1)))) -> 1094141.431
C143: LIFE CYCLE COSTING INPUTS
C144: Inflation Rate (%) | F144: =Assumptions!$D$14 -> 0.03
C145: Discount Rate (%) | F145: =Assumptions!$D$15 -> 0.05
C146: Construction Costs | F146: =GRDesign!M91 -> 657454.4578
C147: Life Cycle Costing Results (present value, 50 years)
C148: Life Cycle Cost of Rehabilitation | F148: =LifeCycleCosts!GD72 -> 506979.6053 | G148: <- Difference of total maintenance costs with inflation and discount for rehab vs no rehab
C149: Average Annual Maintenance Cost
C150: 50 Year evaluation period | F150: =LifeCycleCosts!GE69 -> 157197.3335 | G150: <- Includes inflation, does not include discount or rehabilitation
C151: =Assumptions!$D$16&" Year evaluation period" -> Year evaluation period | F151: =LifeCycleCosts!GE67 ->  | G151: <- Includes inflation, does not include discount or rehabilitation
C173: Cost Summary
C176: Total construction costs | F176: =GRDesign!$M$91 -> 657454.4578
C177: Construction cost break down
C178: Pre-construction | F178: =SUM(GRDesign!M65:M66) -> 826.9230164
C179: Materials & Installation | F179: =SUM(GRDesign!M68:M80) -> 560281.0384
C180: Inspections | F180: =SUM(GRDesign!M82:M86) -> 36577.9093
C181: Other | F181: =SUM(GRDesign!M89:M90) -> 59768.58707
C184: Life Cycle Totals
C185: 50 YEAR EVALUATION PERIOD
C186: PV of maintenance & rehabilitation | F186: =LifeCycleCosts!GD71 -> 2338557.935
C187: PV of all costs | F187: =F186+F176 -> 2996012.393
C188: =Assumptions!$D$16&" YEAR EVALUATION PERIOD" -> YEAR EVALUATION PERIOD
C189: PV of maintenance & rehabilitation | F189: =LifeCycleCosts!GD70 -> 
C190: PV of all costs | F190: =F189+F176 -> 
C192: Retrofit Cost
C193: Percentage of total cost | F193: =Assumptions!$D$18 -> 0.16
C194: Total | F194: =F176*F193 -> 105192.7132
C204: Working Notes

Sheet ICDesign
B1: INFILTRATION CHAMBER | I1: IC sizing | J1: IC calcs | L1: TOC | N1: INTRO | O1: Capital | P1: O&M | Q1: Summary
C3: Design & Costs Information
C27: Design Guidance (visit wiki.sustainabletechnologies.ca for detailed guidance; see the STEP Life Cycle Costing Tool User Guide for info on how to use the tool for cost estimation) • Infiltration chambers can be designed with an impervious drainage area to treatment facility area ratio of between 5:1 and 20:1. A maximum ratio of 10:1 is recommended from facilities receiving road or parking lot runoff. • For more specific sizing guidance, visit the STEP LID Planning and Design Guide’s infiltration sizing page. • Facilities receiving road or parking lot runoff should not be located within the two year time-of-travel of wellhead protection areas. • Facilities cannot be located on natural slopes greater than 15%. • The bottom of the facility should be vertically separated by one metre from the seasonally high water table or top of bedrock elevation. • If possible, facilities should be located in portions of the site with the highest native soil infiltration rates. • Facilities should be setback a minimum of four metres from building foundations. • Pretreatment device options include leaf screens for roof runoff, and vegetated filter strips, grass swales or oil grit separators for road runoff. The tool automatically includes an OGS for facilities recieving road runoff • The inlet and overflow outlet to the facility should be installed below the maximum frost penetration depth to prevent freezing. • The overflow outlet can simply be the perforated pipe inlet that backs up when the facility is at capacity and discharges to a splash pad and then to a pervious area at grade, or it can be a pipe connected to a storm sewer. Outlet pipes must have capacity equal to or greater than the inlet. • Capped and vertial non-perforated pipes connected to the inlet and outlet pipes area are recommended to provide a means of inspecting and flushing them out as part of routine maintenance. Manholes and inspection ports should be installed in infiltration chambers to provide access for monitoring and maintenance activities. The tool includes these features by default. • Erosion and sediment control and compaction are main concerns during construction. Facilities are vulnerable to failure during the construction phase. If the construction sequence is not followed correctly, construction sediment can clog the excavation. Heavy construction can also result in compaction of the soil, which can reduce the soil's infiltration rate. • For more details refer to the Low Impact Development Stormwater Management Planning and Design Guide and OMOE Stormwater Management Planning and Design Manual. Tool Assumptions • User enters site information into the yellow cells in the User Input section. The tool includes defaults based on STEP’s LID Planning and Design Guidance, but users may change the values found in the pink cells. STEP default values are kept in a separate column as a reference. • Cost for piping from roof to system, parking lot to system and overflow from system are not included in this costing. However, costs of the control manhole and overflow, and pre-treatment via an OGS (when the facility takes road runoff) are included • The tool calculates costs for full infiltration designs (based on model designs; see the LCCT User Guide) and includes costs of design (as part of overhead), contractor profit, material, delivery, labour, equipment (rental, operating and operator costs), hauling and disposal. Since the tool was built to estimate greenfield development costs, it does not include mobilization and demobilization. You can add mobilization costs in the "Additional Costs" cells. • Unit costs are based on 2018 pricing; the tool automatically adds inflation. See the Assumptions sheet for details. • The cost of retrofitting is in general 16% higher than the cost of new construction. These added construction costs can be found in the 'costs summary' tab and are easily added to the total construction cost for increased accuracy.
C60: USERS: Please enter information into YELLOW coloured cells
C62: Site and Design Information | I62: Capital Costs | L62: Sales tax / HST (%) | N62: =Assumptions!$D$17 -> 0.13
C64: USER INPUTS | I64: PRE-CONSTRUCTION | L64: Unit | M64: Cost | N64: Cost adjustment
C65: Roof drainage area | F65: 1000 | G65: m2 | I65: Test pits (2) | K65: =IF(F84="","",ROUNDUP(TestPits!E31*2,0)) -> 6 | L65: m3 | M65: =CapitalCosts!AS102*($N$62+1)*(1+N65) -> 638.3848135 | N65: 0
C66: Road drainage area | F66: 1000 | G66: m2 | I66: Infiltration tests (2 per test pit) | K66: =IF(F84="","",2*2) -> 4 | L66: tests/pit | M66: =CapitalCosts!AS103*($N$62+1)*(1+N66) -> 601.4356258 | N66: 0
C67: Maximum desired drainage period | F67: 48 | G67: hours | I67: Stakeout of utilities | K67: =IF(F84="","",1) -> 1 | L67: visit | M67: =CapitalCosts!AS104*($N$62+1)*(1+N67) -> 581.95 | N67: 0
C68: Inlet locations | F68: 1 | G68: Unitless | I68: Silt fence around excavation | K68: =IFERROR(IF(F84="","",CapitalCosts!AP105),"") -> 13.6236 | L68: m | M68: =CapitalCosts!AS105*($N$62+1)*(1+N68) -> 102.7905417 | N68: 0
C69: Infiltration rate of native soils | F69: 40 | G69: mm/hr | I69: Value of project land | K69: =CapitalCosts!AP101 -> 124.5415018 | L69: m2 | M69: =CapitalCosts!AS101*($N$62+1)*(1+N69) -> 0 | N69: 0
C70: Length of the IC area (determines IC column length) | F70: 15 | G70: m | I70: Add additional costs if necessary | M70: 0
C71: Design basis for sizing of facility | F71: rainfall capture | G71: Unitless | I71: EXCAVATION
C72: User specified DA:SA ratio | F72: 20 | G72: x:1 | I72: Topsoil salvage, haul to stockpile | K72: =IFERROR(IF(F84="","",CapitalCosts!AP119),"") -> 31.13537544 | L72: m3 | M72: =SUM(CapitalCosts!AS119:AS120)*($N$62+1)*(1+N72) -> 527.4207132 | N72: 0
C73: Rainfall captured | F73: 40 | G73: mm | I73: Excavator | K73: =IFERROR(IF(F84="","",CapitalCosts!AP111),"") -> 244.1917506 | L73: m3 | M73: =CapitalCosts!AS111*($N$62+1)*(1+N73) -> 687.6276118 | N73: 0
C74: Project land value classification | F74: None | G74: Unitless | I74: Loading | K74: =Assumptions!$D$8 -> 0.15 | L74: % of excavation cost | M74: =CapitalCosts!AS113*($N$62+1)*(1+N74) -> 103.1441418 | N74: 0
C75: DESIGN DEFAULTS | E75: defaults | F75: (values in col G can be changed) | I75: Hauling | K75: =IFERROR(IF(F84="","",CapitalCosts!AR118),"") -> 6 | L75: hours | M75: =CapitalCosts!AS114*($N$62+1)*(1+N75) -> 1225.705418 | N75: 0
C76: Void ratio | E76: 40 | F76: =IF(F84="","",40) -> 40 | G76: % | I76: Safety Fencing (1 week rental) | K76: =IFERROR(IF(F84="","",(F88+12+F89+12)*2),"") -> 93.5304 | L76: m | M76: =CapitalCosts!AS121*($N$62+1)*(1+N76) -> 2045.750733 | N76: 0
C77: Safety factor | E77: 2.5 | F77: =IF(F84="","",2.5) -> 2.5 | G77: Unitless | I77: Add additional costs if necessary | M77: 0
C78: Fill depth below asphalt | E78: 0.39 | F78: 0.39 | G78: m | I78: MATERIALS & INSTALLATION
C79: Bedding depth below&above chambers, 50 mm stone | E79: 0.1524 | F79: 0.1524 | G79: m | I79: Manhole (4' dia.) & inlet attachment | K79: =IFERROR(IF(F84="","",IF(F68="","",F68)),"") -> 1 | L79: each | M79: =CapitalCosts!AS136*($N$62+1)*(1+N79) -> 4134.615082 | N79: 0
C80: Chamber height | E80: 0.762 | F80: 0.762 | G80: m | I80: Hydrodynamic Separator & Piping (300 mm)4 | K80: =IFERROR(IF(F84="","",IF(F66=0,0,1)),"") -> 1 | L80: each | M80: =CapitalCosts!AS142*($N$62+1)*(1+N80) -> 7517.962198 | N80: 0
C81: Chamber width | E81: 1.295 | F81: 1.295 | G81: m | I81: Roof to system attachment | K81: =IFERROR(IF(F84="","",IF(F65=0,0,1)),"") -> 1 | L81: each | M81: =CapitalCosts!AS143*($N$62+1)*(1+N81) -> 167.5864693 | N81: 0
C82: Chamber length | E82: 2.169 | F82: 2.169 | G82: m | I82: Overflow attachment | K82: =IFERROR(IF(F84="","",CapitalCosts!AP144),"") -> 1 | L82: each | M82: =CapitalCosts!AS144*($N$62+1)*(1+N82) -> 247.0982978 | N82: 0
C83: TOOL RESULTS | I83: Geotextile | K83: =IFERROR(IF(F84="","",SUM(CapitalCosts!AP145:AP147)),"") -> 397.7861942 | L83: m2 | M83: =CapitalCosts!AS148*($N$62+1)*(1+N83) -> 826.387964 | N83: 0
C84: Total drainage area (DA) | F84: =F66+F65 -> 2000 | G84: m2 | I84: Infiltration chambers & end caps | K84: =IFERROR(IF(F84="","",F87*F82),"") -> 78.084 | L84: m | M84: =CapitalCosts!AS152*($N$62+1)*(1+N84) -> 13631.84789 | N84: 0
C85: Drainage type | F85: =IF(F84="","",IF(F65=0,"Road Only",IF(F66=0,"Roof Only","Road & Roof"))) -> Road & Roof | G85: Unitless | I85: Place and compact stone (50 mm clear) | K85: =IFERROR(IF(F84="","",(F91*CapitalCosts!AP56-CapitalCosts!AP44*1.3)),"") -> 86.06087408 | L85: Bm3 & Cm3 | M85: =CapitalCosts!AS151*($N$62+1)*(1+N85) -> 7312.488051 | N85: 0
C86: Storage volume of a single chamber | F86: =ICsizing!G3 -> 1.388526247 | G86: m3 | I86: Place and compact fill 5 | K86: =IFERROR(IF(F84="","",CapitalCosts!AP153),"") -> 48.57118569 | L86: Bm3 & Cm3 | M86: =CapitalCosts!AS157*($N$62+1)*(1+N86) -> 1457.03291 | N86: 0
C87: Number of chambers recommended 1 | F87: =IF(F84="","",ICsizing!G5) -> 36 | G87: Chambers | I87: Add additional costs if necessary | M87: 0
C88: Total length of chamber installation area 2 | F88: =IF(F84="","",CapitalCosts!AP15) -> 13.6236 | G88: m | I88: INSPECTIONS
C89: Total width of chamber installation area | F89: =IF(F84="","",CapitalCosts!AP16) -> 9.1416 | G89: m | I89: Construction Inspections6 | K89: =IF(F84="","",CapitalCosts!AP200) -> 5 | L89: visit | M89: =CapitalCosts!AP199*K89*($N$62+1)*(1+N89) -> 1111.085913 | N89: 0
C90: Total depth of chambers & bedding | F90: =CapitalCosts!AP56 -> 1.0668 | G90: m | I90: Project Acceptance Inspections | K90: =IF(F84=0,"",CapitalCosts!AQ200) -> 1.5 | L90: visit | M90: =CapitalCosts!AQ199*K90*($N$62+1)*(1+N90) -> 435.7144933 | N90: 0
C91: Surface area of excavation (SA) | F91: =IF(F84="","",IF(F71="DA:SA",(F65+F66)/F72,CapitalCosts!AP15*CapitalCosts!AP16)) -> 124.5415018 | G91: m2 | I91: Option #1: Natural event testing | K91: =IF(F84=0,"",1) -> 1 | L91: tests | M91: =CapitalCosts!AQ204*K91*($N$62+1)*(1+N91) -> 2260 | N91: 0
C92: Total drainage area to surface area ratio (DA:SA)3 | F92: =IF(F91>0,F84/F91,"N/A") -> 16.05890383 | G92: x:1 | I92: Option #2: Simulated event testing | K92: =IF(F84=0,"",1) -> 1 | L92: tests | M92: =CapitalCosts!AQ205*K92*($N$62+1)*(1+N92) -> 0 | N92: -1
C93: Water storage volume | F93: =IF(F84="","",CapitalCosts!AP43) -> 83.13651657 | G93: m3 | I93: Option #3: 6 months water level monitoring | K93: =IF(F84=0,"",1) -> 1 | L93: tests | M93: =CapitalCosts!AQ206*K93*($N$62+1)*(1+N93) -> 0 | N93: -1
C94: Potential rainfall capture | F94: =F93/F84*1000 -> 41.56825828 | G94: mm | I94: Add additional costs if necessary | M94: 0
C95: Estimated drainage period | F95: =CapitalCosts!AP54 -> 41.72129139 | G95: hours | I95: TOTALS
C96: Does this satisfy the drainage period target? | F96: =IF(F84="","",IF(F95<F67,"Yes","No")) -> Yes | G96: Yes/No | I96: Sub-total | M96: =SUM(M65:M70,M72:M77,M79:M87,M89:M94) -> 45616.02886
I97: Overhead | K97: =Assumptions!$D$19 -> 0.1 | M97: =M96*K97 -> 4561.602886
I98: Other | K98: 0 | M98: =M96*K98 -> 0
C99: =IF(AND(F71="rainfall capture",F72>0,F73>0),"Design based on the rainfall capture target. Drainage ratio rainfall capturet needed.",IF(AND(F71="rainfall capture",F73=0),"Enter a rainfall capture target.",IF(AND(F71="yes",F72=0),"Enter the drainage area ratio.",IF(AND(F71="yes",F73>0),"Design based on the drainage ratio. Rainfall capture target rainfall capturet needed.","Design specifications OK.")))) -> Design based on the rainfall capture target. Drainage ratio rainfall capturet needed. | I99: GRAND TOTAL | M99: =SUM(M96:M98) -> 50177.63175
C100: =IF(F96="yes","The design meets the drainage requirements.","The design does not meet the drainage requirements.") -> The design meets the drainage requirements.
C103: Notes: 1 Dimensions per chamber: 2.169 m x 1.295 m x 0.762 m 2 When the total length of chambers is changed by the user the tool calculates the width based on the number of chambers needed, this may allow for partial chambers. 3 The ratio of impervious drainage area to footprint surface area of the practice should be no greater than 20:1 to limit the accumulation of fine sediments and thereby prevent clogging 4 4' dia OGS., includes cost to dig trench for piping, trench bedding and for piping attachment 5 Includes compaction tests, 1 Proctor test, and 4 Nuclear Density tests 6 Project Acceptance Inspections include the following options: Option #1: Natural event testing: Includes 2 months of water level monitoring, materials and staff; Option #2: Simulated event testing: Includes water truck, materials and staff, plus 2 weeks of water level monitoring; Option #3: Continuous water level monitoring: 6 months of water level monitoring, materials and staff.
C119: User Notes:
C128: Maintenance and Life Cycle Costs
C129: USERS: Choose your maintenance level. Defaults will populate the table below. Light green coloured cells can be modified.
F130: Select maitenance level --> | H130: Low | L130: Notes: Maintenance costs based on systems designed with a 2000 m2 drainage area, maintenance costs are fixed costs. The discount rate accounts for the time value of money and the risk of anticipated future cash flows Rehabilitation occurs on schedule, even during the last year of the evaluation period Cost of rehabilitation alone included above in Maintenance table. Life cycle cost of Rehabilitation in the Life Cycle Cositng Inputs table takes into account differences in maintenance when rehabilitation performed
F131: Sales tax / HST (%) | H131: =Assumptions!$D$17 -> 0.13
F133: Life Cycle Occurrence (every X years)
C134: MAINTENANCE OPTIONS | F134: Occurrence | G134: Default | H134: Assumed | I134: Unit cost
C135: =OM_Costs!AI54 -> Routine inspection | F135: Periodic | G135: 1 | H135: 1 | I135: =IF(ICDesign!$F$84="",0,IF(OR(F135="Select…",F135="Ignore"),0,IF($H$130="Low",OM_Costs!AJ54*($H$131+1),OM_Costs!AK54*($H$131+1)))) -> 276.8163614
C136: =OM_Costs!AI55 -> Maintenance inspection | F136: Periodic | G136: 5 | H136: 5 | I136: =IF(ICDesign!$F$84="",0,IF(OR(F136="Select…",F136="Ignore"),0,IF($H$130="Low",OM_Costs!AJ55*($H$131+1),OM_Costs!AK55*($H$131+1)))) -> 302.5273065
C137: =OM_Costs!AI56 -> Performance verification | F137: Periodic | G137: 15 | H137: 15 | I137: =IF(ICDesign!$F$84="",0,IF(OR(F137="Select…",F137="Ignore"),0,IF($H$130="Low",OM_Costs!AJ56*($H$131+1),OM_Costs!AK56*($H$131+1)))) -> 302.5273065
C138: =OM_Costs!AI57 -> PV Option #1: Natural event testing | F138: Periodic | G138: 15 | H138: 15 | I138: =IF(ICDesign!$F$84="",0,IF(OR(F138="Select…",F138="Ignore"),0,IF($H$130="Low",OM_Costs!AJ57*($H$131+1),OM_Costs!AK57*($H$131+1)))) -> 2260
C139: =OM_Costs!AI58 -> PV Option #2: Simulated event testing | F139: Ignore | G139: 15 | H139: 15 | I139: =IF(ICDesign!$F$84="",0,IF(OR(F139="Select…",F139="Ignore"),0,IF($H$130="Low",OM_Costs!AJ58*($H$131+1),OM_Costs!AK58*($H$131+1)))) -> 0 | L139: User Notes:
C140: =OM_Costs!AI59 -> PV Option #3: 6 months water level monitoring | F140: Ignore | G140: 15 | H140: 15 | I140: =IF(ICDesign!$F$84="",0,IF(OR(F140="Select…",F140="Ignore"),0,IF($H$130="Low",OM_Costs!AJ59*($H$131+1),OM_Costs!AK59*($H$131+1)))) -> 0
C141: =OM_Costs!AI60 -> Remove litter | F141: Periodic | G141: 1 | H141: 1 | I141: =IF(ICDesign!$F$84="",0,IF(OR(F141="Select…",F141="Ignore"),0,IF($H$130="Low",OM_Costs!AJ60*($H$131+1),OM_Costs!AK60*($H$131+1)))) -> 60.03799742
C142: =OM_Costs!AI61 -> Clean out isolator row | F142: Periodic | G142: 4 to 8 | H142: 8 | I142: =IF(ICDesign!$F$84="",0,IF(OR(F142="Select…",F142="Ignore"),0,IF($H$130="Low",OM_Costs!AJ61*($H$131+1),OM_Costs!AK61*($H$131+1)))) -> 394.5621
C143: =OM_Costs!AI62 -> Clean out catchbasin - Starts Year 2 | F143: Periodic | G143: 1 | H143: 1 | I143: =IF(ICDesign!$F$84="",0,IF(OR(F143="Select…",F143="Ignore"),0,IF($H$130="Low",OM_Costs!AJ62*($H$131+1),OM_Costs!AK62*($H$131+1)))) -> 0
C144: =OM_Costs!AI63 -> Clean out HDS - Starts Year 2 | F144: Once | G144: 1 | H144: 1 | I144: =IF(ICDesign!$F$84="",0,IF(OR(F144="Select…",F144="Ignore"),0,IF($H$130="Low",OM_Costs!AJ63*($H$131+1),OM_Costs!AK63*($H$131+1)))) -> 1578.2484
C145: =OM_Costs!AI64 -> Add additional options | F145: Periodic | G145: n/a | H145: n/a | I145: =IF(ICDesign!$F$84="",0,IF(OR(F145="Select…",F145="Ignore"),0,IF($H$130="Low",OM_Costs!AJ64*($H$131+1),OM_Costs!AK64*($H$131+1)))) -> 0
C146: =OM_Costs!AI65 -> Add additional options | F146: Periodic | G146: n/a | H146: n/a | I146: =IF(ICDesign!$F$84="",0,IF(OR(F146="Select…",F146="Ignore"),0,IF($H$130="Low",OM_Costs!AJ65*($H$131+1),OM_Costs!AK65*($H$131+1)))) -> 0
C147: =OM_Costs!AI66 -> Add additional options | F147: Periodic | G147: n/a | H147: n/a | I147: =IF(ICDesign!$F$84="",0,IF(OR(F147="Select…",F147="Ignore"),0,IF($H$130="Low",OM_Costs!AJ66*($H$131+1),OM_Costs!AK66*($H$131+1)))) -> 0
C148: =OM_Costs!AI67 -> Add additional options | F148: Periodic | G148: n/a | H148: n/a | I148: =IF(ICDesign!$F$84="",0,IF(OR(F148="Select…",F148="Ignore"),0,IF($H$130="Low",OM_Costs!AJ67*($H$131+1),OM_Costs!AK67*($H$131+1)))) -> 0
C149: =OM_Costs!AI68 -> Rehabilitation | F149: Periodic | G149: 0 | H149: 0 | I149: =IF(ICDesign!$F$84="",0,IF(OR(F149="Select…",F149="Ignore"),0,IF($H$130="Low",OM_Costs!AJ68*($H$131+1),OM_Costs!AK68*($H$131+1)))) -> 0
C151: LIFE CYCLE COSTING INPUTS
C152: Inflation Rate (%) | F152: =Assumptions!$D$14 -> 0.03
C153: Discount Rate (%) | F153: =Assumptions!$D$15 -> 0.05
C154: Construction Costs | F154: =ICDesign!M99 -> 50177.63175
C155: Life Cycle Costing Results (present value, 50 years)
C156: Life Cycle Cost of Rehabilitation | F156: =LifeCycleCosts!HM72 -> 0 | G156: <- Difference of total maintenance costs with inflation and discount for rehab vs no rehab
C157: Average Annual Maintenance Cost
C158: 50 Year evaluation period | F158: =LifeCycleCosts!HN69 -> 1405.018234 | G158: <- Includes inflation, does not include discount or rehabilitation
C159: =Assumptions!$D$16&" Year evaluation period" -> Year evaluation period | F159: =LifeCycleCosts!HN67 ->  | G159: <- Includes inflation, does not include discount or rehabilitation
C172: Cost Summary
C175: Total construction costs | F175: =ICDesign!$M$99 -> 50177.63175
C176: Construction cost break down
C177: Pre-construction | F177: =SUM(ICDesign!M65:M70) -> 1924.560981
C178: Excavation | F178: =SUM(ICDesign!M72:M77) -> 4589.648618
C179: Materials & Installation | F179: =SUM(ICDesign!M79:M87) -> 35295.01886
C180: Inspections | F180: =SUM(ICDesign!M89:M94) -> 3806.800406
C181: Other | F181: =SUM(ICDesign!M97:M98) -> 4561.602886
C183: Life Cycle Totals
C184: 50 YEAR EVALUATION PERIOD
C185: PV of maintenance & rehabilitation | F185: =LifeCycleCosts!HM71 -> 17898.41076
C186: PV of all costs | F186: =F185+F175 -> 68076.04251
C187: =Assumptions!$D$16&" YEAR EVALUATION PERIOD" -> YEAR EVALUATION PERIOD
C188: PV of maintenance & rehabilitation | F188: =LifeCycleCosts!HM70 -> 
C189: PV of all costs | F189: =F188+F175 -> 
C191: Retrofit Cost
C192: Percentage of total cost | F192: =Assumptions!$D$18 -> 0.16
C193: Total | F193: =F175*F192 -> 8028.42108
C208: Working Notes

Sheet ITDesign
B1: INFILTRATION TRENCH | I1: IT calcs | L1: TOC | N1: INTRO | O1: Capital | P1: O&M | Q1: Summary
C3: Design & Costs Information
C32: Design Guidance (visit wiki.sustainabletechnologies.ca for detailed guidance; see the STEP Life Cycle Costing Tool User Guide for info on how to use the tool for cost estimation) • Infiltration chambers can be designed with an impervious drainage area to treatment facility area ratio of between 5:1 and 20:1. A maximum ratio of 10:1 is recommended from facilities receiving road or parking lot runoff. • For more specific sizing guidance, visit the STEP LID Planning and Design Guide’s infiltration sizing page. • Infiltration trenches should be set back at least four metres from building foundations. • Overflow pipes should discharge to pervious areas that are located at least 2 metres from building foundations and slope away from the building or to a storm sewer. • Trench bottom width is generally between 600 and 2400 mm. • Infiltration trenches should not be deeper than 3 or 4 metres, as there are cost implications with e.g, using trench boxes to retain the side walls. Tool Assumptions • User enters site information into the yellow cells in the User Input section. The tool includes defaults based on STEP’s LID Planning and Design Guidance, but users may change the values found in the pink cells. STEP default values are kept in a separate column as a reference. • The tool calculates new designs and includes costs of design (as part of overhead) material, delivery, labour, equipment (rental, operating and operator costs), hauling and disposal. • Costs for piping from roof or parking lot to system and overflow from system are not included in costing. However, the overflow and control manhole costs are included. • The cost of retrofitting is 16% higher than the cost of new construction. This cost is found in the 'costs summary' tab and can easily be added to construction costs for increased accuracy. • Hydrodynamic Separator (OGS) is used for pre-treatment in road runoff applications • The tool calculates costs for new designs (based on model designs; see the LCCT User Guide) and includes costs of design (as part of overhead), contractor profit, material, delivery, labour, equipment (rental, operating and operator costs), hauling and disposal. Since the tool was built to estimate greenfield development costs, it does not include mobilization and demobilization. You can add mobilization costs in the "Additional Costs" cells. • Unit costs are based on 2018 pricing; the tool automatically adds inflation. See the Assumptions sheet for details. • The cost of retrofitting is in general 16% higher than the cost of new construction. These added construction costs can be found in the 'costs summary' tab and are easily added to the total construction cost for increased accuracy.
C60: USERS: Please enter information into YELLOW coloured cells
C62: Site and Design Information | I62: Capital Costs | L62: Sales tax / HST (%) | N62: =Assumptions!$D$17 -> 0.13
C64: USER INPUTS | I64: PRE-CONSTRUCTION | L64: Unit | M64: Cost | N64: Cost adjustment
C65: Roof drainage area | G65: m2 | I65: Test pits (2) | K65: =IF(F78="","",ROUNDUP(TestPits!E38*2,0)) -> 4 | L65: m3 | M65: =CapitalCosts!BA102*($N$62+1)*(1+N65) -> 425.5898757 | N65: 0
C66: Road drainage area | F66: 1000 | G66: m2 | I66: Infiltration tests (2 per test pit) | K66: =IF(F78="","",2*2) -> 4 | L66: tests/pit | M66: =CapitalCosts!BA103*($N$62+1)*(1+N66) -> 601.4356258 | N66: 0
C67: Drainage period | F67: 72 | G67: hours | I67: Stakeout of utilities | K67: =IF(F78="","",1) -> 1 | L67: visit | M67: =CapitalCosts!BA104*($N$62+1)*(1+N67) -> 581.95 | N67: 0
C68: Inlet locations (manholes) | F68: 1 | G68: Unitless | I68: Erosion and sediment controls | K68: =IFERROR(IF(F78="","",CapitalCosts!AX105),"") -> 116.1764022 | L68: m | M68: =CapitalCosts!BA105*($N$62+1)*(1+N68) -> 876.5550455 | N68: 0
C69: Infiltration rate of the subgrade | F69: 15 | G69: mm/hr | I69: Value of project land | K69: =CapitalCosts!AX101 -> 116.1764022 | L69: m2 | M69: =CapitalCosts!BA101*($N$62+1)*(1+N69) -> 0 | N69: 0
C70: Rainfall capture target | F70: 25 | G70: mm | I70: Add additional costs if necessary | M70: 0
C71: Project land value classification | F71: None | G71: Unitless | I71: EXCAVATION
C72: DESIGN DEFAULTS | E72: defaults | F72: (values in col G can be changed) | I72: Topsoil salvage, haul to stockpile & return to site | K72: =IFERROR(IF(F78="","",CapitalCosts!AX120),"") -> 29.04410056 | L72: m3 | M72: =(CapitalCosts!BA120+CapitalCosts!BA121)*($N$62+1)*(1+N72) -> 491.9953595 | N72: 0
C73: Safety factor | E73: 2.5 | F73: =IF(F79="","",2.5) -> 2.5 | G73: Unitless | I73: Excavate trench with trench box | K73: =IFERROR(IF(F78="","",CapitalCosts!AX112),"") -> 148.9381477 | L73: m3 | M73: =CapitalCosts!BA112*($N$62+1)*(1+N73) -> 712.5031488 | N73: 0
C74: Void ratio | E74: 40 | F74: =IF(F79="","",40) -> 40 | G74: % | I74: Loading | K74: =Assumptions!$D$8 -> 0.15 | L74: % of excavation cost | M74: =CapitalCosts!BA113*($N$62+1)*(1+N74) -> 106.8754723 | N74: 0
C75: Width of trench | E75: 2 | F75: 1 | G75: m | I75: Hauling | K75: =IFERROR(IF(F78="","",CapitalCosts!AZ119),"") -> 2.666666667 | L75: hours | M75: =CapitalCosts!BA115*($N$62+1)*(1+N75) -> 544.7579635 | N75: 0
C76: Maximum acceptable drainage area ratio | E76: 20 | F76: 20 | G76: x:1 | I76: Safety Fencing | K76: =IF(F78="","",14) -> 14 | L76: m (1 week rental) | M76: =CapitalCosts!BA122*($N$62+1)*(1+N76) -> 306.2160567 | N76: 0
C77: TOOL RESULTS | I77: Add additional costs if necessary | M77: 0
C78: Total drainage area (DA) | F78: =F66+F65 -> 1000 | G78: m2 | I78: MATERIALS & INSTALLATION
C79: Drainage type | F79: =IF(F65=0,"Road Only",IF(F66=0,"Roof Only","Road & Roof")) -> Road Only | G79: Unitless | I79: Manhole (4' dia.) & inlet attachment | K79: =IFERROR(IF(F78="","",IF(F68="","",F68)),"") -> 1 | L79: each | M79: =CapitalCosts!BA136*($N$62+1)*(1+N79) -> 4225.136241 | N79: 0
C80: Depth of trench 1 | F80: =CapitalCosts!AX46 -> 0.432 | G80: m | I80: Geotextile (Polypropylene filtration fabric) | K80: =IFERROR(IF(F78="","",CapitalCosts!AX137),"") -> 333.593216 | L80: m2 | M80: =CapitalCosts!BA137*($N$62+1)*(1+N80) -> 693.0291262 | N80: 0
C81: Length of trench | F81: =CapitalCosts!AX48 -> 116.1764022 | G81: m | I81: Roof to system attachment | K81: =IFERROR(IF(F78="","",IF(F65=0,0,1)),"") -> 0 | L81: each | M81: =CapitalCosts!BA138*($N$62+1)*(1+N81) -> 0 | N81: 0
C82: Surface area of trench | F82: =CapitalCosts!AX49 -> 116.1764022 | G82: m2 | I82: Hydrodynamic Separator | K82: =IFERROR(IF(F78="","",IF(F66=0,0,1)),"") -> 1 | L82: each | M82: =CapitalCosts!BA139*($N$62+1)*(1+N82) -> 7119 | N82: 0
C83: Drainage ratio | F83: =F78/F82 -> 8.6076 | G83: x:1 | I83: Overflow attachment | K83: =IFERROR(IF(F78="","",CapitalCosts!AX140),"") -> 1 | L83: each | M83: =CapitalCosts!BA140*($N$62+1)*(1+N83) -> 247.0982978 | N83: 0
C84: Rainfall captured | F84: =CapitalCosts!AX50 -> 25 | G84: mm | I84: Perforated Pipe (300 mm) | K84: =IFERROR(IF(F78="","",CapitalCosts!AX141),"") -> 115.5764022 | L84: m | M84: =CapitalCosts!BA143*($N$62+1)*(1+N84) -> 12745.15543 | N84: 0
C85: Total drainage area to surface area ratio (DA:SA)2 | F85: =F78/F82 -> 8.6076 | G85: x:1, unitless | I85: Line pipe with expandable rings | K85: =IFERROR(IF(F78="","",CapitalCosts!AX144),"") -> 109.4381709 | L85: m2 | M85: =CapitalCosts!BA144*($N$62+1)*(1+N85) -> 3299.840543 | N85: 0
C86: Water storage volume | F86: =CapitalCosts!AX42 -> 25 | G86: m3 | I86: Monitoring wells (150 mm) | K86: =IFERROR(IF(F78="","",CapitalCosts!AX146),"") -> 8 | L86: each | M86: =CapitalCosts!BA147*($N$62+1)*(1+N86) -> 5788.952987 | N86: 0
I87: Place and compact stone (50 mm clear) | K87: =IFERROR(IF(F78="","",CapitalCosts!AX149),"") -> 41.98034295 | L87: Bm3 & Cm3 | M87: =CapitalCosts!BA150*($N$62+1)*(1+N87) -> 2287.488391 | N87: 0
I88: Place and compact fill 3 | K88: =IFERROR(IF(F78="","",CapitalCosts!AX151),"") -> 87.13230169 | L88: Bm3 & Cm3 | M88: =CapitalCosts!BA155*($N$62+1)*(1+N88) -> 961.3422993 | N88: 0
C89: =IF(F78/F82>F76,"Drainage ratio exceeds target, please adjust design factors","Drainage ratio OK") -> Drainage ratio OK | I89: Add additional costs if necessary | M89: 0
I90: INSPECTIONS
I91: Construction Inspections | K91: =IF(F78="","",CapitalCosts!AX200) -> 5 | L91: visit | M91: =CapitalCosts!AX199*K91*($N$62+1)*(1+N91) -> 1049.955602 | N91: 0
I92: Project Acceptance Inspections4 | K92: =IF(F78=0,"",CapitalCosts!AY200) -> 1.5 | L92: visit | M92: =CapitalCosts!AY199*K92*($N$62+1)*(1+N92) -> 410.4982402 | N92: 0
C93: Notes: 1 If the rainfall capture is adjusted from the default, the depth will not decrease below the depth required for the infiltration rate of the subgrade 2 The ratio of impervious drainage area to footprint surface area of the practice should be no greater than 20:1 to limit the accumulation of fine sediments and thereby prevent clogging 3 Includes compaction tests, 1 Proctor test, and 4 Nuclear Density tests 4 Project Acceptance Inspections include the following options: Option #1: Natural event testing: Includes 2 months of water level monitoring, materials and staff; Option #2: Simulated event testing: Includes water truck, materials and staff, plus 2 weeks of water level monitoring; Option #3: Continuous water level monitoring: 6 months of water level monitoring, materials and staff. | I93: Option #2: Natural event testing | K93: =IF(F78=0,"",1) -> 1 | L93: tests | M93: =CapitalCosts!AY204*K93*($N$62+1)*(1+N93) -> 2260 | N93: 0
I94: Option #3: Simulated event testing | K94: =IF(F78=0,"",1) -> 1 | L94: tests | M94: =CapitalCosts!AY205*K94*($N$62+1)*(1+N94) -> 0 | N94: -1
I95: Option #4: 6 months water level monitoring | K95: =IF(F78=0,"",1) -> 1 | L95: tests | M95: =CapitalCosts!AY206*K95*($N$62+1)*(1+N95) -> 0 | N95: -1
I96: Add additional costs if necessary | M96: 0
I97: TOTALS
I98: Sub-total | M98: =SUM(M65:M70,M72:M77,M79:M89,M91:M96) -> 45735.37571
I99: Overhead | K99: =Assumptions!$D$19 -> 0.1 | M99: =M98*K99 -> 4573.537571
I100: Other | K100: 0 | M100: =$M$123*K100 -> 0
I101: GRAND TOTAL | M101: =SUM(M98:M100) -> 50308.91328
C105: User Notes:
C127: Maintenance and Life Cycle Costs
C128: USERS: Choose your maintenance level. Defaults will populate the table below. Light green coloured cells can be modified.
G130: Select maitenance level --> | I130: Low | L130: Notes: Maintenance costs based on systems designed with a 2000 m2 roof drainage area, maintenance costs are fixed costs. The discount rate accounts for the time value of money and the risk of anticipated future cash flows Rehabilitation occurs on schedule, even during the last year of the evaluation period Cost of rehabilitation alone included above in Maintenance table. Life cycle cost of Rehabilitation in the Life Cycle Cositng Inputs table takes into account differences in maintenance when rehabilitation performed
G131: Sales tax / HST (%) | I131: =Assumptions!$D$17 -> 0.13
G133: Life Cycle Occurrence (every X years)
C134: MAINTENANCE OPTIONS | G134: Occurrence | H134: Default | I134: Assumed | J134: Unit cost
C135: =OM_Costs!AQ54 -> Routine inspection | G135: Periodic | H135: 1 | I135: 1 | J135: =IF(ITDesign!$F$78="",0,IF(OR(G135="Select…",G135="Ignore"),0,IF($I$130="Low",OM_Costs!AR54*($I$131+1),OM_Costs!AS54*($I$131+1)))) -> 276.8163614
C136: =OM_Costs!AQ55 -> Maintenance inspection | G136: Periodic | H136: 5 | I136: 5 | J136: =IF(ITDesign!$F$78="",0,IF(OR(G136="Select…",G136="Ignore"),0,IF($I$130="Low",OM_Costs!AR55*($I$131+1),OM_Costs!AS55*($I$131+1)))) -> 302.5273065
C137: =OM_Costs!AQ56 -> Performance verification | G137: Periodic | H137: 15 | I137: 15 | J137: =IF(ITDesign!$F$78="",0,IF(OR(G137="Select…",G137="Ignore"),0,IF($I$130="Low",OM_Costs!AR56*($I$131+1),OM_Costs!AS56*($I$131+1)))) -> 302.5273065 | L137: User Notes:
C138: =OM_Costs!AQ57 -> PV Option #1: Natural event testing | G138: Periodic | H138: 15 | I138: 15 | J138: =IF(ITDesign!$F$78="",0,IF(OR(G138="Select…",G138="Ignore"),0,IF($I$130="Low",OM_Costs!AR57*($I$131+1),OM_Costs!AS57*($I$131+1)))) -> 2260
C139: =OM_Costs!AQ58 -> PV Option #2: Simulated event testing | G139: Ignore | H139: 15 | I139: 15 | J139: =IF(ITDesign!$F$78="",0,IF(OR(G139="Select…",G139="Ignore"),0,IF($I$130="Low",OM_Costs!AR58*($I$131+1),OM_Costs!AS58*($I$131+1)))) -> 0
C140: =OM_Costs!AQ59 -> PV Option #3: 6 months water level monitoring | G140: Ignore | H140: 15 | I140: 15 | J140: =IF(ITDesign!$F$78="",0,IF(OR(G140="Select…",G140="Ignore"),0,IF($I$130="Low",OM_Costs!AR59*($I$131+1),OM_Costs!AS59*($I$131+1)))) -> 0
C141: =OM_Costs!AQ60 -> Remove litter | G141: Periodic | H141: 1 | I141: 1 | J141: =IF(ITDesign!$F$78="",0,IF(OR(G141="Select…",G141="Ignore"),0,IF($I$130="Low",OM_Costs!AR60*($I$131+1),OM_Costs!AS60*($I$131+1)))) -> 56.00541538
C142: =OM_Costs!AQ61 -> Replace filter cloth & dispose sediment | G142: Periodic | H142: High = 4, Low = 8 | I142: 8 | J142: =IF(ITDesign!$F$78="",0,IF(OR(G142="Select…",G142="Ignore"),0,IF($I$130="Low",OM_Costs!AR61*($I$131+1),OM_Costs!AS61*($I$131+1)))) -> 3728.819814
C143: =OM_Costs!AQ62 -> Clean out catchbasin - Starts Year 2 | G143: Periodic | H143: 1 | I143: 1 | J143: =IF(ITDesign!$F$78="",0,IF(OR(G143="Select…",G143="Ignore"),0,IF($I$130="Low",OM_Costs!AR62*($I$131+1),OM_Costs!AS62*($I$131+1)))) -> 0
C144: =OM_Costs!AQ63 -> Clean out HDS - Starts Year 2 | G144: Periodic | H144: 1 | I144: 1 | J144: =IF(ITDesign!$F$78="",0,IF(OR(G144="Select…",G144="Ignore"),0,IF($I$130="Low",OM_Costs!AR63*($I$131+1),OM_Costs!AS63*($I$131+1)))) -> 1578.2484
C145: =OM_Costs!AQ64 -> Flush out pipes | G145: Periodic | H145: 1 | I145: 1 | J145: =IF(ITDesign!$F$78="",0,IF(OR(G145="Select…",G145="Ignore"),0,IF($I$130="Low",OM_Costs!AR64*($I$131+1),OM_Costs!AS64*($I$131+1)))) -> 2044.163566
C146: =OM_Costs!AQ65 -> Add additional options | G146: Periodic | H146: n/a | I146: n/a | J146: =IF(ITDesign!$F$78="",0,IF(OR(G146="Select…",G146="Ignore"),0,IF($I$130="Low",OM_Costs!AR65*($I$131+1),OM_Costs!AS65*($I$131+1)))) -> 0
C147: =OM_Costs!AQ66 -> Add additional options | G147: Periodic | H147: n/a | I147: n/a | J147: =IF(ITDesign!$F$78="",0,IF(OR(G147="Select…",G147="Ignore"),0,IF($I$130="Low",OM_Costs!AR66*($I$131+1),OM_Costs!AS66*($I$131+1)))) -> 0
C148: =OM_Costs!AQ67 -> Add additional options | G148: Periodic | H148: n/a | I148: n/a | J148: =IF(ITDesign!$F$78="",0,IF(OR(G148="Select…",G148="Ignore"),0,IF($I$130="Low",OM_Costs!AR67*($I$131+1),OM_Costs!AS67*($I$131+1)))) -> 0
C149: =OM_Costs!AQ68 -> Add additional options | G149: Periodic | H149: n/a | I149: n/a | J149: =IF(ITDesign!$F$78="",0,IF(OR(G149="Select…",G149="Ignore"),0,IF($I$130="Low",OM_Costs!AR68*($I$131+1),OM_Costs!AS68*($I$131+1)))) -> 0
C150: =OM_Costs!AQ69 -> Rehabilitation | G150: Periodic | H150: 0 | I150: 0 | J150: =IF(ITDesign!$F$78="",0,IF(OR(G150="Select…",G150="Ignore"),0,IF($I$130="Low",OM_Costs!AR69*($I$131+1),OM_Costs!AS69*($I$131+1)))) -> 0
C152: LIFE CYCLE COSTING INPUTS
C153: Inflation Rate (%) | F153: =Assumptions!$D$14 -> 0.03
C154: Discount Rate (%) | F154: =Assumptions!$D$15 -> 0.05
C155: Construction Costs | F155: =ITDesign!M101 -> 50308.91328
C156: Life Cycle Costing Results (present value, 50 years)
C157: Life Cycle Cost of Rehabilitation | F157: =LifeCycleCosts!IX72 -> 0 | G157: <- Difference of total maintenance costs with inflation and discount for rehab vs no rehab
C158: Average Annual Maintenance Cost
C159: 50 Year evaluation period | F159: =LifeCycleCosts!IY69 -> 10499.25276 | G159: <- Includes inflation, does not include discount or rehabilitation
C160: =Assumptions!$D$16&" Year evaluation period" -> Year evaluation period | F160: =LifeCycleCosts!IY67 ->  | G160: <- Includes inflation, does not include discount or rehabilitation
C174: Cost Summary
C177: Total construction costs | F177: =ITDesign!$M$101 -> 50308.91328
C178: Construction cost break down
C179: Pre-construction | F179: =SUM(ITDesign!M65:M70) -> 2485.530547
C180: Excavation | F180: =SUM(ITDesign!M72:M77) -> 2162.348001
C181: Materials & Installation | F181: =SUM(ITDesign!M79:M89) -> 37367.04332
C182: Inspections | F182: =SUM(ITDesign!M91:M96) -> 3720.453842
C183: Other | F183: =SUM(ITDesign!M99:M100) -> 4573.537571
C185: Life Cycle Totals
C186: 50 YEAR EVALUATION PERIOD
C187: PV of maintenance & rehabilitation | F187: =LifeCycleCosts!IX71 -> 139881.3351
C188: PV of all costs | F188: =F187+F177 -> 190190.2484
C189: =Assumptions!$D$16&" YEAR EVALUATION PERIOD" -> YEAR EVALUATION PERIOD
C190: PV of maintenance & rehabilitation | F190: =LifeCycleCosts!IX70 -> 
C191: PV of all costs | F191: =F190+F177 -> 
C193: Retrofit Cost
C194: Percentage of total cost | F194: =Assumptions!$D$18 -> 0.16
C195: Total | F195: =F177*F194 -> 8049.426124
C206: Working Notes

Sheet PICPDesign
B1: PERMEABLE INTERLOCKING CONCRETE PAVERS | J1: PP calcs | L1: TOC | N1: INTRO | O1: Capital | P1: O&M | Q1: Summary
C3: Design & Costs Information
C32: Design Guidance (visit wiki.sustainabletechnologies.ca for detailed guidance; see the STEP Life Cycle Costing Tool User Guide for info on how to use the tool for cost estimation) • Susceptibility to clogging is the main concern for permeable paving systems. The bedding layer and joint filler should consist of clear stone and gravel rather than sand. • Sand or other granular materials should not be applied as anti-skid agents during winter operations because they can quickly clog the system. Winter maintenance practices should be limited to plowing, with de-icing salts applied sparingly. • The slope of the permeable pavement surface should be at least 1% and no greater than 5%. The impervious land surround and draining onto the pavement should not exceed the area of the permeable pavement. Pervious surfaces should not drain onto the pavement. • The storage layer under the permeable pavement must be sized to accommodate runoff from the pavement itself and any impermeable areas draining to it. Tool Assumptions • User enters site information into the yellow cells in the User Input section. The tool includes defaults based on STEP’s LID Planning and Design Guidance, but users may change the values found in the pink cells. STEP default values are kept in a separate column as a reference. • The tool calculates new designs and includes costs of desgin (as part of overhead) material, delivery, labour, equipment (rental, operating and operator costs), hauling and disposal. • The tool calculates costs for new designs (based on model designs; see the LCCT User Guide) and includes costs of design (as part of overhead), contractor profit, material, delivery, labour, equipment (rental, operating and operator costs), hauling and disposal. Since the tool was built to estimate greenfield development costs, it does not include mobilization and demobilization. You can add mobilization costs in the "Additional Costs" cells. • Unit costs are based on 2018 pricing; the tool automatically adds inflation. See the Assumptions sheet for details. • The cost of retrofitting is in general 16% higher than the cost of new construction. These added construction costs can be found in the 'costs summary' tab and are easily added to the total construction cost for increased accuracy.
C60: USERS: Please enter information into YELLOW coloured cells
C62: Site and Design Information | I62: Capital Costs | L62: Sales tax / HST (%) | N62: =Assumptions!$D$17 -> 0.13
C64: USER INPUTS | I64: PRE-CONSTRUCTION | L64: Unit | M64: Cost | N64: Cost adjustment
C65: Drainage area | F65: 1000 | G65: m2 | I65: Test pits (2) | K65: =IF(F68="No Infiltration",0,ROUNDUP(TestPits!E45*2,0)) ->  | L65: m3 | M65: =CapitalCosts!BI101*($N$62+1)*(1+N65) ->  | N65: 0
C66: Impermeable portion of area draining to pavers | F66: 1000 | G66: m2 | I66: Infiltration tests (2 per test pit) | K66: =IFERROR(IF(F68="","",IF(F68="No Infiltration",0,2*2)),"") -> 4 | L66: tests/pit | M66: =CapitalCosts!BI102*($N$62+1)*(1+N66) -> 601.4356258 | N66: 0
C67: Native soil infiltration rate | F67: 40 | G67: mm/hr | I67: Stakeout of utilities | K67: =IFERROR(IF(F68="","",1),"") -> 1 | L67: visit | M67: =CapitalCosts!BI103*($N$62+1)*(1+N67) -> 581.95 | N67: 0
C68: Design type 1: | F68: Partial Infiltration | G68: Unitless | I68: ESC - 8" FilterSoxx | K68: =IFERROR(IF(F68="","",IF(F68="No Infiltration",0,60)),"") -> 60 | L68: m | M68: =CapitalCosts!BI104*($N$62+1)*(1+N68) -> 1661.513073 | N68: 0
C69: Drainage period | F69: 60 | G69: hours | I69: Add additional costs if necessary | M69: 0
C70: Total length of permeable area | F70: 30 | G70: m | I70: EXCAVATION
C71: DESIGN DEFAULTS | E71: defaults | F71: (values in col G can be changed) | I71: Topsoil salvage | K71: =IFERROR(IF(F68="","",F70*F84*0.1524),"") -> 0 | L71: m3 | M71: =CapitalCosts!BI111*($N$62+1)*(1+N71) -> 0 | N71: 0
C72: Time to fill stone bed | E72: 2 | F72: 2 | G72: hr | I72: Excavator | K72: =IFERROR(IF(F68="","",(F70*F84*F87)-K71),"") ->  | L72: m3 | M72: =CapitalCosts!BI112*($N$62+1)*(1+N72) ->  | N72: 0
C73: Bedding depth (2-5 mm dia clear stone) | E73: 50 | F73: 50 | G73: mm | I73: Loading | K73: =Assumptions!$D$8 -> 0.15 | L73: % of excavation cost | M73: =CapitalCosts!BI113*($N$62+1)*(1+N73) ->  | N73: 0
C74: Base depth (20 mm dia clear stone) | E74: 100 | F74: 100 | G74: mm | I74: Hauling | K74: =IFERROR(IF(F68="","",(K72*1.25/13.76)*(20/60)),"") ->  | L74: hours | M74: =CapitalCosts!BI114*($N$62+1)*(1+N74) ->  | N74: 0
C75: Safety factor | E75: 2.5 | F75: 2.5 | G75: Unitless | I75: Compaction of native soil | K75: =IFERROR(IF(F68="","",F82),"") -> 0 | L75: m2 | M75: =CapitalCosts!BI119*($N$62+1)*(1+N75) -> 0 | N75: 0
C76: Void ratio | E76: 40 | F76: 40 | G76: % | I76: Proctor test | K76: =IFERROR(IF(F68="","",1),"") -> 1 | L76: tests | M76: =CapitalCosts!BI120*($N$62+1)*(1+N76) -> 165.1399515 | N76: 0
C77: Height of pavers | E77: 80 | F77: 80 | G77: mm | I77: Nuclear density test | K77: =IFERROR(IF(F68="","",4),"") -> 4 | L77: tests | M77: =CapitalCosts!BI121*($N$62+1)*(1+N77) -> 188.3818706 | N77: 0
C78: Underdrain Diameter | E78: 150 | F78: 150 | G78: mm | I78: Add additional costs if necessary | M78: 0
C79: Minimum sub-base depth (50 mm dia clear stone) | E79: 200 | F79: 400 | G79: mm | I79: MATERIALS & INSTALLATION
C80: Rainfall depth: Pearson 2 yr event | E80: 56 | F80: 56 | G80: mm | I80: Impermeable membrane (0.762 mm HDPE) | K80: =IFERROR(IF(F68="","",IF($F$68="No Infiltration",(F70*F84)+2*(F84*F87)+2*(F70*F87)+2*((F70+1.14)*0.57)+2*(F84*0.57),0)),"") -> 0 | L80: m2 | M80: =CapitalCosts!BI134*($N$62+1)*(1+N80) -> 0 | N80: 0
C81: TOOL RESULTS | I81: Geotextile (Polypropylene filtration fabric) | K81: =IFERROR(IF(F68="","",IF(F68="No Infiltration",0,F82)),"") -> 0 | L81: m2 | M81: =CapitalCosts!BI135*($N$62+1)*(1+N81) -> 0 | N81: 0
C82: Permeable pavement area within drainage area | F82: =F65-F66 -> 0 | G82: m2 | I82: Underdrain (150 mm) | K82: =IFERROR(IF(F68="","",IF($F$68="Full Infiltration",0,F84-0.5)),"") -> -0.5 | L82: m | M82: =CapitalCosts!BI136*($N$62+1)*(1+N82) -> -30.60153908 | N82: 0
C83: Ratio of contributing to permeable area | F83: =CapitalCosts!BF43 ->  | G83: Unitless | I83: Clean out pipes (100 mm) | K83: =IFERROR(IF(F68="","",IF($F$68="Full Infiltration",0,IF(F68="Partial Infiltration",(F73+F74+80)/1000,(F73+F74+80+50)/1000))),"") -> 0.23 | L83: m | M83: =CapitalCosts!BI137*($N$62+1)*(1+N83) -> 5.676836332 | N83: 0
C84: Total width | F84: =F82/F70 -> 0 | G84: m | I84: Pipe to catchbasin (150 mm) | K84: =IFERROR(IF(F68="","",IF($F$68="Full Infiltration",0,0.5)),"") -> 0.5 | L84: m | M84: =CapitalCosts!BI138*($N$62+1)*(1+N84) -> 17.05659555 | N84: 0
C85: Underdrain diameter | F85: =IF(F68="","",IF(F68="Full Infiltration","None",CapitalCosts!BF17)) -> 150 | G85: mm | I85: Monitoring pipes (150 mm) | K85: =IFERROR(IF(F68="","",IF($F$68="No Infiltration",0,1)),"") -> 1 | L85: each | M85: =CapitalCosts!BI139*($N$62+1)*(1+N85) -> 61.20307817 | N85: 0
C86: Sub-base depth (50 mm dia clear stone) | F86: =CapitalCosts!BF44 ->  | G86: mm | I86: Delivery charges | K86: =IFERROR(IF(F68="","",IF(F68="Full Infiltration","No","Yes")),"") -> Yes | L86: $ | M86: =CapitalCosts!BI140*($N$62+1)*(1+N86) -> 232.419191 | N86: 0
C87: Total depth | F87: =CapitalCosts!BF49 ->  | G87: m | I87: Fittings (materials & labour) | K87: =IFERROR(IF(F68="","","Yes"),"") -> Yes | L87: units | M87: =CapitalCosts!BI147*($N$62+1)*(1+N87) -> 1650.482071 | N87: 0
C88: Max reservoir depth | F88: =CapitalCosts!BF45 -> 2400 | G88: mm | I88: Manhole adaptor (150 mm) | K88: =IFERROR(IF(F68="","",IF(F68="Full Infiltration",0,1)),"") -> 1 | L88: each | M88: =CapitalCosts!BI148*($N$62+1)*(1+N88) -> 149.2375858 | N88: 0
C89: Water storage volume | F89: =CapitalCosts!BF50 ->  | G89: m3 | I89: Flow restrictor (4" ball valve) | K89: =IFERROR(IF(F68="","",IF($F$68="Partial Infiltration",1,0)),"") -> 1 | L89: each | M89: =CapitalCosts!BI149*($N$62+1)*(1+N89) -> 977.9343276 | N89: 0
I90: Sub-base, 50 mm clear limestone | K90: =IFERROR(IF(F68="","",F86),"") ->  | L90: m3 in place | M90: =CapitalCosts!BI150*($N$62+1)*(1+N90) ->  | N90: 0
I91: Sub-base compaction | K91: =IFERROR(IF(F68="","",F82),"") -> 0 | L91: m2 | M91: =CapitalCosts!BI151*($N$62+1)*(1+N91) -> 0 | N91: 0
C92: =IF(F83>1.2,"The impermeable area should not exceed 1.2 times the area of the permeable pavement. Please adjust areas.","Ratio of impermeable to permeable drainage areas is OK.") ->  | I92: Base, 19 mm clear limestone | K92: =IFERROR(IF(F68="","",F74),"") -> 100 | L92: m3 in place | M92: =CapitalCosts!BI152*($N$62+1)*(1+N92) -> 6719.840142 | N92: 0
C93: =IF(F88>=SUM(F86,F74,F73),"Reservoir depth meets design standards.","The design has exceeded the maximum reservoir depth. Please adjust design parameters.") ->  | I93: Base compaction | K93: =IFERROR(IF(F68="","",F82),"") -> 0 | L93: m2 | M93: =CapitalCosts!BI153*($N$62+1)*(1+N93) -> 0 | N93: 0
I94: Compaction test | K94: =IFERROR(IF(F68="","",2),"") -> 2 | L94: tests | M94: =CapitalCosts!BI154*($N$62+1)*(1+N94) -> 94.1909353 | N94: 0
I95: Concrete curb (along 1 edge) | K95: =IFERROR(IF(F68="","",F70),"") -> 30 | L95: m | M95: =CapitalCosts!BI155*($N$62+1)*(1+N95) -> 1691.612947 | N95: 0
C96: Notes: 1 Suggested design type based on native soil infiltration rate Full Infiltration ≥ 15 mm/hr Partial Infiltration < 15 mm/hr, requires underdrain No Infiltration - where there are high water tables, contaminated soils or other constraints to infiltration, requires underdrain and impermeable liner This tool does not calculate any capital costs associated with the impermeable area | I96: Plastic edge restraints (along 3 edges) | K96: =IFERROR(IF(F68="","",F70+F84+F84),"") -> 30 | L96: m | M96: =CapitalCosts!BI156*($N$62+1)*(1+N96) -> 536.2173791 | N96: 0
I97: Bedding and pavers (80 mm) | K97: =IFERROR(IF(F68="","",F82),"") -> 0 | L97: m2 | M97: =CapitalCosts!BI157*($N$62+1)*(1+N97) -> 0 | N97: 0
I98: Striping | K98: =IFERROR(IF(F68="","",F82),"") -> 0 | L98: m2 | M98: =CapitalCosts!BI158*($N$62+1)*(1+N98) -> 0 | N98: 0
I99: Add additional costs if necessary | M99: 0
I100: INSPECTIONS
I101: Construction Inspections | K101: =IF($F$68="","",CapitalCosts!BF200) -> 5 | L101: visit | M101: =CapitalCosts!BF199*K101*($N$62+1)*(1+N101) -> 0 | N101: 0
I102: Project Acceptance Inspections | K102: =IF(F68=0,"",CapitalCosts!BG200) -> 1.5 | L102: visit | M102: =CapitalCosts!BG199*K102*($N$62+1)*(1+N102) -> 0 | N102: 0
I103: Option #1: Surface infiltration testing | K103: =IF(F68=0,"",1) -> 1 | L103: tests | M103: =CapitalCosts!BG203*($N$62+1)*(1+N103) -> 358.8770767 | N103: 0
I104: Option #2: Natural event testing | K104: =IF(F68=0,"",1) -> 1 | L104: tests | M104: =CapitalCosts!BG204*($N$62+1)*(1+N104) -> 0 | N104: -1
I105: Option #3: Simulated event testing | K105: =IF(F68=0,"",1) -> 1 | L105: tests | M105: =CapitalCosts!BG205*($N$62+1)*(1+N105) -> 0 | N105: -1
C106: User Notes: | I106: Option #4: 6 months water level monitoring | K106: =IF(F68=0,"",1) -> 1 | L106: tests | M106: =CapitalCosts!BG206*($N$62+1)*(1+N106) -> 0 | N106: -1
I107: Add additional costs if necessary | M107: 0
I108: TOTALS
I109: Sub-total | M109: =SUM(M80:M99,M71:M78,M65:M69,M101:M107) -> 
I110: Overhead | K110: =Assumptions!$D$19 -> 0.1 | M110: =M109*K110 -> 
I111: Other | K111: 0 | M111: =$M$109*K111 -> 
I112: TOTAL | M112: =SUM(M109:M111) -> 
C126: Maintenance and Life Cycle Costs
C127: USERS: Choose your maintenance level. Defaults will populate the table below. Light green coloured cells can be modified.
G129: Select maitenance level --> | I129: Low | K129: Notes: Inflation rate is 1.586% (based on average from 2010-2017) Maintenance costs scaled based on surface area or underdrain length. The discount rate accounts for the time value of money and the risk of anticipated future cash flows Rehabilitation occurs on schedule, even during the last year of the evaluation period Cost of rehabilitation alone included above in Maintenance table. Life cycle cost of Rehabilitation in the Life Cycle Cositng Inputs table takes into account differences in maintenance when rehabilitation performed
G130: Sales tax / HST (%) | I130: =Assumptions!$D$17 -> 0.13
F132: Life Cycle Occurrence (every X years)
C133: MAINTENANCE OPTIONS | F133: Occurrence | G133: Default | H133: Assumed | I133: Unit cost
C134: =OM_Costs!AY54 -> Routine inspection | F134: Periodic | G134: 1 | H134: 1 | I134: =IF(PICPDesign!$F$82="",0,IF(OR(F134="Select…",F134="Ignore"),0,IF($I$129="Low",OM_Costs!AZ54*($I$130/100+1),OM_Costs!BA54*($I$130/100+1)))) -> 0
C135: =OM_Costs!AY55 -> Maintenance inspection | F135: Periodic | G135: 5 | H135: 5 | I135: =IF(PICPDesign!$F$82="",0,IF(OR(F135="Select…",F135="Ignore"),0,IF($I$129="Low",OM_Costs!AZ55*($I$130/100+1),OM_Costs!BA55*($I$130/100+1)))) -> 0
C136: =OM_Costs!AY56 -> Performance verification | F136: Periodic | G136: 15 | H136: 15 | I136: =IF(PICPDesign!$F$82="",0,IF(OR(F136="Select…",F136="Ignore"),0,IF($I$129="Low",OM_Costs!AZ56*($I$130/100+1),OM_Costs!BA56*($I$130/100+1)))) -> 0 | K136: User Notes:
C137: =OM_Costs!AY57 -> PV Option #1: Surface infiltration testing | F137: Periodic | G137: 15 | H137: 15 | I137: =IF(PICPDesign!$F$82="",0,IF(OR(F137="Select…",F137="Ignore"),0,IF($I$129="Low",OM_Costs!AZ57*($I$130/100+1),OM_Costs!BA57*($I$130/100+1)))) -> 280.017133
C138: =OM_Costs!AY58 -> PV Option #2: Natural event testing | F138: Ignore | G138: 15 | H138: 15 | I138: =IF(PICPDesign!$F$82="",0,IF(OR(F138="Select…",F138="Ignore"),0,IF($I$129="Low",OM_Costs!AZ58*($I$130/100+1),OM_Costs!BA58*($I$130/100+1)))) -> 0
C139: =OM_Costs!AY59 -> PV Option #3: Simulated event testing | F139: Ignore | G139: 15 | H139: 15 | I139: =IF(PICPDesign!$F$82="",0,IF(OR(F139="Select…",F139="Ignore"),0,IF($I$129="Low",OM_Costs!AZ59*($I$130/100+1),OM_Costs!BA59*($I$130/100+1)))) -> 0
C140: =OM_Costs!AY60 -> PV Option #4: 6 months water level monitoring | F140: Ignore | G140: 15 | H140: 15 | I140: =IF(PICPDesign!$F$82="",0,IF(OR(F140="Select…",F140="Ignore"),0,IF($I$129="Low",OM_Costs!AZ60*($I$130/100+1),OM_Costs!BA60*($I$130/100+1)))) -> 0
C141: =OM_Costs!AY61 -> Remove litter | F141: Periodic | G141: 1 | H141: 1 | I141: =IF(PICPDesign!$F$82="",0,IF(OR(F141="Select…",F141="Ignore"),0,IF($I$129="Low",OM_Costs!AZ61*($I$130/100+1),OM_Costs!BA61*($I$130/100+1)))) -> 0
C142: =OM_Costs!AY62 -> Surface vacuum - Starts Year 2 | F142: Periodic | G142: 1 | H142: 1 | I142: =IF(PICPDesign!$F$82="",0,IF(OR(F142="Select…",F142="Ignore"),0,IF($I$129="Low",OM_Costs!AZ62*($I$130/100+1),OM_Costs!BA62*($I$130/100+1)))) -> 0
C143: =OM_Costs!AY63 -> Re-place joint material after vacuum | F143: Periodic | G143: 1 | H143: 1 | I143: =IF(PICPDesign!$F$82="",0,IF(OR(F143="Select…",F143="Ignore"),0,IF($I$129="Low",OM_Costs!AZ63*($I$130/100+1),OM_Costs!BA63*($I$130/100+1)))) -> 0
C144: =OM_Costs!AY64 -> Restriping | F144: Periodic | G144: 3 | H144: 3 | I144: =IF(PICPDesign!$F$82="",0,IF(OR(F144="Select…",F144="Ignore"),0,IF($I$129="Low",OM_Costs!AZ64*($I$130/100+1),OM_Costs!BA64*($I$130/100+1)))) -> 0
C145: =OM_Costs!AY65 -> Replace pavers | F145: Periodic | G145: 8 | H145: 8 | I145: =IF(PICPDesign!$F$82="",0,IF(OR(F145="Select…",F145="Ignore"),0,IF($I$129="Low",OM_Costs!AZ65*($I$130/100+1),OM_Costs!BA65*($I$130/100+1)))) -> 0
C146: =OM_Costs!AY66 -> Clean out pipes | F146: Periodic | G146: 1 | H146: 1 | I146: =IF(PICPDesign!$F$82="",0,IF(OR(F146="Select…",F146="Ignore"),0,IF($I$129="Low",OM_Costs!AZ66*($I$130/100+1),OM_Costs!BA66*($I$130/100+1)))) -> 0
C147: =OM_Costs!AY67 -> Add additional options | F147: Periodic | G147: n/a | H147: n/a | I147: =IF(PICPDesign!$F$82="",0,IF(OR(F147="Select…",F147="Ignore"),0,IF($I$129="Low",OM_Costs!AZ67*($I$130/100+1),OM_Costs!BA67*($I$130/100+1)))) -> 0
C148: =OM_Costs!AY68 -> Add additional options | F148: Periodic | G148: n/a | H148: n/a | I148: =IF(PICPDesign!$F$82="",0,IF(OR(F148="Select…",F148="Ignore"),0,IF($I$129="Low",OM_Costs!AZ68*($I$130/100+1),OM_Costs!BA68*($I$130/100+1)))) -> 0
C149: =OM_Costs!AY69 -> Add additional options | F149: Periodic | G149: n/a | H149: n/a | I149: =IF(PICPDesign!$F$82="",0,IF(OR(F149="Select…",F149="Ignore"),0,IF($I$129="Low",OM_Costs!AZ69*($I$130/100+1),OM_Costs!BA69*($I$130/100+1)))) -> 0
C150: =OM_Costs!AY70 -> Add additional options | F150: Periodic | G150: n/a | H150: n/a | I150: =IF(PICPDesign!$F$82="",0,IF(OR(F150="Select…",F150="Ignore"),0,IF($I$129="Low",OM_Costs!AZ70*($I$130/100+1),OM_Costs!BA70*($I$130/100+1)))) -> 0
C151: =OM_Costs!AY71 -> Rehabilitation | F151: Periodic | G151: 30 | H151: 30 | I151: =IF(PICPDesign!$F$82="",0,IF(OR(F151="Select…",F151="Ignore"),0,IF($I$129="Low",OM_Costs!AZ71*($I$130/100+1),OM_Costs!BA71*($I$130/100+1)))) -> 6053.266526
C153: LIFE CYCLE COSTING INPUTS
C154: Inflation Rate (%) | F154: =Assumptions!$D$14 -> 0.03
C155: Discount Rate (%) | F155: =Assumptions!$D$15 -> 0.05
C156: Construction Costs | F156: =PICPDesign!M112 -> 
C157: Life Cycle Costing Results (present value, 50 years)
C158: Life Cycle Cost of Rehabilitation | F158: =LifeCycleCosts!KM72 -> 3399.598003 | G158: <- Difference of total maintenance costs with inflation and discount for rehab vs no rehab
C159: Average Annual Maintenance Cost
C160: 50 Year evaluation period | F160: =LifeCycleCosts!KN69 -> 28.43353609 | G160: <- Includes inflation, does not include discount or rehabilitation
C161: =Assumptions!$D$16&" Year evaluation period" -> Year evaluation period | F161: =LifeCycleCosts!KN67 ->  | G161: <- Includes inflation, does not include discount or rehabilitation
C173: Cost Summary
C176: Total construction costs | G176: =PICPDesign!$M$112 -> 
C177: Construction cost break down
C178: Pre-construction | G178: =SUM(PICPDesign!M65:M69) -> 
C179: Excavation | G179: =SUM(PICPDesign!M71:M78) -> 
C180: Materials & Installation | G180: =SUM(PICPDesign!M80:M99) -> 
C181: Inspections | G181: =SUM(PICPDesign!M101:M107) -> 358.8770767
C182: Other | G182: =SUM(PICPDesign!M110:M111) -> 
C184: Life Cycle Totals
C185: 50 YEAR EVALUATION PERIOD
C186: PV of maintenance & rehabilitation | G186: =LifeCycleCosts!KM71 -> 3045.959755
C187: PV of all costs | G187: =G186+G176 -> 
C188: =Assumptions!$D$16&" YEAR EVALUATION PERIOD" -> YEAR EVALUATION PERIOD
C189: PV of maintenance & rehabilitation | G189: =LifeCycleCosts!KM70 -> 
C190: PV of all costs | G190: =G189+G176 -> 
C192: Retrofit Cost
C193: Percentage of total cost | G193: =Assumptions!$D$18 -> 0.16
C194: Total | G194: =G176*G193 -> 
C204: Working Notes

Sheet RWHDesign
B1: RAINWATER HARVESTING | H1: RWH tank | J1: RWH calcs | L1: TOC | N1: INTRO | O1: Capital | P1: O&M | Q1: Summary
C3: Design & Costs Information
C29: Design Guidance (visit wiki.sustainabletechnologies.ca for detailed guidance; see the STEP Life Cycle Costing Tool User Guide for info on how to use the tool for cost estimation) • RWH systems can be used throughout the year if they are located underground or indoors to prevent problems associated with freezing. • Separate plumbing, pumps, pressure tanks, and backflow preventers are necessary for indoor use of harvested water. Back-up water supply system arrangements, that can be drawn upon when the cistern runs dry , are also necessary for indoor uses. • Site topography influences the placement of storage tanks and the design of the rainwater conveyance and overflow systems. Storage tanks in low areas of the site will likely increase the volume of rainwater that can be stored, but will increase the amount of pumping needed to distribute the water. The opposite occurs for placing tanks at higher elevations. • Cisterns should be placed on or in native, rather than fill, soils. Underground tanks and piping to and from them, should either be located below the local frost penetration depth or insulated to prevent freezing during winter. • RWH system overflow devices should be designed to avoid causing ponding or soil saturation within 3 metres of building foundations. Tanks must be watertight to prevent water damage when placed near building foundations. • Pretreatment is needed to remove debris, dust, leaves, and other debris that accumulates on roofs and can cause clogging within the RWH system. Some examples include eavestrough or downspout filters, first flush diverters, in-ground filters and in-tank filters. Tool Assumptions • User enters site information into the yellow cells in the User Input section. The tool includes defaults based on STEP’s LID Planning and Design Guidance, but users may change the values found in the pink cells. STEP default values are kept in a separate column as a reference. • Many costs for the RWH tool have been derived from costing done in the RWH Design & Costing Tool Version 1.4 available on the Sustainable Technologies Evaluation Program website • Overflow was not costed as it would be needed even if the RWH system was not constructed. • Costs for conveyance piping are not included in the model design for indoor tanks because conveyance would be needed even without RWH. • The cost for decommissioning an outdoor above-ground plastic tank for the winter is not included. • The tool assumes that only one trench is needed for all piping, including conveyance, service and top-up piping. • The tool calculates costs for new designs (based on model designs; see the LCCT User Guide) and includes costs of design (as part of overhead), contractor profit, material, delivery, labour, equipment (rental, operating and operator costs), hauling and disposal. Since the tool was built to estimate greenfield development costs, it does not include mobilization and demobilization. You can add mobilization costs in the "Additional Costs" cells. • Unit costs are based on 2018 pricing; the tool automatically adds inflation. See the Assumptions sheet for details. • The cost of retrofitting is in general 16% higher than the cost of new construction. These added construction costs can be found in the 'costs summary' tab and are easily added to the total construction cost for increased accuracy.
C60: USERS: Please enter information into YELLOW coloured cells
C61: Site and Design Information | I61: Capital Costs | L61: Sales tax / HST (%) | N61: =Assumptions!$D$17 -> 0.13
C63: USER INPUTS | I63: PRE-CONSTRUCTION | L63: Unit | M63: Cost | N63: Cost adjustment
C64: Roof drainage area | F64: 2000 | G64: m2 | I64: Stakeout of utilities | K64: =IFERROR(IF($F$64=0,0,IF(F65="Above-ground Plastic",0,1)),"") -> 1 | L64: visit | M64: =CapitalCosts!BQ102*($N$61+1)*(1+N64) -> 581.95 | N64: 0
C65: Tank type: | F65: Below-ground Concrete | G65: unitless | I65: Value of project land | K65: =CapitalCosts!BN101 -> 7.04 | L65: m2 | M65: =CapitalCosts!BQ101*($N$61+1)*(1+N65) -> 0 | N65: 0
C66: Above-ground tank location | F66: N/A | G66: unitless | I66: Add additional costs if necessary | M66: 0
C67: Total daily water usage (indoor & outdoor) | F67: 2000 | G67: L/day | I67: EXCAVATION
C68: User specified storage tank requirement 1 | E68: Optional | G68: L | I68: Pre-treatment Tank Excavation:
C69: User specified tank length 2 | E69: Optional | G69: m | I69: Excavation | K69: =IFERROR(IF($F$64=0,0,IF(F65="Above-ground Plastic",0,CapitalCosts!BN49)),"") -> 25.75820413 | L69: Bm3 | M69: =CapitalCosts!BQ113*($N$61+1)*(1+N69) -> 72.53337734 | N69: 0
C70: User specified tank width 2 | E70: Optional | G70: m | I70: Loading excavated soil 3 | K70: =Assumptions!$D$8 -> 0.15 | L70: % of excavation cost | M70: =CapitalCosts!BQ114*($N$61+1)*(1+N70) -> 10.8800066 | N70: 0
C71: User specified tank height 2 | E71: Optional | G71: m | I71: Hauling excavated soil | K71: =IFERROR(IF($F$64=0,0,IF(F65="Above-ground Plastic",0,(CapitalCosts!BN43+CapitalCosts!BN48)*1.25/13.76*(20/60))),"") -> 0.1853101453 | L71: hours | M71: =CapitalCosts!BQ115*($N$61+1)*(1+N71) -> 885.2316906 | N71: 0 | O71: =ROUNDUP(F64/1200,0) -> 2
C72: Project land value classification | F72: None | G72: Unitless | I72: Pipe trenching: 0.6 m wide, 1.2 m deep | K72: =IFERROR(IF($F$64=0,0,IF(F65="Above-ground Plastic",0,F74)),"") -> 10 | L72: hours | M72: =CapitalCosts!BQ120*($N$61+1)*(1+N72) -> 210.6991216 | N72: 0
C73: DESIGN DEFAULTS | E73: defaults | F73: (values in col G can be changed) | I73: Underground Tank Excavation:
C74: Conveyance pipe length | E74: 10 | F74: 10 | G74: m | I74: Excavation | K74: =IFERROR(IF($F$64=0,0,IF(F65="Above-ground Plastic",0,CapitalCosts!BN57)),"") -> 117.1907154 | L74: Bm3 | M74: =CapitalCosts!BQ111*($N$61+1)*(1+N74) -> 330.0012042 | N74: 0
C75: Service pipe length | E75: 17 | F75: =IF(F65="Above-ground Plastic",5,17) -> 17 | G75: m | I75: Loading excavated soil 3 | K75: 15 | L75: % of excavation cost | M75: =CapitalCosts!BQ112*($N$61+1)*(1+N75) -> 49.50018063 | N75: 0
C76: Supply pipe length | E76: 94.5 | F76: 94.5 | G76: m | I76: Hauling excavated soil | K76: =IFERROR(IF($F$64=0,0,IF(F65="Above-ground Plastic",0,(CapitalCosts!BN51+CapitalCosts!BN56)*1.25/13.76*(20/60))),"") -> 0.6720232558 | L76: hours | M76: =CapitalCosts!BQ115*($N$61+1)*(1+N76) -> 885.2316906 | N76: 0
C77: Top-up pipe interior length | E77: 5 | F77: 5 | G77: m | I77: Add additional costs if necessary | M77: 0
C78: Top-up pipe exterior length | E78: 10 | F78: =IF(F65="Above-ground Plastic",0,10) -> 10 | G78: m | I78: MATERIALS & INSTALLATION
C79: TOOL RESULTS (user inputs override tank calculations) | I79: Conveyance piping | K79: =IFERROR(IF($F$64=0,0,IF(F65="Above-ground Plastic",0,F74)),"") -> 10 | L79: m | M79: =CapitalCosts!BQ134*($N$61+1)*(1+N79) -> 842.7964862 | N79: 0
C80: Estimated storage tank capacity 1 | F80: =IF(F68>0,F68,RWHTank!C26) -> 15000 | G80: L | I80: Pipe bedding | K80: =IFERROR(IF($F$64=0,0,IF(F65="Above-ground Plastic",0,K79)),"") -> 10 | L80: m | M80: =CapitalCosts!BQ135*($N$61+1)*(1+N80) -> 233.9763578 | N80: 0
C81: Tank length 2 | F81: =IF(F69>0,F69,RWHTank!D35) -> 3.2 | G81: m | I81: Inline german-style filter | K81: =IFERROR(IF($F$64=0,0,ROUNDUP(F64/1200,0)),"") -> 2 | L81: Unit | M81: =CapitalCosts!BQ136*($N$61+1)*(1+N81) -> 10588.2845 | N81: 0
C82: Tank width 2 | F82: =IF(F70>0,F70,RWHTank!E35) -> 2.2 | G82: m | I82: Precast concrete tank for filter | K82: =IFERROR(IF($F$64=0,0,1),"") -> 1 | L82: Unit | M82: =CapitalCosts!BQ137*($N$61+1)*(1+N82) -> 5076.524435 | N82: 0
C83: Tank height 2 | F83: =IF(F71>0,F71,RWHTank!F35) -> 3 | G83: m | I83: Install filter into tank & delivery | K83: =K81 -> 2 | L83: each | M83: =CapitalCosts!BQ138*($N$61+1)*(1+N83) -> 4655.6 | N83: 0
I84: Filter tank bedding | K84: =IFERROR(IF($F$64=0,0,IF($F$65="Above-ground Plastic",0,0.152*3*2)),"") -> 0.912 | L84: m3 | M84: =CapitalCosts!BQ139*($N$61+1)*(1+N84) -> 63.46785337 | N84: 0
I85: Attach conveyance piping to filter tank | K85: =IFERROR(IF($F$64=0,0,3),"") -> 3 | L85: each | M85: =CapitalCosts!BQ140*($N$61+1)*(1+N85) -> 305.3437703 | N85: 0
C86: =IF(OR(F64>3000,F67>3000),"The tool can only suggest a storage tank capacity based on a maximum roof drainage area of 3000 m2 or a maximum total daily water usage of 3000 L/day. Please enter a lower value or enter a preferred tank size for costing.","Specifications are within the limits of the tank sizing algorithm.") -> Specifications are within the limits of the tank sizing algorithm. | I86: Backfill | K86: =IFERROR(IF($F$64=0,0,IF(F65="Above-ground Plastic",0,(K69-CapitalCosts!BN51-K84)*(1.25/0.9))),"") -> 5.175283512 | L86: Lm3 | M86: =CapitalCosts!BQ141*($N$61+1)*(1+N86) -> 10.51592593 | N86: 0
I87: Compaction | K87: =IFERROR(IF($F$64=0,0,IF(F65="Above-ground Plastic",0,(K69-CapitalCosts!BN51-K84))),"") -> 3.726204128 | L87: Cm3 | M87: =CapitalCosts!BQ142*($N$61+1)*(1+N87) -> 16.75261523 | N87: 0
I88: Precast concrete tank (below ground) | K88: =IFERROR(IF($F$64=0,0,IF(F65="Below-ground Concrete",F80,0)),"") -> 15000 | L88: L | M88: =CapitalCosts!BQ143*($N$61+1)*(1+N88) -> 5857.150172 | N88: 0
C89: =IF(AND(F65="Above-ground Plastic",F66="n/a"),"Please indicate whether the tank will be located indoors or outdoors",IF(AND(NOT(F65="above-ground Plastic"),NOT(F66="n/a")),"Below-ground tanks do not require a tank location input, please select 'N/A'","Tank specification OK.")) -> Tank specification OK. | I89: Concrete tank delivery | K89: =IFERROR(IF($F$64=0,0,IF(F65="Below-ground Concrete",1,0)),"") -> 1 | L89: each | M89: =CapitalCosts!BQ144*($N$61+1)*(1+N89) -> 271.1887 | N89: 0
C90: =IF(AND(F68>0,F69*F70*F71=0),"Enter all tank dimensions",IF(AND(F68>0,F69*F70*F71*1000*0.8<F68),"Capacity of user specified storage tank, at "&TEXT(F69*F70*F71*1000,"0,000")&" L, is too small, please check tank dimensions (required capacity should be about 80% of tank volume as measured by outside dimensions).",IF(AND($F$68=0,$F$69+$F$70+$F$71>0),"No user specified tank, remove tank dimensions.","User specified tank dimensions OK."))) -> User specified tank dimensions OK. | I90: Standard tank access riser | K90: =IFERROR(IF($F$64=0,0,IF(F65="Below-ground Concrete",1,0)),"") -> 1 | L90: each | M90: =CapitalCosts!BQ145*($N$61+1)*(1+N90) -> 796.014488 | N90: 0
I91: Plastic tank | K91: =IFERROR(IF($F$64=0,0,IF(OR(F65="Above-ground Plastic",F65="Below-ground Plastic"),F80,0)),"") -> 0 | L91: L | M91: =CapitalCosts!BQ146*($N$61+1)*(1+N91) -> 0 | N91: 0
I92: Tank bedding | K92: =IFERROR(IF($F$64=0,0,IF(F65="Above-ground Plastic",0,CapitalCosts!BN56)),"") -> 1.072896 | L92: m3 | M92: =CapitalCosts!BQ147*($N$61+1)*(1+N92) -> 74.66491887 | N92: 0
I93: Tank installation/craning | K93: =IFERROR(IF($F$64=0,0,IF(F65="Above-ground Plastic",0,1)),"") -> 1 | L93: days | M93: =CapitalCosts!BQ148*($N$61+1)*(1+N93) -> 1323.56613 | N93: 0
C94: Notes: 1 The rainwater storage tank capacity is estimated using algorithms from a Rainwater Harvesting Design and Costing Tool assuming: - The historical rainfall for the City of Toronto, from 1961 - 2005 (median annual rainfall: 678 mm) - Optimum rainwater storage tank capacity values which includes an assumption of a 20% unused volume (typically referred to as "dead space") The tool can only calculate a suggested storage tank capacity based on a roof drainage area less than 3000 m2 and a total daily water usage less than 3000 L/day. The maximum tank size for this capacity is 15 000L. If a larger tank is preferred the user can enter a different tank size for costing and enter new values for tank dimensions. 2 The dimension of the above-ground plastic tank does not influence costing and is ignored due to variability of tis type of tank. 3 The amount of loaded excavated soil is equal to the volume of the tank and bedding. The cost is not based on 15% of the total volume of excavated soil. For more detailed design and costing see the RWH Design & Costing Tool Version 1.4 on the Sustainable Technologies Evaluation Program website | I94: Attach connections to tank | K94: =IFERROR(IF($F$64=0,0,5),"") -> 5 | L94: each | M94: =CapitalCosts!BQ149*($N$61+1)*(1+N94) -> 508.9062839 | N94: 0
I95: Backfill | K95: =IFERROR(IF($F$64=0,0,IF(F65="Above-ground Plastic",0,(K74-CapitalCosts!BN141-K92)*(1.25/0.9))),"") -> 154.0868554 | L95: Lm3 | M95: =CapitalCosts!BQ150*($N$61+1)*(1+N95) -> 912.1724844 | N95: 0
I96: Compaction | K96: =IFERROR(IF($F$64=0,0,IF(F65="Above-ground Plastic",0,(K74-CapitalCosts!BN141-K92))),"") -> 110.9425359 | L96: Cm3 | M96: =CapitalCosts!BQ151*($N$61+1)*(1+N96) -> 498.7857758 | N96: 0
I97: Submersible pump | K97: =IFERROR(IF($F$64=0,0,1),"") -> 1 | L97: each | M97: =CapitalCosts!BQ152*($N$61+1)*(1+N97) -> 328.2198 | N97: 0
I98: Pressure tank | K98: =IFERROR(IF($F$64=0,0,1),"") -> 1 | L98: each | M98: =CapitalCosts!BQ153*($N$61+1)*(1+N98) -> 1196.53214 | N98: 0
I99: Pump float switch and electrical wiring | K99: =IFERROR(IF($F$64=0,0,1),"") -> 1 | L99: each | M99: =CapitalCosts!BQ156*($N$61+1)*(1+N99) -> 304.8125356 | N99: 0
I100: Service pipe and fittings | K100: =IFERROR(IF($F$64=0,0,F75),"") -> 17 | L100: m | M100: =CapitalCosts!BQ159*($N$61+1)*(1+N100) -> 2254.883538 | N100: 0
I101: Service pipe through wall | K101: =IFERROR(IF($F$64=0,0,IF(F65="Above-ground Plastic",1,0)),"") -> 0 | L101: each | M101: =CapitalCosts!BQ160*($N$61+1)*(1+N101) -> 0 | N101: 0
I102: Supply piping and fittings | K102: =IFERROR(IF($F$64=0,0,F76),"") -> 94.5 | L102: m | M102: =CapitalCosts!BQ163*($N$61+1)*(1+N102) -> 15781.70132 | N102: 0
I103: Top-up float switch and electrical wiring | K103: =IFERROR(IF($F$64=0,0,1),"") -> 1 | L103: each | M103: =CapitalCosts!BQ166*($N$61+1)*(1+N103) -> 1028.072926 | N103: 0
I104: Water hammer arrestor | K104: =IFERROR(IF($F$64=0,0,1),"") -> 1 | L104: each | M104: =CapitalCosts!BQ167*($N$61+1)*(1+N104) -> 114.3747071 | N104: 0
I105: Water meter | K105: =IFERROR(IF($F$64=0,0,1),"") -> 1 | L105: each | M105: =CapitalCosts!BQ168*($N$61+1)*(1+N105) -> 189.6051295 | N105: 0
I106: Air gap | K106: =IFERROR(IF($F$64=0,0,1),"") -> 1 | L106: each | M106: =CapitalCosts!BQ169*($N$61+1)*(1+N106) -> 425.52184 | N106: 0
I107: Top-up pipe: ABS interior installation + elbow | K107: =IF($F$64=0,0,F77) -> 5 | L107: m | M107: =CapitalCosts!BQ172*($N$61+1)*(1+N107) -> 0 | N107: 0
I108: Top-up pipe through wall | K108: =IF($F$64=0,0,IF(F65="Above-ground Plastic",0,1)) -> 1 | L108: each | M108: =CapitalCosts!BQ173*($N$61+1)*(1+N108) -> 56.1056526 | N108: 0
I109: Top-up pipe: ABS exterior installation + couplings | K109: =IF($F$64=0,0,IF(F65="Above-ground Plastic",0,F78)) -> 10 | L109: m | M109: =CapitalCosts!BQ176*($N$61+1)*(1+N109) -> 0 | N109: 0
I110: Reduced pressure backflow preventor | K110: =IF($F$64=0,0,1) -> 1 | L110: each | M110: =CapitalCosts!BQ177*($N$61+1)*(1+N110) -> 1620.818042 | N110: 0
I111: Add additional costs if necessary | M111: 0
I112: INSPECTIONS
I113: Construction Inspections | K113: =IF($F$64=0,0,CapitalCosts!BN200) -> 5 | L113: visit | M113: =CapitalCosts!BN199*K113*($N$61+1)*(1+N113) -> 1764.017001 | N113: 0
I114: Project Acceptance Inspections | K114: =IF($F$64=0,"",CapitalCosts!BO200) -> 1.5 | L114: visit | M114: =CapitalCosts!BO199*K114*($N$61+1)*(1+N114) -> 663.1810751 | N114: 0
C115: User Notes: | I115: Cistern pump testing at Project Acceptance | K115: =IF($F$64=0,"",1) -> 1 | L115: tests | M115: =CapitalCosts!BO204*($N$61+1)*(1+N115) -> 80.38558486 | N115: 0
I116: Add additional costs if necessary | M116: 0
I117: TOTALS
I118: Sub-total | M118: =SUM(M64:M66,M69:M77,M79:M111,M113:M116) -> 60869.96947
I119: Overhead | K119: =Assumptions!$D$19 -> 0.1 | M119: =M118*K119 -> 6086.996947
I120: Other | K120: 0 | M120: =$M$107*K120 -> 0
I121: TOTAL | M121: =SUM(M118:M120) -> 66956.96641
C127: Maintenance and Life Cycle Costs
C128: USERS: Choose your maintenance level. Defaults will populate the table below. Light green coloured cells can be modified.
F130: Select maitenance level --> | H130: Low | L130: Notes: Inflation rate is 1.586% (based on average from 2010-2017) Maintenance costs based on systems designed with a 2000 m2 roof drainage area, maintenance costs are fixed costs. The discount rate accounts for the time value of money and the risk of anticipated future cash flows Rehabilitation occurs on schedule, even during the last year of the evaluation period Cost of rehabilitation alone included above in Maintenance table. Life cycle cost of Rehabilitation in the Life Cycle Cositng Inputs table takes into account differences in maintenance when rehabilitation performed
F131: Sales tax / HST (%) | H131: =Assumptions!$D$17 -> 0.13
F133: Life Cycle Occurrence (every X years)
C134: MAINTENANCE OPTIONS | F134: Occurrence | G134: Default | H134: Assumed | I134: Unit cost
C135: =OM_Costs!BG54 -> Routine inspection | F135: Periodic | G135: 1 | H135: 1 | I135: =IF(RWHDesign!$F$64=0,0,IF(OR(F135="Select…",F135="Ignore"),0,IF($H$130="Low",OM_Costs!BH54*($H$131+1),OM_Costs!BI54*($H$131+1)))) -> 449.1321261
C136: =OM_Costs!BG55 -> Maintenace inspection | F136: Periodic | G136: 5 | H136: 5 | I136: =IF(RWHDesign!$F$64=0,0,IF(OR(F136="Select…",F136="Ignore"),0,IF($H$130="Low",OM_Costs!BH55*($H$131+1),OM_Costs!BI55*($H$131+1)))) -> 449.1321261
C137: =OM_Costs!BG56 -> Performance verification | F137: Periodic | G137: 15 | H137: 15 | I137: =IF(RWHDesign!$F$64=0,0,IF(OR(F137="Select…",F137="Ignore"),0,IF($H$130="Low",OM_Costs!BH56*($H$131+1),OM_Costs!BI56*($H$131+1)))) -> 403.7142706
C138: =OM_Costs!BG57 -> PV Option #1: Cistern pump test | F138: Periodic | G138: 15 | H138: 15 | I138: =IF(RWHDesign!$F$64=0,0,IF(OR(F138="Select…",F138="Ignore"),0,IF($H$130="Low",OM_Costs!BH57*($H$131+1),OM_Costs!BI57*($H$131+1)))) -> 90.83571089
C139: =OM_Costs!BG58 -> Remove litter | F139: Periodic | G139: 1 | H139: 1 | I139: =IF(RWHDesign!$F$64=0,0,IF(OR(F139="Select…",F139="Ignore"),0,IF($H$130="Low",OM_Costs!BH58*($H$131+1),OM_Costs!BI58*($H$131+1)))) -> 19.28288854
C140: =OM_Costs!BG59 -> Cleaning in-line filter | F140: Periodic | G140: 1 | H140: 1 | I140: =IF(RWHDesign!$F$64=0,0,IF(OR(F140="Select…",F140="Ignore"),0,IF($H$130="Low",OM_Costs!BH59*($H$131+1),OM_Costs!BI59*($H$131+1)))) -> 167.60176 | L140: User Notes:
C141: =OM_Costs!BG60 -> Above, outdoor cistern off-line in winter | F141: Periodic | G141: 1 | H141: 1 | I141: =IF(RWHDesign!$F$64=0,0,IF(OR(F141="Select…",F141="Ignore"),0,IF($H$130="Low",OM_Costs!BH60*($H$131+1),OM_Costs!BI60*($H$131+1)))) -> 0
C142: =OM_Costs!BG61 -> Cleaning out tank | F142: Periodic | G142: High = 5, Low = 10 | H142: 10 | I142: =IF(RWHDesign!$F$64=0,0,IF(OR(F142="Select…",F142="Ignore"),0,IF($H$130="Low",OM_Costs!BH61*($H$131+1),OM_Costs!BI61*($H$131+1)))) -> 1578.2484
C143: =OM_Costs!BG62 -> Replacing pump & pressure tank | F143: Periodic | G143: High = 5, Low = 10 | H143: 10 | I143: =IF(RWHDesign!$F$64=0,0,IF(OR(F143="Select…",F143="Ignore"),0,IF($H$130="Low",OM_Costs!BH62*($H$131+1),OM_Costs!BI62*($H$131+1)))) -> 1242.130013
C144: =OM_Costs!BG63 -> Routine - cistern pump test | F144: Periodic | G144: 1 | H144: 1 | I144: =IF(RWHDesign!$F$64=0,0,IF(OR(F144="Select…",F144="Ignore"),0,IF($H$130="Low",OM_Costs!BH63*($H$131+1),OM_Costs!BI63*($H$131+1)))) -> 90.83571089
C145: =OM_Costs!BG64 -> Add additional options | F145: Periodic | G145: n/a | H145: n/a | I145: =IF(RWHDesign!$F$64=0,0,IF(OR(F145="Select…",F145="Ignore"),0,IF($H$130="Low",OM_Costs!BH64*($H$131+1),OM_Costs!BI64*($H$131+1)))) -> 0
C146: =OM_Costs!BG65 -> Add additional options | F146: Periodic | G146: n/a | H146: n/a | I146: =IF(RWHDesign!$F$64=0,0,IF(OR(F146="Select…",F146="Ignore"),0,IF($H$130="Low",OM_Costs!BH65*($H$131+1),OM_Costs!BI65*($H$131+1)))) -> 0
C147: =OM_Costs!BG66 -> Add additional options | F147: Periodic | G147: n/a | H147: n/a | I147: =IF(RWHDesign!$F$64=0,0,IF(OR(F147="Select…",F147="Ignore"),0,IF($H$130="Low",OM_Costs!BH66*($H$131+1),OM_Costs!BI66*($H$131+1)))) -> 0
C148: =OM_Costs!BG67 -> Add additional options | F148: Periodic | G148: n/a | H148: n/a | I148: =IF(RWHDesign!$F$64=0,0,IF(OR(F148="Select…",F148="Ignore"),0,IF($H$130="Low",OM_Costs!BH67*($H$131+1),OM_Costs!BI67*($H$131+1)))) -> 0
C149: =OM_Costs!BG68 -> Rehabilitation | F149: Periodic | G149: 40 | H149: 40 | I149: =IF(RWHDesign!$F$64=0,0,IF(OR(F149="Select…",F149="Ignore"),0,IF($H$130="Low",OM_Costs!BH68*($H$131+1),OM_Costs!BI68*($H$131+1)))) -> 0
C151: LIFE CYCLE COSTING INPUTS
C152: Inflation Rate (%) | F152: =Assumptions!$D$14 -> 0.03
C153: Discount Rate (%) | F153: =Assumptions!$D$15 -> 0.05
C154: Construction Costs | F154: =RWHDesign!M121 -> 66956.96641
C155: Life Cycle Costing Results (present value, 50 years)
C156: Life Cycle Cost of Rehabilitation | F156: =LifeCycleCosts!LV72 -> 0 | G156: <- Difference of total maintenance costs with inflation and discount for rehab vs no rehab
C157: Average Annual Maintenance Cost
C158: 50 Year evaluation period | F158: =LifeCycleCosts!LW69 -> 2653.279331 | G158: <- Includes inflation, does not include discount or rehabilitation
C159: =Assumptions!$D$16&" Year evaluation period" -> Year evaluation period | F159: =LifeCycleCosts!LW67 ->  | G159: <- Includes inflation, does not include discount or rehabilitation
C174: Cost Summary
C177: Total construction costs | F177: =RWHDesign!M121 -> 66956.96641
C178: Construction cost break down
C179: Pre-construction | F179: =SUM(RWHDesign!M64:M66) -> 581.95
C180: Excavation | F180: =SUM(RWHDesign!M69:M77) -> 2444.077272
C181: Materials & Installation | F181: =SUM(RWHDesign!M79:M111) -> 55336.35853
C182: Inspections | F182: =SUM(RWHDesign!M113:M116) -> 2507.583661
C183: Other | F183: =SUM(RWHDesign!M119:M120) -> 6086.996947
C185: Life Cycle Totals
C186: 50 YEAR EVALUATION PERIOD
C187: PV of maintenance & rehabilitation | F187: =LifeCycleCosts!LV71 -> 33925.82838
C188: PV of all costs | F188: =F187+F177 -> 100882.7948
C189: =Assumptions!$D$16&" YEAR EVALUATION PERIOD" -> YEAR EVALUATION PERIOD
C190: PV of maintenance & rehabilitation | F190: =LifeCycleCosts!LV70 -> 
C191: PV of all costs | F191: =F190+F177 -> 
C193: Retrofit Cost
C194: Percentage of total cost | F194: =Assumptions!$D$18 -> 0.16
C195: Total | F195: =F177*F194 -> 10713.11463
C210: Working Notes

Sheet WPONDDesign
B1: DETENTION POND - WET | I1: WP calcs | L1: TOC | N1: INTRO | O1: Capital | P1: O&M | Q1: Summary
C3: Design & Costs Information
C31: Design Guidance (visit wiki.sustainabletechnologies.ca for detailed guidance; see the STEP Life Cycle Costing Tool User Guide for info on how to use the tool for cost estimation) • STEP used the MOECC's 2003 Stormwater Management Planning and Design Manual to develop the model design which the tool costs out Tool Assumptions • User enters site information into the yellow cells in the User Input section. The tool includes defaults based on STEP’s LID Planning and Design Guidance, but users may change the values found in the pink cells. STEP default values are kept in a separate column as a reference. • The tool calculates costs for new designs (based on model designs; see the LCCT User Guide) and includes costs of design (as part of overhead), contractor profit, material, delivery, labour, equipment (rental, operating and operator costs), hauling and disposal. Since the tool was built to estimate greenfield development costs, it does not include mobilization and demobilization. You can add mobilization costs in the "Additional Costs" cells. • Unit costs are based on 2018 pricing; the tool automatically adds inflation. See the Assumptions sheet for details. • The cost of retrofitting is in general 16% higher than the cost of new construction. These added construction costs can be found in the 'costs summary' tab and are easily added to the total construction cost for increased accuracy.
C61: USERS: Please enter information into YELLOW coloured cells
C63: Site and Design Information | I63: Capital Costs | L63: Sales tax / HST (%) | N63: =Assumptions!$D$17 -> 0.13
C65: USER INPUTS | I65: PRE-CONSTRUCTION | L65: Unit | M65: Cost | N65: Cost adjustment
C66: Drainage area1 | F66: 7.5 | G66: ha | I66: Test pits | K66: =CapitalCosts!CB102 -> 4 | L66: m3 | M66: =CapitalCosts!CE102*($N$63+1)*(1+N66) -> 851.1797514 | N66: 0
C67: Impervious drainage area | F67: 0.3 | G67: % | I67: Stakeout of utilities | K67: =CapitalCosts!CB103 -> 1 | L67: visit | M67: =CapitalCosts!CE103*($N$63+1)*(1+N67) -> 581.95 | N67: 0
C68: WQ Protection Level2 | F68: normal | I68: Erosion and sediment controls: | M68: =CapitalCosts!CE104*($N$63+1)*(1+N68) -> 1202.044027 | N68: 0
C69: Wetland area in pond | F69: 0.25 | G69: % of permanent pond area | I69: 2" Submersible gas pump | K69: =CapitalCosts!CB105 -> 3 | L69: days | M69: =CapitalCosts!CE105*($N$63+1)*(1+N69) -> 104.2216583 | N69: 0
C70: Soil | F70: Common earth | I70: Silt sack in catchbasin | K70: =CapitalCosts!CB106 -> 1 | L70: each | M70: =CapitalCosts!CE106*($N$63+1)*(1+N70) -> 78.35985 | N70: 0
C71: Forebay berm structure | F71: Riprap | G71: m | I71: Silt fence around excavation (down slope sides) | K71: =CapitalCosts!CB107 -> 135.1169995 | L71: m | M71: =CapitalCosts!CE107*($N$63+1)*(1+N71) -> 1019.462519 | N71: 0
C72: Clay liner required | F72: no | I72: Value of project land | K72: =CapitalCosts!CB101 -> 4176.295332 | L72: m2 | M72: =CapitalCosts!CE101*($N$63+1)*(1+N72) -> 0 | N72: 0
C73: Project land value classification | F73: None | G73: Unitless | I73: Add additional costs if necessary | M73: 0
C74: DESIGN DEFAULTS | E74: defaults | F74: (values in col G can be changed) | I74: EXCAVATION
C75: Extended detention storage requirement | E75: 40 | F75: 40 | G75: m3/ha | I75: =CapitalCosts!CA111 -> Clear and grub site | K75: =CapitalCosts!CB111 -> 4176.295332 | L75: =CapitalCosts!CC111 -> m2 | M75: =CapitalCosts!CE111*($N$63+1)*(1+N75) -> 8742.015469 | N75: 0
C76: Width of side buffer | E76: 10 | F76: 10 | G76: m | I76: =CapitalCosts!CA112 -> Cut an fill | K76: =CapitalCosts!CB112 -> 778.2973321 | L76: =CapitalCosts!CC112 -> m3 | M76: =CapitalCosts!CE112*($N$63+1)*(1+N76) -> 14170.90071 | N76: 0
C77: Width of end buffer | E77: 10 | F77: 10 | G77: m | I77: =CapitalCosts!CA113 -> Topsoil salvage - haul to stockpile | K77: =CapitalCosts!CB113 -> 1044.073833 | L77: =CapitalCosts!CC113 -> m3 | M77: =CapitalCosts!CE113*($N$63+1)*(1+N77) -> 4426.767744 | N77: 0
C78: Forebay volume | E78: 0.2 | F78: 0.2 | G78: % | I78: =CapitalCosts!CA114 -> Safety Fencing | K78: =CapitalCosts!CB114 -> 270.2339991 | L78: =CapitalCosts!CC114 -> m | M78: =CapitalCosts!CE114*($N$63+1)*(1+N78) -> 5910.713541 | N78: 0
C79: Forebay depth | E79: 1.5 | F79: 1.5 | G79: m | I79: =CapitalCosts!CA115 -> Clean out drain pipe trenching, forebay | K79: =CapitalCosts!CB115 -> 38.97523998 | L79: =CapitalCosts!CC115 -> m | M79: =CapitalCosts!CE115*($N$63+1)*(1+N79) -> 1733.133352 | N79: 0
C80: Clearance above forebay berm to permanent pool | E80: 0.2 | F80: 0.2 | G80: m | I80: =CapitalCosts!CA116 -> Clean out drain pipe trenching, permanent pool | K80: =CapitalCosts!CB116 -> 5 | L80: =CapitalCosts!CC116 -> m | M80: =CapitalCosts!CE116*($N$63+1)*(1+N80) -> 222.3377397 | N80: 0
C81: Forebay berm top width | E81: 0.3 | F81: 0.3 | G81: m | I81: =CapitalCosts!CA117 -> Manhole to stormsewer trenching | K81: =CapitalCosts!CB117 -> 25 | L81: =CapitalCosts!CC117 -> m | M81: =CapitalCosts!CE117*($N$63+1)*(1+N81) -> 1513.020359 | N81: 0
C82: Pond Length-to-Width Ratio | E82: 4 | F82: 4 | G82: :1 | I82: Add additional costs if necessary | M82: 0
C83: Forebay Length-to-Width Ratio | E83: 4 | F83: 4 | G83: :1 | I83: MATERIALS & INSTALLATION
C84: Wet pond permanent pool depth | E84: 1.5 | F84: 1.5 | G84: m | I84: =CapitalCosts!CA134 -> Clay liner | K84: =CapitalCosts!CB134 -> 0 | L84: =CapitalCosts!CC134 -> m3 | M84: =CapitalCosts!CE134*($N$63+1)*(1+N84) -> 0 | N84: 0
C85: Wetland depth | E85: 0.2 | F85: 0.2 | G85: m | I85: =CapitalCosts!CA135 -> Inlet pipe, 450 mm | K85: =CapitalCosts!CB135 -> 15 | L85: =CapitalCosts!CC135 -> m | M85: =CapitalCosts!CE135*($N$63+1)*(1+N85) -> 1655.493098 | N85: 0
C86: Active storage depth | E86: 1.5 | F86: 1.5 | G86: m | I86: =CapitalCosts!CA136 -> Inlet pipe anchoring block, concrete cast-in-place | K86: =CapitalCosts!CB136 -> 1 | L86: =CapitalCosts!CC136 -> m | M86: =CapitalCosts!CE136*($N$63+1)*(1+N86) -> 160.532664 | N86: 0
C87: Freeboard | E87: 0.3 | F87: 0.3 | G87: m | I87: =CapitalCosts!CA137 -> Inlet erosion splash pad (plantable pavers) | K87: =CapitalCosts!CB137 -> 2 | L87: =CapitalCosts!CC137 -> m2 | M87: =CapitalCosts!CE137*($N$63+1)*(1+N87) -> 292.7592243 | N87: 0
C88: Inlet pipe diameter | E88: 450 | F88: 450 | G88: mm | I88: =CapitalCosts!CA138 -> Manhole outlet structure | L88: total cost | M88: =CapitalCosts!CE138*($N$63+1)*(1+N88) -> 7773.240419 | N88: 0
C89: Inlet pipe length | E89: 15 | F89: =F77 + 5 -> 15 | G89: m | I89: =CapitalCosts!CA143 -> Outlet pipe from manhole to sewer- 450 mm | K89: =CapitalCosts!CB143 -> 25 | L89: =CapitalCosts!CC143 -> m | M89: =CapitalCosts!CE143*($N$63+1)*(1+N89) -> 2759.155163 | N89: 0
C90: Conveyance pipe diameter | E90: 200 | F90: 200 | G90: mm | I90: =CapitalCosts!CA144 -> Conveyance Pipe - 200 mm | K90: =CapitalCosts!CB144 -> 5 | L90: =CapitalCosts!CC144 -> m | M90: =CapitalCosts!CE144*($N$63+1)*(1+N90) -> 241.8023252 | N90: 0
C91: Conveyance orifice control diameter | E91: 100 | F91: 100 | G91: mm | I91: =CapitalCosts!CA145 -> Conveyance Pipe orifice control, gate valve, 200 mm | K91: =CapitalCosts!CB145 -> 1 | L91: =CapitalCosts!CC145 -> each | M91: =CapitalCosts!CE145*($N$63+1)*(1+N91) -> 3027.565777 | N91: 0
C92: Conveyance pipe length to flow control structure (manhole) | E92: 5 | F92: 5 | G92: m | I92: =CapitalCosts!CA146 -> Conveyance pipe trash grate | K92: =CapitalCosts!CB146 -> 1 | L92: =CapitalCosts!CC146 -> each | M92: =CapitalCosts!CE146*($N$63+1)*(1+N92) -> 65.71983537 | N92: 0
C93: Maintenance pipe diameter | E93: 300 | F93: 300 | G93: mm | I93: =CapitalCosts!CA147 -> Cleanout drains, 300 mm | K93: =CapitalCosts!CB147 -> 43.97523998 | L93: =CapitalCosts!CC147 -> m | M93: =CapitalCosts!CE147*($N$63+1)*(1+N93) -> 2126.663056 | N93: 0
C94: Outlet pipe from manhole to receiving water - diameter | E94: 450 | F94: 450 | G94: mm | I94: =CapitalCosts!CA148 -> Trash grate for cleanout drains | K94: =CapitalCosts!CB148 -> 2 | L94: =CapitalCosts!CC148 -> each | M94: =CapitalCosts!CE148*($N$63+1)*(1+N94) -> 350.3799686 | N94: 0
C95: Outlet pipe from manhole to receiving water - length | E95: 25 | F95: 25 | G95: m | I95: =CapitalCosts!CA149 -> Cleanout pipe Gate Valves, 300 mm | K95: =CapitalCosts!CB149 -> 2 | L95: =CapitalCosts!CC149 -> each | M95: =CapitalCosts!CE149*($N$63+1)*(1+N95) -> 13517.01084 | N95: 0
C96: Side slope, buffer (Width:depth) | E96: 6 | F96: 6 | G96: x:1 | I96: =CapitalCosts!CA150 -> Forebay berm | K96: =CapitalCosts!CB150 -> 31.87438243 | L96: =CapitalCosts!CC150 -> m3 | M96: =CapitalCosts!CE150*($N$63+1)*(1+N96) -> 2121.610422 | N96: 0
C97: Side slope, forebay, berm and permanent pool (Width:depth) | E97: 3 | F97: 3 | G97: x:1 | I97: =CapitalCosts!CA151 -> Service road | K97: =CapitalCosts!CB151 -> 40 | L97: =CapitalCosts!CC151 -> m | M97: =CapitalCosts!CE151*($N$63+1)*(1+N97) -> 14421.08027 | N97: 0
C98: Depth of clay liner for permanent pool | E98: 0.3 | F98: 0.3 | G98: m | I98: =CapitalCosts!CA152 -> Perimeter fence | K98: =CapitalCosts!CB152 -> 270.2339991 | L98: =CapitalCosts!CC152 -> m | M98: =CapitalCosts!CE152*($N$63+1)*(1+N98) -> 30909.23595 | N98: 0
C99: Tree and shrub planting | E99: 0.5 | F99: 0.5 | G99: % of area above permanent pool | I99: =CapitalCosts!CA153 -> Perimeter fence gate | K99: =CapitalCosts!CB153 -> 1 | L99: =CapitalCosts!CC153 -> each | M99: =CapitalCosts!CE153*($N$63+1)*(1+N99) -> 1559.655097 | N99: 0
C100: TOOL RESULTS | I100: =CapitalCosts!CA154 -> Site Planting | L100: total cost | M100: =CapitalCosts!CE154*($N$63+1)*(1+N100) -> 127806.4943 | N100: 0
C101: Total water quality storage volume | F101: =CapitalCosts!CB43 -> 536.10825 | G101: m3 | I101: =CapitalCosts!CA163 -> Signage | K101: =CapitalCosts!CB163 -> 3 | L101: =CapitalCosts!CC163 -> each | M101: =CapitalCosts!CE163*($N$63+1)*(1+N101) -> 3853.265535 | N101: 0
C102: Extended detention storage volume | F102: =CapitalCosts!CB44 -> 300 | G102: m3 | I102: =CapitalCosts!CA164 -> As built topographical survey | K102: =CapitalCosts!CB164 -> 4176.295332 | L102: =CapitalCosts!CC164 -> m2 | M102: =CapitalCosts!CE164*($N$63+1)*(1+N102) -> 5649.172451 | N102: 0
C103: Forebay volume | F103: =CapitalCosts!CB45 -> 47.22165 | G103: m3 | I103: Add additional costs if necessary | M103: 0
C104: Permanent pool volume | F104: =CapitalCosts!CB47 -> 188.8866 | G104: m3 | I104: INSPECTIONS
C105: Detention time | F105: =CapitalCosts!CB84 -> 27.3297633 | G105: hr | I105: Construction Inspections | K105: =IF($F$66="","",CapitalCosts!N200) -> 5 | L105: visit | M105: =CapitalCosts!CB197*($N$63+1)*(1+N105) -> 1205.783773 | N105: 0
C106: =CapitalCosts!CA88 -> Overall pond length | F106: =CapitalCosts!CB88 -> 67.25254858 | G106: =CapitalCosts!CC88 -> m | I106: Project Acceptance Inspections4 | K106: =IF($F$66="","",CapitalCosts!O200) -> 2.5 | L106: visit | M106: =CapitalCosts!CC197*($N$63+1)*(1+N106) -> 602.8918864 | N106: 0
C107: =CapitalCosts!CA89 -> Overall pond width | F107: =CapitalCosts!CB89 -> 27.86445095 | G107: =CapitalCosts!CC89 -> m | I107: Add additional costs if necessary | M107: 0
C108: =CapitalCosts!CA90 -> Pond enclosure length | F108: =CapitalCosts!CB90 -> 87.25254858 | G108: =CapitalCosts!CC90 -> m | I108: TOTALS
C109: =CapitalCosts!CA91 -> Pond enclosure width | F109: =CapitalCosts!CB91 -> 47.86445095 | G109: =CapitalCosts!CC91 -> m | I109: Sub-total | M109: =SUM(M84:M103,M75:M82,M66:M73,M105:M107) -> 260655.6187
C110: =CapitalCosts!CA92 -> Pond enclosure area | F110: =CapitalCosts!CB92 -> 0.4176295332 | G110: =CapitalCosts!CC92 -> ha | I110: Overhead | K110: =Assumptions!$D$19 -> 0.1 | M110: =M109*K110 -> 26065.56187
C111: Active storage surface area | F111: =CapitalCosts!CB81+CapitalCosts!CB80 -> 1444.254451 | G111: m2 | I111: Other | K111: 0 | M111: =K111*M109 -> 0
C112: Permanent pool + forebay surface area | F112: =CapitalCosts!CB66+CapitalCosts!CB58 -> 316.3941011 | G112: m2 | I112: GRAND TOTAL | M112: =SUM(M109:M111) -> 286721.1806
C113: Planted area | F113: =CapitalCosts!CB157 -> 3963.762675 | G113: m2
C115: =IF(F66<5,"Drainage area should not be less than 5 ha","Drainage area is OK") -> Drainage area is OK
C117: Notes: 1 Should not be less tahn 5 ha, 10 ha is preferrable. 2 Enhanced - 80% long-term S.S. removal; normal - 70% long-term S.S. removal; basic - 60% long-term S.S. removal.
C127: User Notes:
C136: Maintenance and Life Cycle Costs
C137: USERS: Choose your maintenance level. Defaults will populate the table below. Light green coloured cells can be modified.
K139: Notes: ▪ Maintenance costs are scaled based on the size of the enhanced grass swale ▪ If rehabilitation is performed, Year 1 and 2 watering and restoration of lost vegetation maintenance will be costed again ▪ Rehabilitation occurs on schedule, even during the last year of the evaluation period ▪ The discount rate accounts for the time value of money and the risk of anticipated future cash flows ▪ All Life Cycle Costing Results are Net Present Value, which takes into account average annual interest and discount rates over the evaluation time periods ▪ Life cycle cost of Rehabilitation takes into account differences in maintenance when rehabilitation performed ▪ Average Annual Maintenance cost does not include rehabilitation costs and therefore represents an average of routine maintenance tasks as outlined in the Maintenance table above
E140: Select maitenance level --> | G140: Low
E141: Sales tax / HST (%) | G141: =Assumptions!$D$17 -> 0.13
F143: Life Cycle Occurrence (every X years)
C144: MAINTENANCE OPTIONS | F144: Occurrence | G144: Default | H144: Assumed | I144: Unit cost
C145: =OM_Costs!BO54 -> Routine Inspections | F145: Periodic | G145: 1 | H145: 1 | I145: =IF($F$66="",0,IF(F145="Ignore",0,IF($G$140="Low",OM_Costs!BP54,OM_Costs!BQ54)*($G$141+1))) -> 1847.598359
C146: =OM_Costs!BO55 -> Bathymetric survey | F146: Periodic | G146: 10 | H146: 10 | I146: =IF($F$66="",0,IF(F146="Ignore",0,IF($G$140="Low",OM_Costs!BP55,OM_Costs!BQ55)*($G$141+1))) -> 2260
C147: =OM_Costs!BO56 -> Monitor and remove invasive plants | F147: Periodic | G147: 1 | H147: 1 | I147: =IF($F$66="",0,IF(F147="Ignore",0,IF($G$140="Low",OM_Costs!BP56,OM_Costs!BQ56)*($G$141+1))) -> 1444.910069
C148: =OM_Costs!BO57 -> Watering - Year 1 only | F148: Once | G148: 1 | H148: 1 | I148: =IF($F$66="",0,IF(F148="Ignore",0,IF($G$140="Low",OM_Costs!BP57,OM_Costs!BQ57)*($G$141+1))) -> 3665.032588
C149: =OM_Costs!BO58 -> Watering - Year 2 only | F149: Periodic | G149: 1 | H149: 1 | I149: =IF($F$66="",0,IF(F149="Ignore",0,IF($G$140="Low",OM_Costs!BP58,OM_Costs!BQ58)*($G$141+1))) -> 0
C150: =OM_Costs!BO59 -> Annual watering - Starts in Year 3 | F150: Periodic | G150: 1 | H150: 1 | I150: =IF($F$66="",0,IF(F150="Ignore",0,IF($G$140="Low",OM_Costs!BP59,OM_Costs!BQ59)*($G$141+1))) -> 0
C151: =OM_Costs!BO60 -> Drought watering | F151: Periodic | G151: 1 | H151: 1 | I151: =IF($F$66="",0,IF(F151="Ignore",0,IF($G$140="Low",OM_Costs!BP60,OM_Costs!BQ60)*($G$141+1))) -> 0
C152: =OM_Costs!BO61 -> Remove litter and debris | F152: Periodic | G152: 1 | H152: 1 | I152: =IF($F$66="",0,IF(F152="Ignore",0,IF($G$140="Low",OM_Costs!BP61,OM_Costs!BQ61)*($G$141+1))) -> 1910.819846 | K152: User Notes:
C153: =OM_Costs!BO62 -> Maintain trees | F153: Periodic | G153: 10 | H153: 10 | I153: =IF($F$66="",0,IF(F153="Ignore",0,IF($G$140="Low",OM_Costs!BP62,OM_Costs!BQ62)*($G$141+1))) -> 3926.645337
C154: =OM_Costs!BO63 -> Mow access road shoulders | F154: Periodic | G154: 1 | H154: 1 | I154: =IF($F$66="",0,IF(F154="Ignore",0,IF($G$140="Low",OM_Costs!BP63,OM_Costs!BQ63)*($G$141+1))) -> 95.22414093
C155: =OM_Costs!BO64 -> Sediment removal - Starts Year 2 | F155: Periodic | G155: High = 10, Low = 15 | H155: 15 | I155: =IF($F$66="",0,IF(F155="Ignore",0,IF($G$140="Low",OM_Costs!BP64,OM_Costs!BQ64)*($G$141+1))) -> 244904.854
C156: =OM_Costs!BO65 -> Clear cleanout drains | F156: Periodic | G156: 4 | H156: 4 | I156: =IF($F$66="",0,IF(F156="Ignore",0,IF($G$140="Low",OM_Costs!BP65,OM_Costs!BQ65)*($G$141+1))) -> 789.1242
C157: =OM_Costs!BO66 -> Add additional options | F157: Periodic | G157: n/a | H157: n/a | I157: =IF($F$66="",0,IF(F157="Ignore",0,IF($G$140="Low",OM_Costs!BP66,OM_Costs!BQ66)*($G$141+1))) -> 0
C158: =OM_Costs!BO67 -> Add additional options | F158: Periodic | G158: n/a | H158: n/a | I158: =IF($F$66="",0,IF(F158="Ignore",0,IF($G$140="Low",OM_Costs!BP67,OM_Costs!BQ67)*($G$141+1))) -> 0
C159: =OM_Costs!BO68 -> Add additional options | F159: Periodic | G159: n/a | H159: n/a | I159: =IF($F$66="",0,IF(F159="Ignore",0,IF($G$140="Low",OM_Costs!BP68,OM_Costs!BQ68)*($G$141+1))) -> 0
C160: =OM_Costs!BO69 -> Add additional options | F160: Periodic | G160: n/a | H160: n/a | I160: =IF($F$66="",0,IF(F160="Ignore",0,IF($G$140="Low",OM_Costs!BP69,OM_Costs!BQ69)*($G$141+1))) -> 0
C161: =OM_Costs!BO70 -> Add additional options | F161: Periodic | G161: n/a | H161: n/a | I161: =IF($F$66="",0,IF(F161="Ignore",0,IF($G$140="Low",OM_Costs!BP70,OM_Costs!BQ70)*($G$141+1))) -> 0
C162: =OM_Costs!BO71 -> Add additional options | F162: Periodic | G162: n/a | H162: n/a | I162: =IF($F$66="",0,IF(F162="Ignore",0,IF($G$140="Low",OM_Costs!BP71,OM_Costs!BQ71)*($G$141+1))) -> 0
C163: =OM_Costs!BO72 -> Add additional options | F163: Periodic | G163: n/a | H163: n/a | I163: =IF($F$66="",0,IF(F163="Ignore",0,IF($G$140="Low",OM_Costs!BP72,OM_Costs!BQ72)*($G$141+1))) -> 0
C164: =OM_Costs!BO73 -> Add additional options | F164: Periodic | G164: n/a | H164: n/a | I164: =IF($F$66="",0,IF(F164="Ignore",0,IF($G$140="Low",OM_Costs!BP73,OM_Costs!BQ73)*($G$141+1))) -> 0
C165: =OM_Costs!BO74 -> Rehabilitation | F165: Periodic | G165: 25 | H165: 25 | I165: =IF($F$66="",0,IF(F165="Ignore",0,IF($G$140="Low",OM_Costs!BP74,OM_Costs!BQ74)*($G$141+1))) -> 0
C169: LIFE CYCLE COSTING INPUTS
C170: Inflation Rate (%) | F170: =Assumptions!$D$14 -> 0.03
C171: Discount Rate (%) | F171: =Assumptions!$D$15 -> 0.05
C172: Construction Costs | F172: =M112 -> 286721.1806
C173: Life Cycle Costing Results (present value, 50 years)
C174: Life Cycle Cost of Rehabilitation | F174: =LifeCycleCosts!NS72 -> 0 | G174: <- Difference of total maintenance costs with inflation and discount for rehab vs no rehab
C175: Average Annual Maintenance Cost
C176: 50 Year evaluation period | F176: =LifeCycleCosts!NT69 -> 20874.19865 | G176: <- Includes inflation, does not include discount or rehabilitation
C177: =Assumptions!$D$16&" Year evaluation period" -> Year evaluation period | F177: =LifeCycleCosts!NT67 ->  | G177: <- Includes inflation, does not include discount or rehabilitation
C183: Cost Summary
C186: Total construction costs | G186: =M112 -> 286721.1806
C187: Construction cost break down
C188: Pre-construction | G188: =SUM(M66:M73) -> 3837.217806
C189: Excavation | G189: =SUM(M75:M82) -> 36718.88892
C190: Materials & Installation | G190: =SUM(M84:M103) -> 218290.8364
C191: Inspections | G191: =SUM(M105:M107) -> 1808.675659
C192: Project mngt, overhead & other | G192: =SUM(M110:M111) -> 26065.56187
C194: Life Cycle Totals
C195: 50 YEAR EVALUATION PERIOD
C196: PV of maintenance & rehabilitation | G196: =LifeCycleCosts!NS71 -> 314235.5803
C197: PV of all costs | G197: =G196+G186 -> 600956.7609
C198: =Assumptions!$D$16&" YEAR EVALUATION PERIOD" -> YEAR EVALUATION PERIOD
C199: PV of maintenance & rehabilitation | G199: =LifeCycleCosts!NS70 -> 
C200: PV of all costs | G200: =G199+G186 -> 
C202: Retrofit Cost (n/a)
C203: Percentage of total cost
C204: Total
C218: Working Notes

Sheet DPONDDesign
B1: DETENTION POND - DRY | I1: DP calcs | L1: TOC | N1: INTRO | O1: Capital | P1: O&M | Q1: Summary
C3: Design & Costs Information
C31: Design Guidance (visit wiki.sustainabletechnologies.ca for detailed guidance; see the STEP Life Cycle Costing Tool User Guide for info on how to use the tool for cost estimation) • STEP used the MOECC's 2003 Stormwater Management Planning and Design Manual to develop the model design which the tool costs out • • • Tool Assumptions • User enters site information into the yellow cells in the User Input section. The tool includes defaults based on STEP’s LID Planning and Design Guidance, but users may change the values found in the pink cells. STEP default values are kept in a separate column as a reference. • • • • The tool calculates costs for new designs (based on model designs; see the LCCT User Guide) and includes costs of design (as part of overhead), contractor profit, material, delivery, labour, equipment (rental, operating and operator costs), hauling and disposal. Since the tool was built to estimate greenfield development costs, it does not include mobilization and demobilization. You can add mobilization costs in the "Additional Costs" cells. • Unit costs are based on 2018 pricing; the tool automatically adds inflation. See the Assumptions sheet for details. • The cost of retrofitting is in general 16% higher than the cost of new construction. These added construction costs can be found in the 'costs summary' tab and are easily added to the total construction cost for increased accuracy.
C61: USERS: Please enter information into YELLOW coloured cells
C63: Site and Design Information | I63: Capital Costs | L63: Sales tax / HST (%) | N63: =Assumptions!$D$17 -> 0.13
C65: USER INPUTS | I65: PRE-CONSTRUCTION | L65: Unit | M65: Cost | N65: Cost adjustment
C66: Drainage area1 | F66: 100 | G66: ha | I66: Test pits | K66: =CapitalCosts!CN102 -> 5 | L66: m3 | M66: =CapitalCosts!CQ102*($N$63+1)*(1+N66) -> 1063.974689 | N66: 0
C67: Impervious drainage area | F67: 0.3 | G67: % | I67: Stakeout of utilities | K67: =CapitalCosts!CN103 -> 1 | L67: visit | M67: =CapitalCosts!CQ103*($N$63+1)*(1+N67) -> 581.95 | N67: 0
C68: Forebay volume | F68: 0.2 | G68: % of pond volume | I68: Erosion and sediment controls: | M68: =CapitalCosts!CQ104*($N$63+1)*(1+N68) -> 2250.447184 | N68: 0
C69: Soil | F69: Common earth | G69: m | I69: 2" Submersible gas pump | K69: =CapitalCosts!CN105 -> 3 | L69: days | M69: =CapitalCosts!CQ105*($N$63+1)*(1+N69) -> 104.2216583 | N69: 0
C70: Pretreatment | F70: Forebay | G70: m | I70: Silt sack in catchbasin | K70: =CapitalCosts!CN106 -> 1 | L70: each | M70: =CapitalCosts!CQ106*($N$63+1)*(1+N70) -> 78.35985 | N70: 0
C71: Clay liner required | F71: no | I71: Silt fence around excavation (down slope sides) | K71: =CapitalCosts!CN107 -> 274.0697184 | L71: m | M71: =CapitalCosts!CQ107*($N$63+1)*(1+N71) -> 2067.865676 | N71: 0
C72: Project land value classification | F72: None | G72: Unitless | I72: Value of project land | K72: =CapitalCosts!CN101 -> 12011.4515 | L72: m2 | M72: =CapitalCosts!CQ101*($N$63+1)*(1+N72) -> 0 | N72: 0
C73: DESIGN DEFAULTS | E73: defaults | F73: (values in col G can be changed) | I73: Add additional costs if necessary | M73: 0
C74: Extended detention storage requirement | E74: 40 | F74: 40 | G74: m3/ha | I74: EXCAVATION
C75: Width of side buffer | E75: 10 | F75: 10 | G75: m | I75: =CapitalCosts!CM111 -> Clear and grub site | K75: =CapitalCosts!CN111 -> 12011.4515 | L75: =CapitalCosts!CO111 -> m2 | M75: =CapitalCosts!CQ111*($N$63+1)*(1+N75) -> 25142.92848 | N75: 0
C76: Width of end buffer | E76: 10 | F76: 10 | G76: m | I76: =CapitalCosts!CM112 -> Cut an fill | K76: =CapitalCosts!CN112 -> 3440.472 | L76: =CapitalCosts!CO112 -> m3 | M76: =CapitalCosts!CQ112*($N$63+1)*(1+N76) -> 62642.62398 | N76: 0
C77: Forebay depth | E77: 1.5 | F77: 1.5 | G77: m | I77: =CapitalCosts!CM113 -> Topsoil salvage - haul to stockpile | K77: =CapitalCosts!CN113 -> 3002.862875 | L77: =CapitalCosts!CO113 -> m3 | M77: =CapitalCosts!CQ113*($N$63+1)*(1+N77) -> 12731.83571 | N77: 0
C78: Freeboard above forebay weir | E78: 0.1 | F78: 0.1 | G78: m | I78: =CapitalCosts!CM114 -> Safety Fencing | K78: =CapitalCosts!CN114 -> 548.1394369 | L78: =CapitalCosts!CO114 -> m | M78: =CapitalCosts!CQ114*($N$63+1)*(1+N78) -> 11989.2212 | N78: 0
C79: Pond Length-to-Width Ratio | E79: 4 | F79: 4 | G79: :1 | I79: =CapitalCosts!CM115 -> Clean out drain pipe trenching, forebay or OGS | K79: =CapitalCosts!CN115 -> 141.1417144 | L79: =CapitalCosts!CO115 -> m | M79: =CapitalCosts!CQ115*($N$63+1)*(1+N79) -> 6276.225952 | N79: 0
C80: Forebay Length-to-Width Ratio | E80: 4 | F80: 4 | G80: :1 | I80: =CapitalCosts!CM116 -> Manhole to stormsewer trenching | K80: =CapitalCosts!CN116 -> 25 | L80: =CapitalCosts!CO116 -> m | M80: =CapitalCosts!CQ116*($N$63+1)*(1+N80) -> 1513.020359 | N80: 0
C81: Dry pond depth | E81: 2 | F81: 2 | G81: m | I81: Add additional costs if necessary | M81: 0
C82: Freeboard | E82: 0.3 | F82: 0.3 | G82: m | I82: MATERIALS & INSTALLATION
C83: Pond inlet pipe diameter (for forebay or no pretreatment) | E83: 450 | F83: 450 | G83: mm | I83: =CapitalCosts!CM134 -> Clay liner | K83: =CapitalCosts!CN134 -> 0 | L83: =CapitalCosts!CO134 -> m3 | M83: =CapitalCosts!CQ134*($N$63+1)*(1+N83) -> 0 | N83: 0
C84: Pond inlet pipe length (for forebay or no pretreatment) | E84: 15 | F84: 15 | G84: m | I84: =CapitalCosts!CM135 -> OGS | K84: =CapitalCosts!CN135 -> 0 | L84: =CapitalCosts!CO135 -> each | M84: =CapitalCosts!CQ135*($N$63+1)*(1+N84) -> 0 | N84: 0
C85: Outlet pipe diameter | E85: 450 | F85: 450 | G85: mm | I85: =CapitalCosts!CM136 -> Inlet pipe, 450 mm | K85: =CapitalCosts!CN136 -> 15 | L85: =CapitalCosts!CO136 -> m | M85: =CapitalCosts!CQ136*($N$63+1)*(1+N85) -> 1655.493098 | N85: 0
C86: Outlet orifice control diameter | E86: 100 | F86: 100 | G86: mm | I86: =CapitalCosts!CM137 -> Inlet pipe anchoring block, concrete cast-in-place | K86: =CapitalCosts!CN137 -> 1 | L86: =CapitalCosts!CO137 -> m | M86: =CapitalCosts!CQ137*($N$63+1)*(1+N86) -> 160.532664 | N86: 0
C87: Outlet pipe length to flow control structure (manhole) | E87: 5 | F87: 5 | G87: m | I87: =CapitalCosts!CM138 -> Inlet erosion splash pad (plantable pavers) | K87: =CapitalCosts!CN138 -> 2 | L87: =CapitalCosts!CO138 -> m2 | M87: =CapitalCosts!CQ138*($N$63+1)*(1+N87) -> 292.7592243 | N87: 0
C88: Maintenance pipe diameter | E88: 300 | F88: 300 | G88: mm | I88: =CapitalCosts!CM139 -> Manhole outlet structure | L88: total cost | M88: =CapitalCosts!CQ139*($N$63+1)*(1+N88) -> 7971.978251 | N88: 0
C89: Pipe from manhole to receiving water - diameter | E89: 450 | F89: 450 | G89: mm | I89: =CapitalCosts!CM144 -> Outlet pipe from manhole to sewer- 450 mm | K89: =CapitalCosts!CN144 -> 25 | L89: =CapitalCosts!CO144 -> m | M89: =CapitalCosts!CQ144*($N$63+1)*(1+N89) -> 2759.155163 | N89: 0
C90: Pipe from manhole to receiving water - length | E90: 25 | F90: 25 | G90: m | I90: =CapitalCosts!CM145 -> Conveyance Pipe - 300 mm | K90: =CapitalCosts!CN145 -> 5 | L90: =CapitalCosts!CO145 -> m | M90: =CapitalCosts!CQ145*($N$63+1)*(1+N90) -> 421.3982431 | N90: 0
C91: Side slope, forebay and dry pond (Width:depth) | E91: 4 | F91: 4 | G91: x:1 | I91: =CapitalCosts!CM146 -> Outlet Pipe clean out gate valve, 450 mm | K91: =CapitalCosts!CN146 -> 1 | L91: =CapitalCosts!CO146 -> each | M91: =CapitalCosts!CQ146*($N$63+1)*(1+N91) -> 24954.48156 | N91: 0
C92: Depth of clay liner for permanent pool | E92: 0.3 | F92: 0.3 | G92: m | I92: =CapitalCosts!CM147 -> Outlet pipe perforated riser. 300 mm | K92: =CapitalCosts!CN147 -> 1 | L92: =CapitalCosts!CO147 -> m | M92: =CapitalCosts!CQ147*($N$63+1)*(1+N92) -> 108.3595482 | N92: 0
C93: Tree and shrub planting | E93: 0.5 | F93: 0.5 | G93: % of area above pond | I93: =CapitalCosts!CM148 -> Pretreatment cleanout drain, 300 mm | K93: =CapitalCosts!CN148 -> 141.1417144 | L93: =CapitalCosts!CO148 -> m | M93: =CapitalCosts!CQ148*($N$63+1)*(1+N93) -> 6825.678946 | N93: 0
C94: TOOL RESULTS | I94: =CapitalCosts!CM149 -> Trash grate for cleanout drain | K94: =CapitalCosts!CN149 -> 1 | L94: =CapitalCosts!CO149 -> each | M94: =CapitalCosts!CQ149*($N$63+1)*(1+N94) -> 175.1899843 | N94: 0
C95: Total storage volume | F95: =CapitalCosts!CN44 -> 5734.12 | G95: m3 | I95: =CapitalCosts!CM150 -> Cleanout pipe Gate Valves, 300 mm | K95: =CapitalCosts!CN150 -> 1 | L95: =CapitalCosts!CO150 -> each | M95: =CapitalCosts!CQ150*($N$63+1)*(1+N95) -> 6758.505422 | N95: 0
C96: Forebay volume | F96: =CapitalCosts!CN57 -> 1146.824 | G96: m3 | I96: =CapitalCosts!CM151 -> Service road | K96: =CapitalCosts!CN151 -> 40 | L96: =CapitalCosts!CO151 -> m | M96: =CapitalCosts!CQ151*($N$63+1)*(1+N96) -> 14421.08027 | N96: 0
C97: Storage surface area | F97: =CapitalCosts!CN51 -> 4001.958688 | G97: m2 | I97: =CapitalCosts!CM152 -> Perimeter fence | K97: =CapitalCosts!CN152 -> 548.1394369 | L97: =CapitalCosts!CO152 -> m | M97: =CapitalCosts!CQ152*($N$63+1)*(1+N97) -> 62695.9274 | N97: 0
C98: Forebay surface area | F98: =CapitalCosts!CN58 -> 764.5493333 | G98: m2 | I98: =CapitalCosts!CM153 -> Perimeter fence gate | K98: =CapitalCosts!CN153 -> 1 | L98: =CapitalCosts!CO153 -> each | M98: =CapitalCosts!CQ153*($N$63+1)*(1+N98) -> 1559.655097 | N98: 0
C99: Detention time | F99: =CapitalCosts!CN53 -> 102.7778059 | G99: hr | I99: =CapitalCosts!CM154 -> Site Planting | L99: total cost | M99: =CapitalCosts!CQ154*($N$63+1)*(1+N99) -> 475597.9549 | N99: 0
C100: =CapitalCosts!CM71 -> Overall pond length (includes OGS area) | F100: =CapitalCosts!CN71 -> 199.2972512 | G100: =CapitalCosts!CO71 -> m | I100: =CapitalCosts!CM162 -> Signage | K100: =CapitalCosts!CN162 -> 3 | L100: =CapitalCosts!CO162 -> each | M100: =CapitalCosts!CQ162*($N$63+1)*(1+N100) -> 3853.265535 | N100: 0
C101: =CapitalCosts!CM72 -> Overall pond width | F101: =CapitalCosts!CN72 -> 34.7724672 | G101: =CapitalCosts!CO72 -> m | I101: =CapitalCosts!CM163 -> As built topographical survey | K101: =CapitalCosts!CN163 -> 12011.4515 | L101: =CapitalCosts!CO163 -> m2 | M101: =CapitalCosts!CQ163*($N$63+1)*(1+N101) -> 16247.59638 | N101: 0
C102: =CapitalCosts!CM73 -> Pond enclosure length | F102: =CapitalCosts!CN73 -> 219.2972512 | G102: =CapitalCosts!CO73 -> m | I102: Add additional costs if necessary | M102: 0
C103: =CapitalCosts!CM74 -> Pond enclosure width | F103: =CapitalCosts!CN74 -> 54.7724672 | G103: =CapitalCosts!CO74 -> m | I103: INSPECTIONS
C104: =CapitalCosts!CM75 -> Pond enclosure area | F104: =CapitalCosts!CN75 -> 1.20114515 | G104: =CapitalCosts!CO75 -> ha | I104: Construction Inspections | K104: =IF(WPONDDesign!$F$66="","",CapitalCosts!AM196) -> 0 | L104: visit | M104: =CapitalCosts!CN197*($N$63+1)*(1+N104) -> 1205.783773 | N104: 0
C105: Planted area | F105: =CapitalCosts!CN157 -> 11246.90217 | G105: m2 | I105: Project Acceptance Inspections4 | K105: =IF(WPONDDesign!$F$66="","",CapitalCosts!AN196) -> 0 | L105: visit | M105: =CapitalCosts!CO197*($N$63+1)*(1+N105) -> 602.8918864 | N105: 0
I106: Add additional costs if necessary | M106: 0
I107: TOTALS
I108: Sub-total | M108: =SUM(M83:M102,M75:M81,M66:M73,M104:M106) -> 754710.3621
I109: Overhead | K109: =Assumptions!$D$19 -> 0.1 | M109: =M108*K109 -> 75471.03621
I110: Other | K110: 0 | M110: =K110*M108 -> 0
C111: =IF(AND(F70="forebay",OR($F$84=0,$F$83=0,$F$80=0,$F$78=0,$F$77=0,F$68=0)),"Enter complete design info for the forebay",IF(AND(F70<>"forebay",SUM(F68,F77,F78,F80)>0),"No pretreatment or OGS assumed. Delete design info for forebay",IF(AND($F$70="none",OR($F$84=0,$F$83=0)),"Enter inlet pipe info","Pretreatment specifications are OK"))) -> Pretreatment specifications are OK | I111: GRAND TOTAL | M111: =SUM(M108:M110) -> 830181.3983
C112: =IF(AND(F71<>"forebay",F71="yes"),"Clay liner only applies when a forebay is used",IF(AND(F71<>"forebay",F71="yes"),"Clay liner OK","No clay liner")) -> No clay liner
C113: =IF(F66<5,"Drainage area should not be less than 5 ha","Drainage area is OK") -> Drainage area is OK
C115: Notes: 1 Should not be less tahn 5 ha, 10 ha is preferrable. 2 Enhanced - 80% long-term S.S. removal; normal - 70% long-term S.S. removal; basic - 60% long-term S.S. removal.
C125: User Notes:
C136: Maintenance and Life Cycle Costs
C137: USERS: Choose your maintenance level. Defaults will populate the table below. Light green coloured cells can be modified.
K139: Notes: ▪ Maintenance costs are scaled based on the size of the enhanced grass swale ▪ If rehabilitation is performed, Year 1 and 2 watering and restoration of lost vegetation maintenance will be costed again ▪ Rehabilitation occurs on schedule, even during the last year of the evaluation period ▪ The discount rate accounts for the time value of money and the risk of anticipated future cash flows ▪ All Life Cycle Costing Results are Net Present Value, which takes into account average annual interest and discount rates over the evaluation time periods ▪ Life cycle cost of Rehabilitation takes into account differences in maintenance when rehabilitation performed ▪ Average Annual Maintenance cost does not include rehabilitation costs and therefore represents an average of routine maintenance tasks as outlined in the Maintenance table above
E140: Select maitenance level --> | G140: Low
E141: Sales tax / HST (%) | G141: =Assumptions!$D$17 -> 0.13
F143: Life Cycle Occurrence (every X years)
C144: MAINTENANCE OPTIONS | F144: Occurrence | G144: Default | H144: Assumed | I144: Unit cost
C145: =OM_Costs!BW54 -> Routine Inspections | F145: Periodic | G145: 1 | H145: 1 | I145: =IF(DPONDDesign!$F$66="",0,IF(F145="Ignore",0,IF(DPONDDesign!$G$140="Low",OM_Costs!BX54,OM_Costs!BY54)*(DPONDDesign!$G$141+1))) -> 1635.042796
C146: =OM_Costs!BW55 -> Monitor and remove invasive plants | F146: Periodic | G146: 1 | H146: 1 | I146: =IF(DPONDDesign!$F$66="",0,IF(F146="Ignore",0,IF(DPONDDesign!$G$140="Low",OM_Costs!BX55,OM_Costs!BY55)*(DPONDDesign!$G$141+1))) -> 4099.832285
C147: =OM_Costs!BW56 -> Watering - Year 1 only | F147: Periodic | G147: 1 | H147: 1 | I147: =IF(DPONDDesign!$F$66="",0,IF(F147="Ignore",0,IF(DPONDDesign!$G$140="Low",OM_Costs!BX56,OM_Costs!BY56)*(DPONDDesign!$G$141+1))) -> 5790.975111
C148: =OM_Costs!BW57 -> Watering - Year 2 only | F148: Once | G148: 1 | H148: 1 | I148: =IF(DPONDDesign!$F$66="",0,IF(F148="Ignore",0,IF(DPONDDesign!$G$140="Low",OM_Costs!BX57,OM_Costs!BY57)*(DPONDDesign!$G$141+1))) -> 0
C149: =OM_Costs!BW58 -> Annual watering - Starts in Year 3 | F149: Periodic | G149: 1 | H149: 1 | I149: =IF(DPONDDesign!$F$66="",0,IF(F149="Ignore",0,IF(DPONDDesign!$G$140="Low",OM_Costs!BX58,OM_Costs!BY58)*(DPONDDesign!$G$141+1))) -> 0
C150: =OM_Costs!BW59 -> Drought watering | F150: Periodic | G150: 1 | H150: 1 | I150: =IF(DPONDDesign!$F$66="",0,IF(F150="Ignore",0,IF(DPONDDesign!$G$140="Low",OM_Costs!BX59,OM_Costs!BY59)*(DPONDDesign!$G$141+1))) -> 0
C151: =OM_Costs!BW60 -> Remove litter and debris | F151: Periodic | G151: 1 | H151: 1 | I151: =IF(DPONDDesign!$F$66="",0,IF(F151="Ignore",0,IF(DPONDDesign!$G$140="Low",OM_Costs!BX60,OM_Costs!BY60)*(DPONDDesign!$G$141+1))) -> 5421.819022
C152: =OM_Costs!BW61 -> Maintain trees | F152: Periodic | G152: 10 | H152: 10 | I152: =IF(DPONDDesign!$F$66="",0,IF(F152="Ignore",0,IF(DPONDDesign!$G$140="Low",OM_Costs!BX61,OM_Costs!BY61)*(DPONDDesign!$G$141+1))) -> 11141.58429 | K152: User Notes:
C153: =OM_Costs!BW62 -> Mow access road shoulders | F153: Periodic | G153: 1 | H153: 1 | I153: =IF(DPONDDesign!$F$66="",0,IF(F153="Ignore",0,IF(DPONDDesign!$G$140="Low",OM_Costs!BX62,OM_Costs!BY62)*(DPONDDesign!$G$141+1))) -> 95.22414093
C154: =OM_Costs!BW63 -> Sediment removal from forebay - Starts Year 2 | F154: Periodic | G154: High = 10, Low = 15 | H154: 15 | I154: =IF(DPONDDesign!$F$66="",0,IF(F154="Ignore",0,IF(DPONDDesign!$G$140="Low",OM_Costs!BX63,OM_Costs!BY63)*(DPONDDesign!$G$141+1))) -> 388773.336
C155: =OM_Costs!BW64 -> Sediment removal from OGS - Starts Year 2 | F155: Periodic | G155: 2 | H155: 2 | I155: =IF(DPONDDesign!$F$66="",0,IF(F155="Ignore",0,IF(DPONDDesign!$G$140="Low",OM_Costs!BX64,OM_Costs!BY64)*(DPONDDesign!$G$141+1))) -> 0
C156: =OM_Costs!BW65 -> Clear cleanout drains | F156: Periodic | G156: 4 | H156: 4 | I156: =IF(DPONDDesign!$F$66="",0,IF(F156="Ignore",0,IF(DPONDDesign!$G$140="Low",OM_Costs!BX65,OM_Costs!BY65)*(DPONDDesign!$G$141+1))) -> 394.5621
C157: =OM_Costs!BW66 -> Add additional options | F157: Periodic | G157: n/a | H157: n/a | I157: =IF(DPONDDesign!$F$66="",0,IF(F157="Ignore",0,IF(DPONDDesign!$G$140="Low",OM_Costs!BX66,OM_Costs!BY66)*(DPONDDesign!$G$141+1))) -> 0
C158: =OM_Costs!BW67 -> Add additional options | F158: Periodic | G158: n/a | H158: n/a | I158: =IF(DPONDDesign!$F$66="",0,IF(F158="Ignore",0,IF(DPONDDesign!$G$140="Low",OM_Costs!BX67,OM_Costs!BY67)*(DPONDDesign!$G$141+1))) -> 0
C159: =OM_Costs!BW68 -> Add additional options | F159: Periodic | G159: n/a | H159: n/a | I159: =IF(DPONDDesign!$F$66="",0,IF(F159="Ignore",0,IF(DPONDDesign!$G$140="Low",OM_Costs!BX68,OM_Costs!BY68)*(DPONDDesign!$G$141+1))) -> 0
C160: =OM_Costs!BW69 -> Add additional options | F160: Periodic | G160: n/a | H160: n/a | I160: =IF(DPONDDesign!$F$66="",0,IF(F160="Ignore",0,IF(DPONDDesign!$G$140="Low",OM_Costs!BX69,OM_Costs!BY69)*(DPONDDesign!$G$141+1))) -> 0
C161: =OM_Costs!BW70 -> Add additional options | F161: Periodic | G161: n/a | H161: n/a | I161: =IF(DPONDDesign!$F$66="",0,IF(F161="Ignore",0,IF(DPONDDesign!$G$140="Low",OM_Costs!BX70,OM_Costs!BY70)*(DPONDDesign!$G$141+1))) -> 0
C162: =OM_Costs!BW71 -> Add additional options | F162: Periodic | G162: n/a | H162: n/a | I162: =IF(DPONDDesign!$F$66="",0,IF(F162="Ignore",0,IF(DPONDDesign!$G$140="Low",OM_Costs!BX71,OM_Costs!BY71)*(DPONDDesign!$G$141+1))) -> 0
C163: =OM_Costs!BW72 -> Add additional options | F163: Periodic | G163: n/a | H163: n/a | I163: =IF(DPONDDesign!$F$66="",0,IF(F163="Ignore",0,IF(DPONDDesign!$G$140="Low",OM_Costs!BX72,OM_Costs!BY72)*(DPONDDesign!$G$141+1))) -> 0
C164: =OM_Costs!BW73 -> Rehabilitation | F164: Periodic | G164: 25 | H164: 25 | I164: =IF(DPONDDesign!$F$66="",0,IF(F164="Ignore",0,IF(DPONDDesign!$G$140="Low",OM_Costs!BX73,OM_Costs!BY73)*(DPONDDesign!$G$141+1))) -> 0
C169: LIFE CYCLE COSTING INPUTS
C170: Inflation Rate (%) | F170: =Assumptions!$D$14 -> 0.03
C171: Discount Rate (%) | F171: =Assumptions!$D$15 -> 0.05
C172: Construction Costs | F172: =M111 -> 830181.3983
C173: Life Cycle Costing Results (present value, 50 years)
C174: Life Cycle Cost of Rehabilitation | F174: =LifeCycleCosts!PN72 -> 0 | G174: <- Difference of total maintenance costs with inflation and discount for rehab vs no rehab
C175: Average Annual Maintenance Cost
C176: 50 Year evaluation period | F176: =LifeCycleCosts!PO69 -> 35902.99124 | G176: <- Includes inflation, does not include discount or rehabilitation
C177: =Assumptions!$D$16&" Year evaluation period" -> Year evaluation period | F177: =LifeCycleCosts!PO67 ->  | G177: <- Includes inflation, does not include discount or rehabilitation
C183: Cost Summary
C186: Total construction costs | G186: =M111 -> 830181.3983
C187: Construction cost break down
C188: Pre-construction | G188: =SUM(M66:M73) -> 6146.819057
C189: Excavation | G189: =SUM(M75:M81) -> 120295.8557
C190: Materials & Installation | G190: =SUM(M83:M102) -> 626459.0117
C191: Inspections | G191: =SUM(M104:M106) -> 1808.675659
C192: Project mngt, overhead & other | G192: =SUM(M109:M110) -> 75471.03621
C194: Life Cycle Totals
C195: 50 YEAR EVALUATION PERIOD
C196: PV of maintenance & rehabilitation | G196: =LifeCycleCosts!PN71 -> 548984.5785
C197: PV of all costs | G197: =G196+G186 -> 1379165.977
C198: =Assumptions!$D$16&" YEAR EVALUATION PERIOD" -> YEAR EVALUATION PERIOD
C199: PV of maintenance & rehabilitation | G199: =LifeCycleCosts!PN70 -> 
C200: PV of all costs | G200: =G199+G186 -> 
C202: Retrofit Cost (n/a)
C203: Percentage of total cost
C204: Total
C217: Working Notes

Sheet CapitalCosts
A1: TOC | B1: CAPITAL COSTS
A2: BR
A3: EGS | C3: BIORETENTION | H3: BR input | M3: ENHANCED GRASS SWALE | S3: EGS input | X3: VEGETATED FILTER SWALE | AA3: VFS inputs | AF3: GREEN ROOF | AI3: GR inputs | AO3: INFILTRATION CHAMBER | AR3: IC sizing | AS3: IC input | AW3: INFILTRATION TRENCH | AZ3: IT inputs | BE3: PERMEABLE PAVEMENT | BH3: PP inputs | BM3: RAINWATER HARVESTING | BP3: RWH input | BR3: RWH tank | CA3: WET POND | CE3: WP inputs | CF3: Pond sizing | CM3: DRY POND | CP3: DP inputs | CR3: Pond sizing
A4: VFS
A5: GR | C5: Bioretention inputs and assumptions | M5: Enhanced grassed swale inputs and assumptions | X5: Vegetated filter strip inputs and assumptions | AF5: Green roof inputs and assumptions | AO5: Infiltration chamber inputs and assumptions | AW5: Infiltration trench inputs and assumptions | BE5: Permeable pavement inputs and assumptions | BM5: Rainwater harvesting inputs and assumptions | BR5: Concrete tank sizes found online for information purposes only | CA5: Pond inputs and assumptions | CM5: Pond inputs and assumptions
A6: IC | C6: Drainage area | D6: =BRDesign!G62 -> 2000 | E6: m2 | M6: Drainage area | N6: =EGSDesign!F69 -> 2000 | O6: m2 | X6: Drainage area | Y6: =VFSDesign!F64 -> 10000 | Z6: m2 | AF6: Building Height | AG6: =GRDesign!F65 -> 1 - 5 | AO6: =ICDesign!C65 -> Roof drainage area | AP6: =ICDesign!F65 -> 1000 | AQ6: =ICDesign!G65 -> m2 | AW6: =ITDesign!C65 -> Roof drainage area | AX6: =ITDesign!F65 -> 0 | AY6: =ITDesign!G65 -> m2 | BE6: Drainage area | BF6: =PICPDesign!F65 -> 1000 | BG6: m2 | BM6: Roof drainage area | BN6: =RWHDesign!F64 -> 2000 | BO6: m2 | BR6: L | BS6: Lengh | BT6: Width | BU6: Height | BV6: total size, L | BW6: % storage | CA6: =WPONDDesign!C66 -> Drainage area1 | CB6: =WPONDDesign!F66 -> 7.5 | CC6: =WPONDDesign!G66 -> ha | CD6: Ap | CM6: =DPONDDesign!C66 -> Drainage area1 | CN6: =DPONDDesign!F66 -> 100 | CO6: =DPONDDesign!G66 -> ha
A7: IT | C7: Native soil infiltration rate | D7: =BRDesign!G63 -> 10 | E7: mm/hr | M7: Swale shape | N7: =EGSDesign!F72 -> Linear | X7: Surface area | Y7: =VFSDesign!F76 -> 1000 | Z7: m2 | AF7: Roof Area | AG7: =GRDesign!F77 -> 1936 | AH7: m2 | AO7: =ICDesign!C66 -> Road drainage area | AP7: =ICDesign!F66 -> 1000 | AQ7: =ICDesign!G66 -> m2 | AW7: =ITDesign!C66 -> Road drainage area | AX7: =ITDesign!F66 -> 1000 | AY7: =ITDesign!G66 -> m2 | BE7: PICP area | BF7: =PICPDesign!F82 -> 0 | BG7: m2 | BM7: Tank type | BN7: =RWHDesign!F65 -> Below-ground Concrete | BO7: unitless | BR7: 5500 | BS7: 2.6 | BT7: 2.6 | BU7: 1.4 | BV7: =BS7*BT7*BU7*1000 -> 9464 | BW7: =BR7/BV7 -> 0.5811496196 | CA7: =WPONDDesign!C67 -> Impervious drainage area | CB7: =WPONDDesign!F67 -> 0.3 | CC7: =WPONDDesign!G67 -> % | CM7: =DPONDDesign!C67 -> Impervious drainage area | CN7: =DPONDDesign!F67 -> 0.3 | CO7: =DPONDDesign!G67 -> %
A8: PP | C8: Safety Factor | D8: =BRDesign!G73 -> 2.5 | M8: Impervious area:swale area | N8: =EGSDesign!F78 -> 10 | O8: :1 | X8: Width | Y8: =VFSDesign!F67 -> 20 | Z8: m | AF8: Roof Length | AG8: =GRDesign!F66 -> 44 | AH8: m | AO8: Drainage area | AP8: =ICDesign!F84 -> 2000 | AQ8: m2 | AW8: Drainage area | AX8: =ITDesign!F78 -> 1000 | AY8: m2 | BE8: Impermeable Asphalt area | BF8: =PICPDesign!F66 -> 1000 | BG8: m2 | BM8: Total daily water usage (indoor & outdoor) | BN8: =RWHDesign!F67 -> 2000 | BO8: L/day | BR8: 6800 | BS8: 2.6 | BT8: 2.6 | BU8: 1.7 | BV8: =BS8*BT8*BU8*1000 -> 11492 | BW8: =BR8/BV8 -> 0.5917159763 | CA8: =WPONDDesign!C68 -> WQ Protection Level2 | CB8: =WPONDDesign!F68 -> normal | CC8: =WPONDDesign!G68 -> 0 | CM8: =DPONDDesign!C68 -> Forebay volume | CN8: =DPONDDesign!F68 -> 0.2 | CO8: =DPONDDesign!G68 -> % of pond volume
A9: RWH | C9: Design infiltration rate | D9: =D7/D8 -> 4 | E9: mm/hr | M9: Surface area | N9: =EGSDesign!F87 -> 200 | O9: m2 | X9: Length | Y9: =VFSDesign!F74 -> 50 | Z9: m | AF9: Roof Width | AG9: =GRDesign!F67 -> 44 | AH9: m | AO9: Measured infiltration rate of the subgrade | AP9: =ICDesign!F69 -> 40 | AQ9: mm/hr | AW9: Rainfall capture target | AX9: =ITDesign!F70 -> 25 | AY9: mm | BE9: Native soil infiltration rate | BF9: =PICPDesign!F67 -> 40 | BG9: mm/hr | BM9: Tank Length | BN9: =RWHDesign!F81 -> 3.2 | BO9: m | BR9: 9000 | BS9: 2.6 | BT9: 2.6 | BU9: 2.2 | BV9: 14872 | BW9: 0.6051640667 | CA9: =WPONDDesign!C69 -> Wetland area in pond | CB9: =WPONDDesign!F69 -> 0.25 | CC9: =WPONDDesign!G69 -> % of permanent pond area | CD9: pw | CM9: =DPONDDesign!C69 -> Soil | CN9: =DPONDDesign!F69 -> Common earth | CO9: =DPONDDesign!G69 -> m
A10: WP | C10: Drainage Period | D10: =BRDesign!G65 -> 36 | E10: hours | M10: Bottom width | N10: =EGSDesign!F80 -> 0.75 | O10: m2 | X10: Depth of swale | Y10: =VFSDesign!F71 -> 0.3 | Z10: m | AF10: Membrane | AG10: =GRDesign!F69 -> EPDM | AH10: unitless | AO10: Safety Factor | AP10: =ICDesign!F77 -> 2.5 | AQ10: unitless | AW10: Measured infiltration rate of the subgrade | AX10: =ITDesign!F69 -> 15 | AY10: mm/hr | BE10: Safety Factor | BF10: =PICPDesign!F75 -> 2.5 | BM10: Tank Width | BN10: =RWHDesign!F82 -> 2.2 | BO10: m | BR10: 9500 | BS10: 3 | BT10: 2.2 | BU10: 2.1 | BV10: 13860 | BW10: 0.6854256854 | CA10: =WPONDDesign!C70 -> Soil | CB10: =WPONDDesign!F70 -> Common earth | CC10: =WPONDDesign!G70 -> 0 | CM10: =DPONDDesign!C70 -> Pretreatment | CN10: =DPONDDesign!F70 -> Forebay | CO10: =DPONDDesign!G70 -> m
A11: DP | C11: =BRDesign!C66 -> BR surface area length to width ratio | D11: =BRDesign!G66 -> 1 | E11: m | M11: Side slopes | N11: =EGSDesign!F82 -> 2.5 | O11: :1 | X11: Top Soil depth | Y11: =Assumptions!$D$5 -> 0.25 | Z11: m | AF11: Area of roof penetrations | AG11: =GRDesign!F74 -> 0.5 | AH11: m2 | AO11: Void Ratio | AP11: =ICDesign!F76 -> 40 | AQ11: % | AW11: Project land value | AX11: =VLOOKUP(ITDesign!F71,Assumptions!$B$42:$D$47,3) -> 0 | AY11: m | BE11: Treatment Volume: Pearson 2 yr event | BF11: =PICPDesign!F80 -> 56 | BG11: mm | BM11: Tank Height | BN11: =RWHDesign!F83 -> 3 | BO11: m | BR11: 10000 | BS11: 3.7 | BT11: 2.5 | BU11: 1.6 | BV11: 14800 | BW11: 0.6756756757 | CA11: =WPONDDesign!C71 -> Forebay berm structure | CB11: =WPONDDesign!F71 -> Riprap | CC11: =WPONDDesign!G71 -> m | CM11: =DPONDDesign!C71 -> Clay liner required | CN11: =DPONDDesign!F71 -> no
C12: Project land value | D12: =VLOOKUP(BRDesign!G67,Assumptions!$B$42:$D$47,3) -> 0 | E12: m | M12: Project land value | N12: =VLOOKUP(EGSDesign!F76,Assumptions!$B$42:$D$47,3) -> 0 | O12: m | X12: Project land value | Y12: =VLOOKUP(VFSDesign!F68,Assumptions!$B$42:$D$47,3) -> 0 | Z12: m | AF12: Roof drains | AG12: =GRDesign!F78 -> 5 | AH12: # | AO12: Project land value | AP12: =VLOOKUP(ICDesign!F74,Assumptions!$B$42:$D$47,3) -> 0 | AQ12: m | AW12: Safety Factor | AX12: =ITDesign!F73 -> 2.5 | AY12: unitless | BE12: Time to fill stone bed | BF12: =PICPDesign!F72 -> 2 | BG12: hr | BM12: Project land value | BN12: =VLOOKUP(RWHDesign!F72,Assumptions!$B$42:$D$47,3) -> 0 | BR12: 11000 | BS12: 3 | BT12: 2.2 | BU12: 2.4 | BV12: =BS12*BT12*BU12*1000 -> 15840 | BW12: =BR12/BV12 -> 0.6944444444 | CA12: Project land value | CB12: =VLOOKUP(WPONDDesign!F73,Assumptions!$B$42:$D$47,3) -> 0 | CM12: Project land value | CN12: =VLOOKUP(DPONDDesign!F72,Assumptions!$B$42:$D$47,3) -> 0
C13: Ponding depth | D13: =BRDesign!G72 -> 0.2 | E13: m | M13: Length | N13: =EGSDesign!F89 -> 42.10526316 | O13: m | X13: Compost depth | Y13: =Assumptions!$D$22 -> 0.05 | Z13: m | AF13: Area of roof drains | AG13: =AG12*(3.14159*(0.1016/2)^2) -> 0.04053656409 | AH13: m2 | AO13: Drainage Period | AP13: =ICDesign!F67 -> 48 | AQ13: hours | AW13: Void Ratio | AX13: =ITDesign!F74 -> 40 | AY13: % | BE13: Void Ratio | BF13: =PICPDesign!F76 -> 40 | BR13: 13000 | BS13: 3 | BT13: 2.2 | BU13: 2.8 | BV13: =BS13*BT13*BU13*1000 -> 18480 | BW13: =BR13/BV13 -> 0.7034632035 | CA13: =WPONDDesign!C99 -> Tree and shrub planting | CB13: =WPONDDesign!F99 -> 0.5 | CC13: =WPONDDesign!G99 -> % of area above permanent pool | CM13: =DPONDDesign!C93 -> Tree and shrub planting | CN13: =DPONDDesign!F93 -> 0.5 | CO13: =DPONDDesign!G93 -> % of area above pond
C14: Void Ratio | D14: 40 | E14: % | M14: Top Soil depth | N14: =Assumptions!$D$5 -> 0.25 | O14: m | X14: TOTAL DEPTH | Y14: =Y10+Y11+Y13 -> 0.6 | Z14: m | AF14: Vegetation-free zone width | AG14: =GRDesign!F75 -> 0.5 | AH14: m | AO14: Rainfall capture target | AP14: =ICDesign!F73 -> 40 | AQ14: mm | AW14: Drainage Period | AX14: =ITDesign!F67 -> 72 | AY14: hours | BE14: Drainage Period | BF14: =PICPDesign!F69 -> 60 | BG14: hours | BR14: 18000 | BS14: 6.2 | BT14: 2.6 | BU14: 1.6 | BV14: =BS14*BT14*BU14*1000 -> 25792 | BW14: =BR14/BV14 -> 0.6978908189 | CM14: =DPONDDesign!C74 -> Extended detention storage requirement | CN14: =DPONDDesign!F74 -> 40 | CO14: =DPONDDesign!G74 -> m3/ha
C15: Water Quality Volume Requirement (WQV) 1 | D15: =BRDesign!G70*(D6/10000) -> 9 | E15: m3 | M15: Compost depth | N15: =Assumptions!$D$22 -> 0.05 | O15: m | AF15: Vegetation-free perimeter | AG15: =2*(AG8*AG14)+2*(((AG9-(AG14*2))*AG14)) -> 87 | AH15: m2 | AO15: Length of excavation | AP15: =ICsizing!G12 -> 13.6236 | AQ15: m | AW15: Trench width | AX15: =ITDesign!F75 -> 1 | AY15: m | BE15: Base depth | BF15: =PICPDesign!F74 -> 100 | BG15: mm | BR15: 24000 | BS15: 6.2 | BT15: 2.6 | BU15: 2 | BV15: =BS15*BT15*BU15*1000 -> 32240 | BW15: 0.7444168734 | CA15: =WPONDDesign!C75 -> Extended detention storage requirement | CB15: =WPONDDesign!F75 -> 40 | CC15: =WPONDDesign!G75 -> m3/ha | CD15: vd | CM15: =DPONDDesign!C75 -> Width of side buffer | CN15: =DPONDDesign!F75 -> 10 | CO15: =DPONDDesign!G75 -> m
C16: Filter Media Depth | D16: =BRDesign!G71 -> 0.75 | E16: m | M16: Swale depth | N16: =EGSDesign!F81+N14+N15 -> 0.8 | O16: m | AF16: Vegetation-free drain length | AG16: =AG14+AG14+0.1016 -> 1.1016 | AH16: m | AO16: Width of excavation | AP16: =ICsizing!G13 -> 9.1416 | AQ16: m | AW16: Depth to avoid frost | AX16: =Assumptions!D4 -> 1.1 | AY16: m | BE16: Bedding depth | BF16: =PICPDesign!F73 -> 50 | BG16: mm | BR16: 38000 | BS16: 6.2 | BT16: 2.6 | BU16: 3 | BV16: =BS16*BT16*BU16*1000 -> 48360 | BW16: 0.7857733664 | CA16: =WPONDDesign!C76 -> Width of side buffer | CB16: =WPONDDesign!F76 -> 10 | CC16: =WPONDDesign!G76 -> m | CM16: =DPONDDesign!C76 -> Width of end buffer | CN16: =DPONDDesign!F76 -> 10 | CO16: =DPONDDesign!G76 -> m
C17: Mulch Depth | D17: =BRDesign!G75 -> 0.075 | E17: m | M17: Pipe to catchbasin | N17: =EGSDesign!F79 -> 5 | O17: m | AF17: Vegetation-free around drains | AG17: =AG12*(AG16*AG16) -> 6.0676128 | AH17: m2 | AO17: Area of excavation | AP17: =ICDesign!F91 -> 124.5415018 | AQ17: m2 | AW17: Asphalt base depth | AX17: =Assumptions!$D$6 -> 0.3 | AY17: m | BE17: Underdrain Diameter | BF17: =PICPDesign!F78 -> 150 | BG17: mm | BR17: 13700 | BS17: 4.3 | BT17: 2.3 | BU17: 1.7 | BV17: =BS17*BT17*BU17*1000 -> 16813 | BW17: 0.8148456551 | CA17: =WPONDDesign!C77 -> Width of end buffer | CB17: =WPONDDesign!F77 -> 10 | CC17: =WPONDDesign!G77 -> m | CM17: =DPONDDesign!C77 -> Forebay depth | CN17: =DPONDDesign!F77 -> 1.5 | CO17: =DPONDDesign!G77 -> m
C18: Pea Gravel | D18: =BRDesign!G77 -> 0.1 | E18: m | M18: Catchbasin volume | N18: =IF(EGSDesign!K89=1,(0.6*0.6*0.762),0) -> 0 | O18: m3 | AF18: Vegetation-free around penetrations | AG18: =AG12*(2*(1.5*AG14)+2*((2+1)*AG14)) -> 22.5 | AH18: m2 | AO18: Topsoil depth | AP18: =Assumptions!$D$5 -> 0.25 | AQ18: m | AW18: Asphalt | AX18: =Assumptions!$D$7 -> 0.05 | AY18: m | BE18: Topsoil depth | BF18: =Assumptions!$D$5 -> 0.25 | BG18: m | BR18: 22700 | BS18: 5.5 | BT18: 2.5 | BU18: 2.1 | BV18: 28875 | BW18: 0.7861471861 | CA18: =WPONDDesign!C78 -> Forebay volume | CB18: =WPONDDesign!F78 -> 0.2 | CC18: =WPONDDesign!G78 -> % | CD18: pf | CM18: =DPONDDesign!C78 -> Freeboard above forebay weir | CN18: =DPONDDesign!F78 -> 0.1 | CO18: =DPONDDesign!G78 -> m
C19: Underdrain Diameter | D19: =BRDesign!G81 -> 0.2 | E19: m | M19: Number of check dams | N19: =EGSDesign!F91 -> 5 | O19: check dam(s) | AF19: Area of Vegetation-free zones | AG19: =SUM(AG15,AG17:AG18) -> 115.5676128 | AH19: m2 | AO19: Fill depth below asphalt | AP19: =ICDesign!F78 -> 0.39 | AQ19: m | AW19: Topsoil depth | AX19: =Assumptions!D5 -> 0.25 | AY19: m | BE19: Height of pavers | BF19: =PICPDesign!F77 -> 80 | BG19: mm | BR19: 27000 | BS19: 4.9 | BT19: 2.3 | BU19: 2.7 | BV19: 30429 | BW19: 0.8873114463 | CA19: =WPONDDesign!C79 -> Forebay depth | CB19: =WPONDDesign!F79 -> 1.5 | CC19: =WPONDDesign!G79 -> m | CD19: df | CM19: =DPONDDesign!C79 -> Pond Length-to-Width Ratio | CN19: =DPONDDesign!F79 -> 4 | CO19: =DPONDDesign!G79 -> :1
C20: 1 MOE SW Management Planning & Design Manual, 2003 (Table 3.2, Enhanced 80% longterm S.S. removal for 100% impervious level) | M20: Check dam height | N20: =EGSDesign!F86 -> 0.3 | O20: m | AF20: Volume of Vegetation-free zone | AG20: =AG19*0.0762 -> 8.806252095 | AH20: m3 | AO20: Asphalt base depth | AP20: =Assumptions!$D$6 -> 0.3 | AQ20: m | BE20: Total length of permeable area | BF20: =PICPDesign!F70 -> 30 | BG20: m | BR20: 36000 | BS20: 6.2 | BT20: 2.3 | BU20: 3 | BV20: 42780 | BW20: 0.8415147265 | CA20: =WPONDDesign!C80 -> Clearance above forebay berm to permanent pool | CB20: =WPONDDesign!F80 -> 0.2 | CC20: =WPONDDesign!G80 -> m | CD20: dfb | CM20: =DPONDDesign!C80 -> Forebay Length-to-Width Ratio | CN20: =DPONDDesign!F80 -> 4 | CO20: =DPONDDesign!G80 -> :1
M21: Driveway | AF21: Planted Area | AG21: =AG7-AG19-AG11-AG13 -> 1819.891851 | AH21: m2 | AO21: Asphalt depth | AP21: =Assumptions!$D$7 -> 0.05 | AQ21: m | BR21: 40000 | BS21: 5.8 | BT21: 3 | BU21: 3 | BV21: 52200 | BW21: 0.7662835249 | CA21: =WPONDDesign!C81 -> Forebay berm top width | CB21: =WPONDDesign!F81 -> 0.3 | CC21: =WPONDDesign!G81 -> m | CD21: wfb | CM21: =DPONDDesign!C81 -> Dry pond depth | CN21: =DPONDDesign!F81 -> 2 | CO21: =DPONDDesign!G81 -> m
M22: Is there a driveway? | N22: =EGSDesign!F71 -> Yes | AF22: Edging total length | AG22: =2*(AG8-(AG14*2))+2*(AG9-(AG14*2))+AG12*((2*3)+(2*2.5))+AG12*(4*AG16) -> 249.032 | AH22: m | AO22: Bedding depth below&above chambers, 50 mm stone | AP22: =ICDesign!F79 -> 0.1524 | AQ22: m | BR22: 50000 | BS22: 7.6 | BT22: 3 | BU22: 3 | BV22: 68400 | BW22: 0.730994152 | CA22: =WPONDDesign!C82 -> Pond Length-to-Width Ratio | CB22: =WPONDDesign!F82 -> 4 | CC22: =WPONDDesign!G82 -> :1 | CD22: rp | CM22: =DPONDDesign!C82 -> Freeboard | CN22: =DPONDDesign!F82 -> 0.3 | CO22: =DPONDDesign!G82 -> m
M23: Driveway width | N23: =EGSDesign!F84 -> 8.4 | O23: m | AF23: Edging Straight Length | AG23: =AG22-AG24 -> 234.4016 | AH23: m | CA23: =WPONDDesign!C83 -> Forebay Length-to-Width Ratio | CB23: =WPONDDesign!F83 -> 4 | CC23: =WPONDDesign!G83 -> :1 | CD23: rf | CM23: =DPONDDesign!C83 -> Pond inlet pipe diameter (for forebay or no pretreatment) | CN23: =DPONDDesign!F83 -> 450 | CO23: =DPONDDesign!G83 -> mm
M24: Extra depth for driveway | N24: =IF(EGSDesign!F69="","",IF(EGSDesign!F71="NO",0,IF(EGSDesign!F71="Yes",0.1,0))) -> 0.1 | O24: m | AF24: Edging corners | AG24: =GRDesign!K74*0.3048*2 -> 14.6304 | AH24: unit | CA24: =WPONDDesign!C84 -> Wet pond permanent pool depth | CB24: =WPONDDesign!F84 -> 1.5 | CC24: =WPONDDesign!G84 -> m | CD24: dp | CM24: =DPONDDesign!C84 -> Pond inlet pipe length (for forebay or no pretreatment) | CN24: =DPONDDesign!F84 -> 15 | CO24: =DPONDDesign!G84 -> m
M25: Driveway culvert diameter | N25: =EGSDesign!F83 -> 0.3 | O25: m | AF25: Flashing around parapet | AG25: =2*(AG8-(AG14*2))+2*(AG9-(AG14*2)) -> 172 | AH25: m | CA25: =WPONDDesign!C85 -> Wetland depth | CB25: =WPONDDesign!F85 -> 0.2 | CC25: =WPONDDesign!G85 -> m | CD25: dw | CM25: =DPONDDesign!C85 -> Outlet pipe diameter | CN25: =DPONDDesign!F85 -> 450 | CO25: =DPONDDesign!G85 -> mm
CA26: =WPONDDesign!C86 -> Active storage depth | CB26: =WPONDDesign!F86 -> 1.5 | CC26: =WPONDDesign!G86 -> m | CD26: das | CM26: =DPONDDesign!C86 -> Outlet orifice control diameter | CN26: =DPONDDesign!F86 -> 100 | CO26: =DPONDDesign!G86 -> mm
CA27: =WPONDDesign!C87 -> Freeboard | CB27: =WPONDDesign!F87 -> 0.3 | CC27: =WPONDDesign!G87 -> m | CM27: =DPONDDesign!C87 -> Outlet pipe length to flow control structure (manhole) | CN27: =DPONDDesign!F87 -> 5 | CO27: =DPONDDesign!G87 -> m
CA28: =WPONDDesign!C88 -> Inlet pipe diameter | CB28: =WPONDDesign!F88 -> 450 | CC28: =WPONDDesign!G88 -> mm | CM28: =DPONDDesign!C88 -> Maintenance pipe diameter | CN28: =DPONDDesign!F88 -> 300 | CO28: =DPONDDesign!G88 -> mm
CA29: =WPONDDesign!C89 -> Inlet pipe length | CB29: =WPONDDesign!F89 -> 15 | CC29: =WPONDDesign!G89 -> m | CM29: =DPONDDesign!C89 -> Pipe from manhole to receiving water - diameter | CN29: =DPONDDesign!F89 -> 450 | CO29: =DPONDDesign!G89 -> mm
CA30: =WPONDDesign!C90 -> Conveyance pipe diameter | CB30: =WPONDDesign!F90 -> 200 | CC30: =WPONDDesign!G90 -> mm | CM30: =DPONDDesign!C90 -> Pipe from manhole to receiving water - length | CN30: =DPONDDesign!F90 -> 25 | CO30: =DPONDDesign!G90 -> m
CA31: =WPONDDesign!C91 -> Conveyance orifice control diameter | CB31: =WPONDDesign!F91 -> 100 | CC31: =WPONDDesign!G91 -> mm | CM31: =DPONDDesign!C91 -> Side slope, forebay and dry pond (Width:depth) | CN31: =DPONDDesign!F91 -> 4 | CO31: =DPONDDesign!G91 -> x:1
CA32: =WPONDDesign!C92 -> Conveyance pipe length to flow control structure (manhole) | CB32: =WPONDDesign!F92 -> 5 | CC32: =WPONDDesign!G92 -> m | CM32: Top soil depth | CN32: =Assumptions!D5 -> 0.25 | CO32: m
CA33: =WPONDDesign!C93 -> Maintenance pipe diameter | CB33: =WPONDDesign!F93 -> 300 | CC33: =WPONDDesign!G93 -> mm | CM33: Depth of clay liner for permanent pool | CN33: =DPONDDesign!F92 -> 0.3 | CO33: m
CA34: =WPONDDesign!C94 -> Outlet pipe from manhole to receiving water - diameter | CB34: =WPONDDesign!F94 -> 450 | CC34: =WPONDDesign!G94 -> mm
CA35: =WPONDDesign!C95 -> Outlet pipe from manhole to receiving water - length | CB35: =WPONDDesign!F95 -> 25 | CC35: =WPONDDesign!G95 -> m
CA36: =WPONDDesign!C96 -> Side slope, buffer (Width:depth) | CB36: =WPONDDesign!F96 -> 6 | CC36: =WPONDDesign!G96 -> x:1 | CD36: Sb
CA37: =WPONDDesign!C97 -> Side slope, forebay, berm and permanent pool (Width:depth) | CB37: =WPONDDesign!F97 -> 3 | CC37: =WPONDDesign!G97 -> x:1 | CD37: Sp
CA38: Top soil depth | CB38: =Assumptions!D5 -> 0.25 | CC38: m
CA39: Depth of clay liner for permanent pool | CB39: =WPONDDesign!F98 -> 0.3 | CC39: m
C41: Full Infiltration calculations | M41: Calculations | Q41: Check dam calculations | X41: Calculations | AF41: Flashing around penetrations | AG41: =AG12*(2+2+1.5+1.5) -> 35 | AH41: m | AO41: Calculations | AW41: Calculations | BE41: Calculations | BM41: Calculations | CA41: Calculations | CM41: Calculations
C42: Maximum depth | D42: =D9*((D10/1000)-(D13/(D9)))/(D14/100) -> -0.14 | E42: m | M42: Total length of swale | N42: =IF(N22="Yes",N13+N23,N13) -> 50.50526316 | O42: m | Q42: Curb | X42: Volume of excavation | Y42: =Y9*Y8*Y10 -> 300 | Z42: m3 | AF42: Flashing around drains | AG42: =AG12*(3.14159*0.1016) -> 1.59592772 | AH42: m | AO42: Storage Capacity Required | AP42: =IF(ICDesign!F71="rainfall capture",AP14/1000*AP8,"n/a") -> 80 | AQ42: m3 | AW42: Required water storage volume | AX42: =AX8*AX9/1000 -> 25 | AY42: m3 | BE42: Design infiltration rate | BF42: =BF9/BF10 -> 16 | BG42: mm/hr | BM42: Pretreatment tank excavation calculations | CA42: STORAGE REQUIREMENTS | CM42: STORAGE REQUIREMENTS
C43: Actual depth of cell | D43: =IF(AND(D42<1.275,D42>1),D42,1) -> 1 | E43: m | M43: Width of sloped swale side | N43: =N16*N11 -> 2 | O43: m | Q43: Height | R43: =N20 -> 0.3 | S43: m | X43: Volume of top soil | Y43: =Y8*Y9*Y11 -> 250 | Z43: m3 | AF43: Flashing total | AG43: =SUM(AG25:AG42) -> 208.5959277 | AH43: m | AO43: Storage Capacity Provided | AP43: =ICsizing!G8 -> 83.13651657 | AQ43: m3 | AW43: Max. depth of water in trench based on drainage period | AX43: =(AX14*(AX10/AX12/1000)) -> 0.432 | AY43: m | BE43: Ratio of contributing to permeable area | BF43: =BF8/BF7 ->  | BM43: tank | BN43: =2.1*1.7*1.5 -> 5.355 | BO43: m3 | CA43: Water quality storage requirement | CB43: =CB6*IF(WPONDDesign!F68="enhanced", IF(WPONDDesign!F69=0,(WetPondSize!$C$48+WetPondSize!$F$48*WPONDDesign!$F$67+WetPondSize!$I$48*(WPONDDesign!$F$67^2)), IF(WPONDDesign!F69=1,(WetPondSize!$C$46+WetPondSize!F$46*WPONDDesign!$F$67+WetPondSize!$I$46*(WPONDDesign!$F$67^2)), (WetPondSize!$C$47+WetPondSize!F$47*WPONDDesign!$F$67+WetPondSize!$I$47*(WPONDDesign!$F$67^2)))),IF(WPONDDesign!F68="normal",IF(WPONDDesign!F69=0,(WetPondSize!$D$48+WetPondSize!$G$48*WPONDDesign!$F$67+WetPondSize!$J$48*(WPONDDesign!$F$67^2)),IF(WPONDDesign!F69=1,(WetPondSize!$D$46+WetPondSize!G$46*WPONDDesign!$F$67+WetPondSize!$J$46*(WPONDDesign!$F$67^2)),(WetPondSize!$D$47+WetPondSize!G$47*WPONDDesign!$F$67+WetPondSize!$J$47*(WPONDDesign!$F$67^2)))),IF(WPONDDesign!F69=0,(WetPondSize!$E$48+WetPondSize!$H$48*WPONDDesign!$F$67+WetPondSize!$K$48*(WPONDDesign!$F$67^2)),IF(WPONDDesign!F69=1,(WetPondSize!$E$46+WetPondSize!H$46*WPONDDesign!$F$67+WetPondSize!$K$46*(WPONDDesign!$F$67^2)),(WetPondSize!$E$47+WetPondSize!H$47*WPONDDesign!$F$67+WetPondSize!$K$47*(WPONDDesign!$F$67^2)))))) -> 536.10825 | CC43: m3 | CD43: V | CM43: Water quality storage requirement | CN43: =WetPondSize!C54 -> 57.3412 | CO43: m3/ha
C44: Total cell depth | D44: =(D43+D17) -> 1.075 | E44: m | M44: Top width of swale | N44: =N10+(2*N43) -> 4.75 | O44: m | Q44: Bottom | R44: =N10 -> 0.75 | S44: m | X44: Pipe to catchbasin length | Y44: =VFSDesign!F72 -> 5 | Z44: m | AF44: Flashing area | AG44: =AG43*0.33 -> 68.83665615 | AH44: m | AO44: Number of Chambers | AP44: =ICDesign!F87 -> 36 | AQ44: chambers | AW44: Cross sectional area of 300 mm perforated pipe | AX44: =3.14*(0.3/2)^2 -> 0.07065 | AY44: m2 | BE44: Clear stone bed depth | BF44: =MAX(PICPDesign!F79,(BF11*(1+BF43)-BF42*BF12)/(BF13/100)) ->  | BG44: mm | BM44: tank + 18" around tank | BN44: =2.56*1.96*(1.7+0.5+0.4572) -> 13.33276672 | BO44: m3 | CA44: Extended detention storage requirement | CB44: =CB15*CB6 -> 300 | CC44: m3 | CD44: Ve | CE44: Ap*vd | CM44: Total storage volume (max. of detention or WQ storage) | CN44: =MAX(CN43,CN14)*CN6 -> 5734.12 | CO44: m3
C45: Check ponding is < 24 hours | D45: =D13/(D9/1000) -> 50 | E45: hours | M45: Volume of driveway culvert | N45: =3.14*(N25/2)^2*N23 -> 0.59346 | O45: m3 | Q45: Side Length | R45: =R43*2.5 -> 0.75 | S45: m | AF45: Irrigation System | AG45: =GRDesign!F70 -> No | AH45: unitless | AO45: Number of Rows | AP45: =AP44/AP46 -> 6 | AQ45: rows | AW45: Cross-sectional area of trench | AX45: =(AX43*AX15) -> 0.432 | AY45: m2 | BE45: Max reservoir depth | BF45: =(BF42*BF14)/(BF13/100) -> 2400 | BG45: mm | BM45: Height of triange | BN45: =1.7+0.5+0.4572-1.2 -> 1.4572 | BO45: m | CA45: Forebay volume | CB45: =(CapitalCosts!CB43-CB44)*CB18 -> 47.22165 | CC45: m3 | CD45: Vf | CE45: V*pf | CM45: STORAGE CALCS
C46: Required surface Area for WQV | D46: =D15/((D44*(D14/100))+D13) -> 14.28571429 | E46: m2 | M46: Driveway Backfill volume | Q46: Total Length | R46: =R44+R45*2 -> 2.25 | S46: m | AF46: Growth Medium | AG46: =GRDesign!F71 -> 6 | AH46: inches | AO46: Number of Columns | AP46: =ICsizing!G6 -> 6 | AQ46: columns | AW46: Depth of trench | AX46: =AX45/AX15 -> 0.432 | AY46: m | BE46: Check storage depth | BF46: =IF(SUM(BF15:BF16,BF44)<BF45,"OKAY","TOO DEEP") ->  | BM46: Area of triange | BN46: =1/2*BN45*BN45 -> 1.06171592 | BO46: m2 | CA46: PERMANENT POOL CALCS | CM46: Average surface area of pond | CN46: =CN44/CN21 -> 2867.06 | CO46: m2
C47: Design Area based on maximum DA/SA | D47: =IF(D46>D6/BRDesign!G69<D6/5,D46,(D6/BRDesign!G69)) -> 100 | E47: m2 | M47: Middle | N47: =((N25+0.15+0.15)*N10*(N23-0.3))-N45 -> 3.05154 | O47: m3 | Q47: Sock | AF47: Plants | AG47: =GRDesign!F72 -> mats | AH47: unitless | AO47: Area of chambers | AP47: =AP15*AP16 -> 124.5415018 | AQ47: m2 of IC | AW47: Water Storage per m length | AX47: =(AX45-AX44)*(AX13/100)*1+AX44*1 -> 0.21519 | AY47: m3 | BE47: Volume of cell | BF47: =BF20*BF48*BF49 ->  | BG47: m3 | BM47: vol of slope | BN47: =(2*1.96*BN46)+(2*2.56*BN46)+(4*(1/3*BN46*BN45)) -> 11.66075517 | BO47: m3 | CA47: Required volume of permanent pool | CB47: =CB43-CB44-CB45 -> 188.8866 | CC47: m3 | CD47: Vp | CE47: (V – Ve – Vf) | CM47: Width of shoreline fringe | CN47: =CN31*CN21 -> 8 | CO47: m
C48: Length of bioretention | D48: =IF(BRDesign!$G$64="Full Infiltration",SQRT(BRDesign!G66*CapitalCosts!D47),IF(BRDesign!$G$64="Partial Infiltration",SQRT(BRDesign!G66*CapitalCosts!D60),IF(BRDesign!$G$64="No Infiltration",SQRT(BRDesign!G66*CapitalCosts!D71),0))) -> 10 | E48: m | M48: Sides | N48: =(N51*(N23-0.3))*2 -> 12.96 | O48: m3 | Q48: Height | R48: =N20 -> 0.3 | S48: m | AO48: Depth of excavation | AP48: =AP20+AP21+AP19+ICsizing!G7 -> 1.8068 | AQ48: m | AW48: Length of trench | AX48: =AX42/AX47 -> 116.1764022 | AY48: m | BE48: Width of permeable area | BF48: =PICPDesign!F84 -> 0 | BG48: m | BM48: Bedding area | BN48: =2.56*1.96*0.1524 -> 0.76468224 | BO48: m3 | CA48: Average depth | CB48: =CB24*(1-CB9)+CB9*CB25 -> 1.175 | CC48: m | CD48: dpa | CE48: dp*(1-pw)+dw*pw | CM48: Average width of pond | CN48: =(CN46/CN19)^0.5 -> 26.7724672 | CO48: m
C49: Width of bioretention | D49: =IF(BRDesign!$G$64="Full Infiltration",1/BRDesign!G66*BRDesign!G83,IF(BRDesign!$G$64="Partial Infiltration",1/BRDesign!G66*CapitalCosts!D61,IF(BRDesign!$G$64="No Infiltration",1/BRDesign!G66*CapitalCosts!D72,0))) -> 10 | E49: m | M49: TOTAL | N49: =SUM(N47:N48) -> 16.01154 | O49: m3 | Q49: Bottom | R49: =N10 -> 0.75 | S49: m | AO49: Side slope for excavation (1:1) | AW49: Surface Area | AX49: =AX15*AX48 -> 116.1764022 | AY49: m2 | BE49: Total depth | BF49: =SUM(BF44,BF19,BF16,BF15)/1000 ->  | BG49: m | BM49: Total | BN49: =BN44+BN47+BN48 -> 25.75820413 | BO49: m3 | CA49: Average area of permanent pool | CB49: =CB47/CB48 -> 160.7545532 | CC49: m2 | CD49: Aa | CE49: Vp / dpa | CM49: Pond top width | CN49: =CN48+CN47 -> 34.7724672 | CO49: m
C50: Volume of cell | D50: =D78*D79*D44 -> 107.5 | E50: m3 | M50: Side Slopes | Q50: Sides | R50: =R48*2 -> 0.6 | S50: m | AO50: height | AP50: =AP48 -> 1.8068 | AQ50: m | AW50: Rainfal Captured | AX50: =AX42*1000/AX8 -> 25 | AY50: mm | BE50: Water storage volume | BF50: =(BF48*BF20*(BF15+BF16+BF44)/1000)*(BF13/100)+(PI()*(BF17/2000)*PICPDesign!K82*((100-BF13)/100)) ->  | BG50: m3 | BM50: Below ground tank excavation calculations | CA50: Volume of permanent pool - deep pool | CB50: =CB49*(1-CB9)*CB24 -> 180.8488723 | CC50: m3 | CD50: Vdp | CE50: (1-pw)*Aa*dp | CF50: check - should be 0.0 | CM50: Pond top length | CN50: =CN47+CN48*CN19 -> 115.0898688 | CO50: m
C51: Volume to excavate | D51: =D78*D79*(D44+D13-0.1524) -> 112.26 | E51: m3 | M51: Side slope X section area | N51: =0.5*N43*N16 -> 0.8 | O51: m2 | Q51: Total length | R51: =R50+R49 -> 1.35 | S51: m | AO51: area of triangle | AP51: =0.5*AP50*AP50 -> 1.63226312 | AQ51: m2 | AW51: Total depth | AX51: =AX16+AX46 -> 1.532 | AY51: m | BM51: Tank size | BN51: =BN9*BN10*BN11 -> 21.12 | BO51: m3 | CA51: Volume of permanent pool - wetland portion | CB51: =CB49*CB9*CB25 -> 8.03772766 | CC51: m3 | CD51: Vw | CE51: pw*Aa*dw | CF51: =CB51+CB50-CB47 -> 0 | CM51: Pond surface area | CN51: =CN50*CN49 -> 4001.958688 | CO51: m2
M52: Side slope surface area width | N52: =SQRT(N16^2+N43^2) -> 2.154065923 | O52: m | Q52: Rock | AO52: vol of triangle | AP52: =(2*AP15*AP51)+(2*AP16*AP50)+(4*1/3*AP51*AP50) -> 81.44091612 | AQ52: m3 | AW52: Fill depth | AX52: =AX51-AX46-AX17-AX18 -> 0.75 | AY52: m | BM52: tank + 18" around tank | BN52: =(BN9+0.4572)*(BN10+0.4572)*(BN11+0.75+0.4572) -> 40.88519869 | BO52: m3 | CA52: Width of deep pool side slopes | CB52: =CB37*CB24 -> 4.5 | CC52: m | CD52: wsd | CE52: Sp * dp | CM52: Width of pond bottom | CN52: =CN49-2*CN47 -> 18.7724672
C53: Partial Infiltration calculations | G53: Partial - Volume to excavate (no topsoil) | M53: Excavation Volumes | Q53: Main section | R53: Height | S53: =N20 -> 0.3 | T53: m | AO53: Volume of excavation | AP53: =AP17*(AP48-AP18)+AP52 -> 275.3271261 | AQ53: m3 | AW53: Peak flow rate | AX53: =(0.9*(43*0.9+5.9)*AX7/10000)/360 -> 0.01115 | AY53: m3/sec | BM53: Height of triange | BN53: =BN11+0.75+0.4572-1.2 -> 3.0072 | BO53: m | CA53: Width of wetland side slopes | CB53: =CB37*CB25 -> 0.6 | CC53: m | CD53: wsw | CE53: Sp * dw | CM53: Detention Time | CN53: =((2*CN46)/(0.63*PI()*((CN26/2/1000)^2)*((2*9.81)^0.5)))*(CN21^0.5-0^0.5)/(60*60) -> 102.7778059 | CO53: hr
C54: Maximum Stone Depth below invert | D54: =(D9*D10/1000)/(D14/100) -> 0.36 | E54: m | G54: Vol of BR | I54: =D78*D79*(D58+D13-0.1524) -> 153.26 | M54: Center of swale | N54: =IF(N7="Linear",N10*N16*N42,(N10*N16*N42)-(N10*N10)) -> 30.30315789 | O54: m3 | R54: Bottom | S54: =N10 -> 0.75 | T54: m | AO54: Drainage time | AP54: =AP43/AP17/(AP9/AP10/1000) -> 41.72129139 | AQ54: hours | AX54: =AX53*60*264.17 -> 176.72973 | AY54: gpm | BM54: Area of triange | BN54: =1/2*BN53*BN53 -> 4.52162592 | BO54: m2 | CA54: Width of side slopes - average | CB54: =CB9*CB53+(1-CB9)*CB52 -> 3.525 | CC54: m | CD54: wsa | CE54: (1-pw )*WSd + pw*WSa | CM54: Shoreline fringe soil surface width | CN54: =(CN21^2+CN47^2)^0.5 -> 8.246211251 | CO54: m
C55: Check stone depth | D55: =IF(D54>0.1,D54,0.1) -> 0.36 | E55: m | M55: Long side slope volume | N55: =IF(N7="Linear",N51*N42*2,(N42*N51)+(N51*(N42-(N10*2+N43*3)))) -> 80.80842105 | O55: m3 | R55: Length | S55: 0.6 | T55: m | AO55: Actual rainfall captured | AP55: =AP43/AP8*1000 -> 41.56825828 | AQ55: mm | BM55: vol of slope | BN55: =(2*(BN9+0.4572)*BN54)+(2*(BN10+0.4572)*BN54)+(4*(1/3*BN54*BN53)) -> 75.23262071 | BO55: m3 | CA55: Average width of bottom | CB55: =(CB49/CB22)^0.5 -> 6.339450946 | CC55: m | CD55: Wb | CE55: (Aa/rp)^0.5 | CM55: Shoreline fringe soil surface area | CN55: =CN54*2*(CN52*(1+CN19))+4*CN54^2 -> 1820.017302 | CO55: m2
C56: Total stone depth | D56: =D55+D19 -> 0.56 | E56: m | G56: Slope (1:1 above 1.2m) | M56: short side slope volume | N56: =N51*N10*2 -> 1.2 | O56: m3 | R56: Vol | S56: =S53*S54*S55 -> 0.135 | T56: m3 | AO56: Chamber storage 50 mm fill depth | AP56: =ICDesign!F80+2*CapitalCosts!AP22 -> 1.0668 | AQ56: m | BM56: Bedding area | BN56: =BN9*BN10*0.1524 -> 1.072896 | BO56: m3 | CA56: Width of permanent pool surface | CB56: =CB55+CB54 -> 9.864450946 | CC56: m | CD56: Wp | CE56: Wb+wsa | CM56: FOREBAY CALCS
C57: Check total stone depth | D57: =IF(D56>0.3,D56,0.3) -> 0.56 | E57: m | G57: Height | I57: =(D58+D13-0.1524)-1.2 -> 0.3326 | M57: corners | N57: =IF(N7="Linear",4*1/3*N51*N43,6*1/3*N51*N43) -> 2.133333333 | O57: m3 | Q57: Sides | R57: Height | S57: =N20 -> 0.3 | T57: m | AO57: Peak flow rate | AP57: =(0.9*(43*0.9+5.9)*AP7/10000)/360 -> 0.01115 | AQ57: m3/sec | BM57: Total | BN57: =BN52+BN55+BN56 -> 117.1907154 | BO57: m3 | CA57: Length of permanent pool surface | CB57: =(CB55*CB22+CB54) -> 28.88280378 | CC57: m | CD57: Lp | CE57: Wb*rp+wsa | CM57: Volume of forebay | CN57: =IF(CN10="forebay",CN44*CN8,0) -> 1146.824 | CO57: m3
C58: Total cell depth | D58: =(D18+D57+D17+D16) -> 1.485 | E58: m | G58: Area of triange | I58: =1/2*I57*I57 -> 0.05531138 | M58: Side slope volume | N58: =SUM(N55:N57) -> 84.14175439 | O58: m3 | R58: Width | S58: =N10 -> 0.75 | T58: m | AP58: =AP57*60*264.17 -> 176.72973 | AQ58: gpm | CA58: Permanent pool surface area | CB58: =CB57*CB56 -> 284.9130011 | CC58: m2 | CM58: Forebay area | CN58: =IF(CN10="forebay",CN57/CN17,0) -> 764.5493333 | CO58: m2
C59: Required surface Area for WQV | D59: =D15/((D58*(D14/100))+D13) -> 11.33501259 | E59: m2 | G59: vol of slope | I59: =(2*D78*I58)+(2*D79*I58)+(4*(1/3*I58*I57)) -> 2.236983953 | M59: Extra depth under driveway | N59: =N10*N23*N24 -> 0.63 | O59: m3 | R59: Length | S59: =0.6 -> 0.6 | T59: m | CA59: Bottom width of wetland | CB59: =IF(CB9>0,CB56-CB53,na) -> 9.264450946 | CC59: m | CM59: Average width at weir | CN59: =IF(CN10="forebay",(2*CN58/CN20)^0.5,0) -> 19.55184561 | CO59: m
